{"text_format":"1","workbook":"xlsx","n_sheets":10,"sheets":["Primary","Summary (EN & FR)","Monthly printout","DEMO-data entry"," Directions-English"," Directions-Francais","Hip-only-EN (12 wks enr IP)","Non-hip, non-spine-EN(6wks enr)","Criteria Calculations","Menu dropdown options"],"not_rendered":{"charts":2,"images":0,"macros":1,"external_links":1,"defined_names":28,"comments":4,"pivot_tables":0},"unopened":[],"bounds":{"document_bytes":16777216,"sheet_cells":100000,"rows_first":2000,"rows_last":500,"rows_between":2000,"halvings":0,"cell_chars":16384,"cell_head_chars":4096},"cells_cut":0,"cells_raw":0,"read":"whole","date_system":"1900"}

{"sheet":"Primary","index":0,"n_rows":995,"n_cols":47,"rows_kept":995,"cut":false,"hidden":false,"merged":[]}
["Number/ Nombre","Name/Nom","DOB/DON    yyyy/mm/dd","Provincial health card number/  numéro de carte santé","Family Doctor (PHC)/ médecin de famille","Date of Initial/ première FLS visit(e) yyyy/mm/dd","Sex(e)","Living Status/ statut de vie","Date of/de Index Fracture  yyyy/mm/dd","Age at Time of Fracture/Âge au moment de la fracture","Days from fracture to first FLS visit/ jours de la fracture à la première visite","Fracture Type/ type de fracture","Patient Eligible/ admissible","Reason Patient Excluded/ raison patient exclu","Prior fragility fracture after age 40/Fracture de fragilité préalable après 40 ans","Number of falls/ nombre de chutes","Current OP Tx/ traitement actue OP","Patient Adherence (pt taking Tx for over 1 yr)/ Adhérence du patient (prise de la Tx pendant plus d'un an)","Is patient at a high risk for falls?/ Le patient présente-t-il un risque élevé de chute?","Referral to Falls prev services/ Référence à des services antichute","Blood work completed/ prises de sang terminée","Spine X-rays completed/  xrays d'épine terminée","Method of fracture risk determination/ Méthode de détermination du risque de fracture","Date fracture risk completed/ date limite du risque de fracture complété yyyy/mm/dd","Time to fracture risk assessment/temps pour évaluer le risque de fractur","Time to initial treatment/ temps jusqu'au traitement initial","Fracture risk/ risque de fracture","Recommended referal to OP specialist/ Recommandation recommandée au spécialiste en OP","3-6 month follow-up/  Suivi de 3-6 mois","OP treatment\n3-6 month/ Traitement OP de 3-6 mois","Patient Adherence         3-6 month/ Adhérence du patient de 3-6 mois","Date Tx started/      date de début du traitement yyyy/mm/dd","6-9 month follow-up/ Suivi de 6-9 mois","OP treatment\n6-9 month/ Traitement OP de 6-9 mois","Patient Adherence         6-9 month/ Adhérence du patient de 6-9 mois","One year follow-up/ Suivi d'un an","OP treatment>=52 wks/ Traitement OP d'un an","Patient Adherence         1 yr/ Adhérence du patient d'in an","New fracture? patient perspective/nouvelle fracture? (perspective du patient)","New fracture?(xray report)/  nouvelle fracture? (rapport de radiographie)","Comments/Commentaires","0-8 wks follow-up/\nSuivi de 0-8 semaines","OP treatment 0-8 wks/\nTraitement OP de 0-8 semaines","Patient Adherence         0-8 wks/ Adhérence du patient de0-8 semaines","8.1-16 wks follow-up/\nSuivi de 8.1-16 semaines","OP treatment 8.1-16 wks/\nTraitement OP de 8.1-16 semaines","Patient Adherence 8.1-16 wks/ Adhérence du patient de 8.1-16 semaines"]
[1,"a","1945-08-08","132141",null,"2022-03-02","Female/Femme","Community/Communauté","2022-01-01",{"$f":"DATEDIF(C2,I2,\"y\")","v":76},{"$f":"F2-I2","v":60},"Hip/Hanche","YES/OUI",null,"NO/NON","2 +","NO/NON",null,"YES/OUI","YES/OUI",null,null,"Clinical","2022-05-04",{"$f":"IF(X2-F2>=0,X2-F2,\"\")","v":63},{"$f":"IF(AF2-I2>=0,AF2-I2,\"\")","v":151},"HIGH/ÉLEVÉ","NO/NON","Contacted/ Contacté","Oral bisphos","YES/OUI","2022-06-01",null,null,null,"Contacted/ Contacté","Oral bisphos","YES/OUI","No"]
[2,"b","1948-08-08","141241231",null,"2022-03-01","Female/Femme","Community/Communauté","2022-01-02",{"$f":"DATEDIF(C3,I3,\"y\")","v":73},{"$f":"F3-I3","v":58},"Wrist/Poignet","YES/OUI",null,"NO/NON","2 +","NO/NON",null,"YES/OUI","YES/OUI",null,null,"FRAX without BMD","2022-05-04",{"$f":"IF(X3-F3>=0,X3-F3,\"\")","v":64},{"$f":"IF(AF3-I3>=0,AF3-I3,\"\")","v":152},"HIGH/ÉLEVÉ","NO/NON","Contacted/ Contacté","Oral bisphos","NO/NON","2022-06-03","Contacted/ Contacté","Oral bisphos","YES/OUI","Contacted/ Contacté","Oral bisphos","YES/OUI","No"]
[3,"c","1940-09-10","141231214",null,"2022-03-01","Male/Homme","Community/Communauté","2022-01-03",{"$f":"DATEDIF(C4,I4,\"y\")","v":81},{"$f":"F4-I4","v":57},"Shoulder/Épaule","YES/OUI",null,"NO/NON","2 +","NO/NON",null,"YES/OUI","YES/OUI",null,null,"Clinical","2022-05-03",{"$f":"IF(X4-F4>=0,X4-F4,\"\")","v":63},152,"HIGH/ÉLEVÉ","NO/NON","Contacted/ Contacté","None/Aucun","NO/NON","2022-06-04","Contacted/ Contacté","Oral bisphos","YES/OUI","Contacted/ Contacté","Oral bisphos","YES/OUI","No"]
[4,null,null,null,null,null,null,null,null,0,0,null,null,null,null,null,null,null,null,null,null,null,null,null,{"$f":"IF(X5-F5>=0,X5-F5,\"\")","v":0},0]
[5,null,null,null,null,null,null,null,null,0,0,null,null,null,null,null,null,null,null,null,null,null,null,null,0,0]
[6,null,null,null,null,null,null,null,null,0,0,null,null,null,null,null,null,null,null,null,null,null,null,null,0,0]
[7,null,null,null,null,null,null,null,null,0,0,null,null,null,null,null,null,null,null,null,null,null,null,null,0,0]
[8,null,null,null,null,null,null,null,null,0,0,null,null,null,null,null,null,null,null,null,null,null,null,null,0,0]
[9,null,null,null,null,null,null,null,null,0,0,null,null,null,null,null,null,null,null,null,null,null,null,null,0,0]
[10,null,null,null,null,null,null,null,null,0,{"$f":"F11-I11","v":0},null,null,null,null,null,null,null,null,null,null,null,null,null,0,0]
[11,null,null,null,null,null,null,null,null,0,0,null,null,null,null,null,null,null,null,null,null,null,null,null,0,0]
[12,null,null,null,null,null,null,null,null,0,0,null,null,null,null,null,null,null,null,null,null,null,null,null,0,0]
[13,null,null,null,null,null,null,null,null,0,0,null,null,null,null,null,null,null,null,null,null,null,null,null,0,0]
[14,null,null,null,null,null,null,null,null,0,0,null,null,null,null,null,null,null,null,null,null,null,null,null,0,0]
[15,null,null,null,null,null,null,null,null,0,0,null,null,null,null,null,null,null,null,null,null,null,null,null,0,0]
[16,null,null,null,null,null,null,null,null,0,0,null,null,null,null,null,null,null,null,null,null,null,null,null,0]
[17,null,null,null,null,null,null,null,null,0,0,null,null,null,null,null,null,null,null,null,null,null,null,null,0,{"$f":"IF(AF18-I18>=0,AF18-I18,\"\")","v":0}]
[18,null,null,null,null,null,null,null,null,0,0,null,null,null,null,null,null,null,null,null,null,null,null,null,0,0]
[19,null,null,null,null,null,null,null,null,0,0,null,null,null,null,null,null,null,null,null,null,null,null,null,0,0]
[20,null,null,null,null,null,null,null,null,0,0,null,null,null,null,null,null,null,null,null,null,null,null,null,0,0]
[21,null,null,null,null,null,null,null,null,0,0,null,null,null,null,null,null,null,null,null,null,null,null,null,0,0]
[22,null,null,null,null,null,null,null,null,0,0,null,null,null,null,null,null,null,null,null,null,null,null,null,0,0]
[23,null,null,null,null,null,null,null,null,0,0,null,null,null,null,null,null,null,null,null,null,null,null,null,0,0]
[24,null,null,null,null,null,null,null,null,0,0,null,null,null,null,null,null,null,null,null,null,null,null,null,0,0]
[25,null,null,null,null,null,null,null,null,0,0,null,null,null,null,null,null,null,null,null,null,null,null,null,0,0]
[26,null,null,null,null,null,null,null,null,0,0,null,null,null,null,null,null,null,null,null,null,null,null,null,0,0]
[27,null,null,null,null,null,null,null,null,0,0,null,null,null,null,null,null,null,null,null,null,null,null,null,0,0]
[28,null,null,null,null,null,null,null,null,0,0,null,null,null,null,null,null,null,null,null,null,null,null,null,0,0]
[29,null,null,null,null,null,null,null,null,0,0,null,null,null,null,null,null,null,null,null,null,null,null,null,0,0]
[30,null,null,null,null,null,null,null,null,0,0,null,null,null,null,null,null,null,null,null,null,null,null,null,0,0]
[36,null,null,null,null,null,null,null,null,0,0,null,null,null,null,null,null,null,null,null,null,null,null,null,0,0]
[37,null,null,null,null,null,null,null,null,0,0,null,null,null,null,null,null,null,null,null,null,null,null,null,0,0]
[38,null,null,null,null,null,null,null,null,0,0,null,null,null,null,null,null,null,null,null,null,null,null,null,0,0]
[39,null,null,null,null,null,null,null,null,0,0,null,null,null,null,null,null,null,null,null,null,null,null,null,0,0]
[40,null,null,null,null,null,null,null,null,0,0,null,null,null,null,null,null,null,null,null,null,null,null,null,0,0]
[41,null,null,null,null,null,null,null,null,0,0,null,null,null,null,null,null,null,null,null,null,null,null,null,0,0]
[42,null,null,null,null,null,null,null,null,0,0,null,null,null,null,null,null,null,null,null,null,null,null,null,0,0]
[43,null,null,null,null,null,null,null,null,0,0,null,null,null,null,null,null,null,null,null,null,null,null,null,0,0]
[44,null,null,null,null,null,null,null,null,0,0,null,null,null,null,null,null,null,null,null,null,null,null,null,0,0]
[45,null,null,null,null,null,null,null,null,0,0,null,null,null,null,null,null,null,null,null,null,null,null,null,0,0]
[46,null,null,null,null,null,null,null,null,0,0,null,null,null,null,null,null,null,null,null,null,null,null,null,0,0]
[47,null,null,null,null,null,null,null,null,0,0,null,null,null,null,null,null,null,null,null,null,null,null,null,0,0]
[48,null,null,null,null,null,null,null,null,0,0,null,null,null,null,null,null,null,null,null,null,null,null,null,0,0]
[49,null,null,null,null,null,null,null,null,0,0,null,null,null,null,null,null,null,null,null,null,null,null,null,0,0]
[50,null,null,null,null,null,null,null,null,0,0,null,null,null,null,null,null,null,null,null,null,null,null,null,0,0]
[51,null,null,null,null,null,null,null,null,0,0,null,null,null,null,null,null,null,null,null,null,null,null,null,0,0]
[52,null,null,null,null,null,null,null,null,0,0,null,null,null,null,null,null,null,null,null,null,null,null,null,0,0]
[53,null,null,null,null,null,null,null,null,0,0,null,null,null,null,null,null,null,null,null,null,null,null,null,0,0]
[54,null,null,null,null,null,null,null,null,0,0,null,null,null,null,null,null,null,null,null,null,null,null,null,0,0]
[55,null,null,null,null,null,null,null,null,0,0,null,null,null,null,null,null,null,null,null,null,null,null,null,0,0]
[56,null,null,null,null,null,null,null,null,0,0,null,null,null,null,null,null,null,null,null,null,null,null,null,0,0]
[57,null,null,null,null,null,null,null,null,0,0,null,null,null,null,null,null,null,null,null,null,null,null,null,0,0]
[58,null,null,null,null,null,null,null,null,0,0,null,null,null,null,null,null,null,null,null,null,null,null,null,0,0]
[59,null,null,null,null,null,null,null,null,0,0,null,null,null,null,null,null,null,null,null,null,null,null,null,0,0]
[60,null,null,null,null,null,null,null,null,0,0,null,null,null,null,null,null,null,null,null,null,null,null,null,0,0]
[61,null,null,null,null,null,null,null,null,0,0,null,null,null,null,null,null,null,null,null,null,null,null,null,0,0]
[62,null,null,null,null,null,null,null,null,0,0,null,null,null,null,null,null,null,null,null,null,null,null,null,0,0]
[63,null,null,null,null,null,null,null,null,0,0,null,null,null,null,null,null,null,null,null,null,null,null,null,0,0]
[64,null,null,null,null,null,null,null,null,0,0,null,null,null,null,null,null,null,null,null,null,null,null,null,0,0]
[65,null,null,null,null,null,null,null,null,0,{"$f":"F61-I61","v":0},null,null,null,null,null,null,null,null,null,null,null,null,null,{"$f":"IF(X61-F61>=0,X61-F61,\"\")","v":0},0]
[66,null,null,null,null,null,null,null,null,0,0,null,null,null,null,null,null,null,null,null,null,null,null,null,0,0]
[67,null,null,null,null,null,null,null,null,0,0,null,null,null,null,null,null,null,null,null,null,null,null,null,0,0]
[68,null,null,null,null,null,null,null,null,0,0,null,null,null,null,null,null,null,null,null,null,null,null,null,0,0]
[69,null,null,null,null,null,null,null,null,0,0,null,null,null,null,null,null,null,null,null,null,null,null,null,0,0]
[70,null,null,null,null,null,null,null,null,{"$f":"DATEDIF(C66,I66,\"y\")","v":0},0,null,null,null,null,null,null,null,null,null,null,null,null,null,0,0]
[71,null,null,null,null,null,null,null,null,0,0,null,null,null,null,null,null,null,null,null,null,null,null,null,0,0]
[72,null,null,null,null,null,null,null,null,0,0,null,null,null,null,null,null,null,null,null,null,null,null,null,0,0]
[73,null,null,null,null,null,null,null,null,0,0,null,null,null,null,null,null,null,null,null,null,null,null,null,0,0]
[74,null,null,null,null,null,null,null,null,0,0,null,null,null,null,null,null,null,null,null,null,null,null,null,0,0]
[75,null,null,null,null,null,null,null,null,0,0,null,null,null,null,null,null,null,null,null,null,null,null,null,0,0]
[76,null,null,null,null,null,null,null,null,0,0,null,null,null,null,null,null,null,null,null,null,null,null,null,0,0]
[77,null,null,null,null,null,null,null,null,0,0,null,null,null,null,null,null,null,null,null,null,null,null,null,0,0]
[78,null,null,null,null,null,null,null,null,0,0,null,null,null,null,null,null,null,null,null,null,null,null,null,0,0]
[79,null,null,null,null,null,null,null,null,0,0,null,null,null,null,null,null,null,null,null,null,null,null,null,0,0]
[80,null,null,null,null,null,null,null,null,0,0,null,null,null,null,null,null,null,null,null,null,null,null,null,0,0]
[81,null,null,null,null,null,null,null,null,0,0,null,null,null,null,null,null,null,null,null,null,null,null,null,0,{"$f":"IF(AF77-I77>=0,AF77-I77,\"\")","v":0}]
[82,null,null,null,null,null,null,null,null,0,0,null,null,null,null,null,null,null,null,null,null,null,null,null,0,0]
[83,null,null,null,null,null,null,null,null,0,0,null,null,null,null,null,null,null,null,null,null,null,null,null,0,0]
[84,null,null,null,null,null,null,null,null,0,0,null,null,null,null,null,null,null,null,null,null,null,null,null,0,0]
[85,null,null,null,null,null,null,null,null,0,0,null,null,null,null,null,null,null,null,null,null,null,null,null,0,0]
[86,null,null,null,null,null,null,null,null,0,0,null,null,null,null,null,null,null,null,null,null,null,null,null,0,0]
[87,null,null,null,null,null,null,null,null,0,0,null,null,null,null,null,null,null,null,null,null,null,null,null,0,0]
[88,null,null,null,null,null,null,null,null,0,0,null,null,null,null,null,null,null,null,null,null,null,null,null,0,0]
[89,null,null,null,null,null,null,null,null,0,0,null,null,null,null,null,null,null,null,null,null,null,null,null,0,0]
[90,null,null,null,null,null,null,null,null,0,0,null,null,null,null,null,null,null,null,null,null,null,null,null,0,0]
[91,null,null,null,null,null,null,null,null,0,0,null,null,null,null,null,null,null,null,null,null,null,null,null,0,0]
[92,null,null,null,null,null,null,null,null,0,0,null,null,null,null,null,null,null,null,null,null,null,null,null,0,0]
[93,null,null,null,null,null,null,null,null,0,0,null,null,null,null,null,null,null,null,null,null,null,null,null,0,0]
[94,null,null,null,null,null,null,null,null,0,0,null,null,null,null,null,null,null,null,null,null,null,null,null,0,0]
[95,null,null,null,null,null,null,null,null,0,0,null,null,null,null,null,null,null,null,null,null,null,null,null,0,0]
[96,null,null,null,null,null,null,null,null,0,0,null,null,null,null,null,null,null,null,null,null,null,null,null,0,0]
[97,null,null,null,null,null,null,null,null,0,0,null,null,null,null,null,null,null,null,null,null,null,null,null,0,0]
[98,null,null,null,null,null,null,null,null,0,0,null,null,null,null,null,null,null,null,null,null,null,null,null,0,0]
[99,null,null,null,null,null,null,null,null,0,0,null,null,null,null,null,null,null,null,null,null,null,null,null,0,0]
[100,null,null,null,null,null,null,null,null,0,0,null,null,null,null,null,null,null,null,null,null,null,null,null,0,0]
[101,null,null,null,null,null,null,null,null,0,0,null,null,null,null,null,null,null,null,null,null,null,null,null,0,0]
[102,null,null,null,null,null,null,null,null,0,0,null,null,null,null,null,null,null,null,null,null,null,null,null,0,0]
[103,null,null,null,null,null,null,null,null,0,0,null,null,null,null,null,null,null,null,null,null,null,null,null,0,0]
[104,null,null,null,null,null,null,null,null,0,0,null,null,null,null,null,null,null,null,null,null,null,null,null,0,0]
[105,null,null,null,null,null,null,null,null,0,0,null,null,null,null,null,null,null,null,null,null,null,null,null,0,0]
[106,null,null,null,null,null,null,null,null,0,0,null,null,null,null,null,null,null,null,null,null,null,null,null,0,0]
[107,null,null,null,null,null,null,null,null,0,0,null,null,null,null,null,null,null,null,null,null,null,null,null,0,0]
[108,null,null,null,null,null,null,null,null,0,0,null,null,null,null,null,null,null,null,null,null,null,null,null,0,0]
[109,null,null,null,null,null,null,null,null,0,0,null,null,null,null,null,null,null,null,null,null,null,null,null,0,0]
[110,null,null,null,null,null,null,null,null,0,0,null,null,null,null,null,null,null,null,null,null,null,null,null,0,0]
[111,null,null,null,null,null,null,null,null,0,0,null,null,null,null,null,null,null,null,null,null,null,null,null,0,0]
[112,null,null,null,null,null,null,null,null,0,0,null,null,null,null,null,null,null,null,null,null,null,null,null,0,0]
[113,null,null,null,null,null,null,null,null,0,0,null,null,null,null,null,null,null,null,null,null,null,null,null,0,0]
[114,null,null,null,null,null,null,null,null,0,0,null,null,null,null,null,null,null,null,null,null,null,null,null,0,0]
[115,null,null,null,null,null,null,null,null,0,0,null,null,null,null,null,null,null,null,null,null,null,null,null,0,0]
[116,null,null,null,null,null,null,null,null,0,0,null,null,null,null,null,null,null,null,null,null,null,null,null,0,0]
[117,null,null,null,null,null,null,null,null,0,0,null,null,null,null,null,null,null,null,null,null,null,null,null,0,0]
[118,null,null,null,null,null,null,null,null,0,0,null,null,null,null,null,null,null,null,null,null,null,null,null,0,0]
[119,null,null,null,null,null,null,null,null,0,0,null,null,null,null,null,null,null,null,null,null,null,null,null,0,0]
[120,null,null,null,null,null,null,null,null,0,0,null,null,null,null,null,null,null,null,null,null,null,null,null,0,0]
[121,null,null,null,null,null,null,null,null,0,0,null,null,null,null,null,null,null,null,null,null,null,null,null,0,0]
[122,null,null,null,null,null,null,null,null,0,0,null,null,null,null,null,null,null,null,null,null,null,null,null,0,0]
[123,null,null,null,null,null,null,null,null,0,0,null,null,null,null,null,null,null,null,null,null,null,null,null,0,0]
[124,null,null,null,null,null,null,null,null,0,0,null,null,null,null,null,null,null,null,null,null,null,null,null,0,0]
[125,null,null,null,null,null,null,null,null,0,0,null,null,null,null,null,null,null,null,null,null,null,null,null,0,0]
[126,null,null,null,null,null,null,null,null,0,0,null,null,null,null,null,null,null,null,null,null,null,null,null,0,0]
[127,null,null,null,null,null,null,null,null,0,0,null,null,null,null,null,null,null,null,null,null,null,null,null,0,0]
[128,null,null,null,null,null,null,null,null,0,0,null,null,null,null,null,null,null,null,null,null,null,null,null,0,0]
[129,null,null,null,null,null,null,null,null,0,{"$f":"F125-I125","v":0},null,null,null,null,null,null,null,null,null,null,null,null,null,{"$f":"IF(X125-F125>=0,X125-F125,\"\")","v":0},0]
[130,null,null,null,null,null,null,null,null,0,0,null,null,null,null,null,null,null,null,null,null,null,null,null,0,0]
[131,null,null,null,null,null,null,null,null,0,0,null,null,null,null,null,null,null,null,null,null,null,null,null,0,0]
[132,null,null,null,null,null,null,null,null,0,0,null,null,null,null,null,null,null,null,null,null,null,null,null,0,0]
[133,null,null,null,null,null,null,null,null,0,0,null,null,null,null,null,null,null,null,null,null,null,null,null,0,0]
[134,null,null,null,null,null,null,null,null,{"$f":"DATEDIF(C130,I130,\"y\")","v":0},0,null,null,null,null,null,null,null,null,null,null,null,null,null,0,0]
[135,null,null,null,null,null,null,null,null,0,0,null,null,null,null,null,null,null,null,null,null,null,null,null,0,0]
[136,null,null,null,null,null,null,null,null,0,0,null,null,null,null,null,null,null,null,null,null,null,null,null,0,0]
[137,null,null,null,null,null,null,null,null,0,0,null,null,null,null,null,null,null,null,null,null,null,null,null,0,0]
[138,null,null,null,null,null,null,null,null,0,0,null,null,null,null,null,null,null,null,null,null,null,null,null,0,0]
[139,null,null,null,null,null,null,null,null,0,0,null,null,null,null,null,null,null,null,null,null,null,null,null,0,0]
[140,null,null,null,null,null,null,null,null,0,0,null,null,null,null,null,null,null,null,null,null,null,null,null,0,0]
[141,null,null,null,null,null,null,null,null,0,0,null,null,null,null,null,null,null,null,null,null,null,null,null,0,0]
[142,null,null,null,null,null,null,null,null,0,0,null,null,null,null,null,null,null,null,null,null,null,null,null,0,0]
[143,null,null,null,null,null,null,null,null,0,0,null,null,null,null,null,null,null,null,null,null,null,null,null,0,0]
[144,null,null,null,null,null,null,null,null,0,0,null,null,null,null,null,null,null,null,null,null,null,null,null,0,0]
[145,null,null,null,null,null,null,null,null,0,0,null,null,null,null,null,null,null,null,null,null,null,null,null,0,{"$f":"IF(AF141-I141>=0,AF141-I141,\"\")","v":0}]
[146,null,null,null,null,null,null,null,null,0,0,null,null,null,null,null,null,null,null,null,null,null,null,null,0,0]
[147,null,null,null,null,null,null,null,null,0,0,null,null,null,null,null,null,null,null,null,null,null,null,null,0,0]
[148,null,null,null,null,null,null,null,null,0,0,null,null,null,null,null,null,null,null,null,null,null,null,null,0,0]
[149,null,null,null,null,null,null,null,null,0,0,null,null,null,null,null,null,null,null,null,null,null,null,null,0,0]
[150,null,null,null,null,null,null,null,null,0,0,null,null,null,null,null,null,null,null,null,null,null,null,null,0,0]
[151,null,null,null,null,null,null,null,null,0,0,null,null,null,null,null,null,null,null,null,null,null,null,null,0,0]
[152,null,null,null,null,null,null,null,null,0,0,null,null,null,null,null,null,null,null,null,null,null,null,null,0,0]
[153,null,null,null,null,null,null,null,null,0,0,null,null,null,null,null,null,null,null,null,null,null,null,null,0,0]
[154,null,null,null,null,null,null,null,null,0,0,null,null,null,null,null,null,null,null,null,null,null,null,null,0,0]
[155,null,null,null,null,null,null,null,null,0,0,null,null,null,null,null,null,null,null,null,null,null,null,null,0,0]
[156,null,null,null,null,null,null,null,null,0,0,null,null,null,null,null,null,null,null,null,null,null,null,null,0,0]
[157,null,null,null,null,null,null,null,null,0,0,null,null,null,null,null,null,null,null,null,null,null,null,null,0,0]
[158,null,null,null,null,null,null,null,null,0,0,null,null,null,null,null,null,null,null,null,null,null,null,null,0,0]
[159,null,null,null,null,null,null,null,null,0,0,null,null,null,null,null,null,null,null,null,null,null,null,null,0,0]
[160,null,null,null,null,null,null,null,null,0,0,null,null,null,null,null,null,null,null,null,null,null,null,null,0,0]
[161,null,null,null,null,null,null,null,null,0,0,null,null,null,null,null,null,null,null,null,null,null,null,null,0,0]
[162,null,null,null,null,null,null,null,null,0,0,null,null,null,null,null,null,null,null,null,null,null,null,null,0,0]
[163,null,null,null,null,null,null,null,null,0,0,null,null,null,null,null,null,null,null,null,null,null,null,null,0,0]
[164,null,null,null,null,null,null,null,null,0,0,null,null,null,null,null,null,null,null,null,null,null,null,null,0,0]
[165,null,null,null,null,null,null,null,null,0,0,null,null,null,null,null,null,null,null,null,null,null,null,null,0,0]
[166,null,null,null,null,null,null,null,null,0,0,null,null,null,null,null,null,null,null,null,null,null,null,null,0,0]
[167,null,null,null,null,null,null,null,null,0,0,null,null,null,null,null,null,null,null,null,null,null,null,null,0,0]
[168,null,null,null,null,null,null,null,null,0,0,null,null,null,null,null,null,null,null,null,null,null,null,null,0,0]
[169,null,null,null,null,null,null,null,null,0,0,null,null,null,null,null,null,null,null,null,null,null,null,null,0,0]
[170,null,null,null,null,null,null,null,null,0,0,null,null,null,null,null,null,null,null,null,null,null,null,null,0,0]
[171,null,null,null,null,null,null,null,null,0,0,null,null,null,null,null,null,null,null,null,null,null,null,null,0,0]
[172,null,null,null,null,null,null,null,null,0,0,null,null,null,null,null,null,null,null,null,null,null,null,null,0,0]
[173,null,null,null,null,null,null,null,null,0,0,null,null,null,null,null,null,null,null,null,null,null,null,null,0,0]
[174,null,null,null,null,null,null,null,null,0,0,null,null,null,null,null,null,null,null,null,null,null,null,null,0,0]
[175,null,null,null,null,null,null,null,null,0,0,null,null,null,null,null,null,null,null,null,null,null,null,null,0,0]
[176,null,null,null,null,null,null,null,null,0,0,null,null,null,null,null,null,null,null,null,null,null,null,null,0,0]
[177,null,null,null,null,null,null,null,null,0,0,null,null,null,null,null,null,null,null,null,null,null,null,null,0,0]
[178,null,null,null,null,null,null,null,null,0,0,null,null,null,null,null,null,null,null,null,null,null,null,null,0,0]
[179,null,null,null,null,null,null,null,null,0,0,null,null,null,null,null,null,null,null,null,null,null,null,null,0,0]
[180,null,null,null,null,null,null,null,null,0,0,null,null,null,null,null,null,null,null,null,null,null,null,null,0,0]
[181,null,null,null,null,null,null,null,null,0,0,null,null,null,null,null,null,null,null,null,null,null,null,null,0,0]
[182,null,null,null,null,null,null,null,null,0,0,null,null,null,null,null,null,null,null,null,null,null,null,null,0,0]
[183,null,null,null,null,null,null,null,null,0,0,null,null,null,null,null,null,null,null,null,null,null,null,null,0,0]
[184,null,null,null,null,null,null,null,null,0,0,null,null,null,null,null,null,null,null,null,null,null,null,null,0,0]
[185,null,null,null,null,null,null,null,null,0,0,null,null,null,null,null,null,null,null,null,null,null,null,null,0,0]
[186,null,null,null,null,null,null,null,null,0,0,null,null,null,null,null,null,null,null,null,null,null,null,null,0,0]
[187,null,null,null,null,null,null,null,null,0,0,null,null,null,null,null,null,null,null,null,null,null,null,null,0,0]
[188,null,null,null,null,null,null,null,null,0,0,null,null,null,null,null,null,null,null,null,null,null,null,null,0,0]
[189,null,null,null,null,null,null,null,null,0,0,null,null,null,null,null,null,null,null,null,null,null,null,null,0,0]
[190,null,null,null,null,null,null,null,null,0,0,null,null,null,null,null,null,null,null,null,null,null,null,null,0,0]
[191,null,null,null,null,null,null,null,null,0,0,null,null,null,null,null,null,null,null,null,null,null,null,null,0,0]
[192,null,null,null,null,null,null,null,null,0,0,null,null,null,null,null,null,null,null,null,null,null,null,null,0,0]
[193,null,null,null,null,null,null,null,null,0,{"$f":"F189-I189","v":0},null,null,null,null,null,null,null,null,null,null,null,null,null,{"$f":"IF(X189-F189>=0,X189-F189,\"\")","v":0},0]
[194,null,null,null,null,null,null,null,null,0,0,null,null,null,null,null,null,null,null,null,null,null,null,null,0,0]
[195,null,null,null,null,null,null,null,null,0,0,null,null,null,null,null,null,null,null,null,null,null,null,null,0,0]
[196,null,null,null,null,null,null,null,null,0,0,null,null,null,null,null,null,null,null,null,null,null,null,null,0,0]
[197,null,null,null,null,null,null,null,null,0,0,null,null,null,null,null,null,null,null,null,null,null,null,null,0,0]
[198,null,null,null,null,null,null,null,null,{"$f":"DATEDIF(C194,I194,\"y\")","v":0},0,null,null,null,null,null,null,null,null,null,null,null,null,null,0,0]
[199,null,null,null,null,null,null,null,null,0,0,null,null,null,null,null,null,null,null,null,null,null,null,null,0,0]
[200,null,null,null,null,null,null,null,null,0,0,null,null,null,null,null,null,null,null,null,null,null,null,null,0,0]
[201,null,null,null,null,null,null,null,null,0,0,null,null,null,null,null,null,null,null,null,null,null,null,null,0,0]
[202,null,null,null,null,null,null,null,null,0,0,null,null,null,null,null,null,null,null,null,null,null,null,null,0,0]
[203,null,null,null,null,null,null,null,null,0,0,null,null,null,null,null,null,null,null,null,null,null,null,null,0,0]
[204,null,null,null,null,null,null,null,null,0,0,null,null,null,null,null,null,null,null,null,null,null,null,null,0,0]
[205,null,null,null,null,null,null,null,null,0,0,null,null,null,null,null,null,null,null,null,null,null,null,null,0,0]
[206,null,null,null,null,null,null,null,null,0,0,null,null,null,null,null,null,null,null,null,null,null,null,null,0,0]
[207,null,null,null,null,null,null,null,null,0,0,null,null,null,null,null,null,null,null,null,null,null,null,null,0,0]
[208,null,null,null,null,null,null,null,null,0,0,null,null,null,null,null,null,null,null,null,null,null,null,null,0,0]
[209,null,null,null,null,null,null,null,null,0,0,null,null,null,null,null,null,null,null,null,null,null,null,null,0,{"$f":"IF(AF205-I205>=0,AF205-I205,\"\")","v":0}]
[210,null,null,null,null,null,null,null,null,0,0,null,null,null,null,null,null,null,null,null,null,null,null,null,0,0]
[211,null,null,null,null,null,null,null,null,0,0,null,null,null,null,null,null,null,null,null,null,null,null,null,0,0]
[212,null,null,null,null,null,null,null,null,0,0,null,null,null,null,null,null,null,null,null,null,null,null,null,0,0]
[213,null,null,null,null,null,null,null,null,0,0,null,null,null,null,null,null,null,null,null,null,null,null,null,0,0]
[214,null,null,null,null,null,null,null,null,0,0,null,null,null,null,null,null,null,null,null,null,null,null,null,0,0]
[215,null,null,null,null,null,null,null,null,0,0,null,null,null,null,null,null,null,null,null,null,null,null,null,0,0]
[216,null,null,null,null,null,null,null,null,0,0,null,null,null,null,null,null,null,null,null,null,null,null,null,0,0]
[217,null,null,null,null,null,null,null,null,0,0,null,null,null,null,null,null,null,null,null,null,null,null,null,0,0]
[218,null,null,null,null,null,null,null,null,0,0,null,null,null,null,null,null,null,null,null,null,null,null,null,0,0]
[219,null,null,null,null,null,null,null,null,0,0,null,null,null,null,null,null,null,null,null,null,null,null,null,0,0]
[220,null,null,null,null,null,null,null,null,0,0,null,null,null,null,null,null,null,null,null,null,null,null,null,0,0]
[221,null,null,null,null,null,null,null,null,0,0,null,null,null,null,null,null,null,null,null,null,null,null,null,0,0]
[222,null,null,null,null,null,null,null,null,0,0,null,null,null,null,null,null,null,null,null,null,null,null,null,0,0]
[223,null,null,null,null,null,null,null,null,0,0,null,null,null,null,null,null,null,null,null,null,null,null,null,0,0]
[224,null,null,null,null,null,null,null,null,0,0,null,null,null,null,null,null,null,null,null,null,null,null,null,0,0]
[225,null,null,null,null,null,null,null,null,0,0,null,null,null,null,null,null,null,null,null,null,null,null,null,0,0]
[226,null,null,null,null,null,null,null,null,0,0,null,null,null,null,null,null,null,null,null,null,null,null,null,0,0]
[227,null,null,null,null,null,null,null,null,0,0,null,null,null,null,null,null,null,null,null,null,null,null,null,0,0]
[228,null,null,null,null,null,null,null,null,0,0,null,null,null,null,null,null,null,null,null,null,null,null,null,0,0]
[229,null,null,null,null,null,null,null,null,0,0,null,null,null,null,null,null,null,null,null,null,null,null,null,0,0]
[230,null,null,null,null,null,null,null,null,0,0,null,null,null,null,null,null,null,null,null,null,null,null,null,0,0]
[231,null,null,null,null,null,null,null,null,0,0,null,null,null,null,null,null,null,null,null,null,null,null,null,0,0]
[232,null,null,null,null,null,null,null,null,0,0,null,null,null,null,null,null,null,null,null,null,null,null,null,0,0]
[233,null,null,null,null,null,null,null,null,0,0,null,null,null,null,null,null,null,null,null,null,null,null,null,0,0]
[234,null,null,null,null,null,null,null,null,0,0,null,null,null,null,null,null,null,null,null,null,null,null,null,0,0]
[235,null,null,null,null,null,null,null,null,0,0,null,null,null,null,null,null,null,null,null,null,null,null,null,0,0]
[236,null,null,null,null,null,null,null,null,0,0,null,null,null,null,null,null,null,null,null,null,null,null,null,0,0]
[237,null,null,null,null,null,null,null,null,0,0,null,null,null,null,null,null,null,null,null,null,null,null,null,0,0]
[238,null,null,null,null,null,null,null,null,0,0,null,null,null,null,null,null,null,null,null,null,null,null,null,0,0]
[239,null,null,null,null,null,null,null,null,0,0,null,null,null,null,null,null,null,null,null,null,null,null,null,0,0]
[240,null,null,null,null,null,null,null,null,0,0,null,null,null,null,null,null,null,null,null,null,null,null,null,0,0]
[241,null,null,null,null,null,null,null,null,0,0,null,null,null,null,null,null,null,null,null,null,null,null,null,0,0]
[242,null,null,null,null,null,null,null,null,0,0,null,null,null,null,null,null,null,null,null,null,null,null,null,0,0]
[243,null,null,null,null,null,null,null,null,0,0,null,null,null,null,null,null,null,null,null,null,null,null,null,0,0]
[244,null,null,null,null,null,null,null,null,0,0,null,null,null,null,null,null,null,null,null,null,null,null,null,0,0]
[245,null,null,null,null,null,null,null,null,0,0,null,null,null,null,null,null,null,null,null,null,null,null,null,0,0]
[246,null,null,null,null,null,null,null,null,0,0,null,null,null,null,null,null,null,null,null,null,null,null,null,0,0]
[247,null,null,null,null,null,null,null,null,0,0,null,null,null,null,null,null,null,null,null,null,null,null,null,0,0]
[248,null,null,null,null,null,null,null,null,0,0,null,null,null,null,null,null,null,null,null,null,null,null,null,0,0]
[249,null,null,null,null,null,null,null,null,0,0,null,null,null,null,null,null,null,null,null,null,null,null,null,0,0]
[250,null,null,null,null,null,null,null,null,0,0,null,null,null,null,null,null,null,null,null,null,null,null,null,0,0]
[251,null,null,null,null,null,null,null,null,0,0,null,null,null,null,null,null,null,null,null,null,null,null,null,0,0]
[252,null,null,null,null,null,null,null,null,0,0,null,null,null,null,null,null,null,null,null,null,null,null,null,0,0]
[253,null,null,null,null,null,null,null,null,0,0,null,null,null,null,null,null,null,null,null,null,null,null,null,0,0]
[254,null,null,null,null,null,null,null,null,0,0,null,null,null,null,null,null,null,null,null,null,null,null,null,0,0]
[255,null,null,null,null,null,null,null,null,0,0,null,null,null,null,null,null,null,null,null,null,null,null,null,0,0]
[256,null,null,null,null,null,null,null,null,0,0,null,null,null,null,null,null,null,null,null,null,null,null,null,0,0]
[257,null,null,null,null,null,null,null,null,0,{"$f":"F253-I253","v":0},null,null,null,null,null,null,null,null,null,null,null,null,null,{"$f":"IF(X253-F253>=0,X253-F253,\"\")","v":0},0]
[258,null,null,null,null,null,null,null,null,0,0,null,null,null,null,null,null,null,null,null,null,null,null,null,0,0]
[259,null,null,null,null,null,null,null,null,0,0,null,null,null,null,null,null,null,null,null,null,null,null,null,0,0]
[260,null,null,null,null,null,null,null,null,0,0,null,null,null,null,null,null,null,null,null,null,null,null,null,0,0]
[261,null,null,null,null,null,null,null,null,0,0,null,null,null,null,null,null,null,null,null,null,null,null,null,0,0]
[262,null,null,null,null,null,null,null,null,{"$f":"DATEDIF(C258,I258,\"y\")","v":0},0,null,null,null,null,null,null,null,null,null,null,null,null,null,0,0]
[263,null,null,null,null,null,null,null,null,0,0,null,null,null,null,null,null,null,null,null,null,null,null,null,0,0]
[264,null,null,null,null,null,null,null,null,0,0,null,null,null,null,null,null,null,null,null,null,null,null,null,0,0]
[265,null,null,null,null,null,null,null,null,0,0,null,null,null,null,null,null,null,null,null,null,null,null,null,0,0]
[266,null,null,null,null,null,null,null,null,0,0,null,null,null,null,null,null,null,null,null,null,null,null,null,0,0]
[267,null,null,null,null,null,null,null,null,0,0,null,null,null,null,null,null,null,null,null,null,null,null,null,0,0]
[268,null,null,null,null,null,null,null,null,0,0,null,null,null,null,null,null,null,null,null,null,null,null,null,0,0]
[269,null,null,null,null,null,null,null,null,0,0,null,null,null,null,null,null,null,null,null,null,null,null,null,0,0]
[270,null,null,null,null,null,null,null,null,0,0,null,null,null,null,null,null,null,null,null,null,null,null,null,0,0]
[271,null,null,null,null,null,null,null,null,0,0,null,null,null,null,null,null,null,null,null,null,null,null,null,0,0]
[272,null,null,null,null,null,null,null,null,0,0,null,null,null,null,null,null,null,null,null,null,null,null,null,0,0]
[273,null,null,null,null,null,null,null,null,0,0,null,null,null,null,null,null,null,null,null,null,null,null,null,0,{"$f":"IF(AF269-I269>=0,AF269-I269,\"\")","v":0}]
[274,null,null,null,null,null,null,null,null,0,0,null,null,null,null,null,null,null,null,null,null,null,null,null,0,0]
[275,null,null,null,null,null,null,null,null,0,0,null,null,null,null,null,null,null,null,null,null,null,null,null,0,0]
[276,null,null,null,null,null,null,null,null,0,0,null,null,null,null,null,null,null,null,null,null,null,null,null,0,0]
[277,null,null,null,null,null,null,null,null,0,0,null,null,null,null,null,null,null,null,null,null,null,null,null,0,0]
[278,null,null,null,null,null,null,null,null,0,0,null,null,null,null,null,null,null,null,null,null,null,null,null,0,0]
[279,null,null,null,null,null,null,null,null,0,0,null,null,null,null,null,null,null,null,null,null,null,null,null,0,0]
[280,null,null,null,null,null,null,null,null,0,0,null,null,null,null,null,null,null,null,null,null,null,null,null,0,0]
[281,null,null,null,null,null,null,null,null,0,0,null,null,null,null,null,null,null,null,null,null,null,null,null,0,0]
[282,null,null,null,null,null,null,null,null,0,0,null,null,null,null,null,null,null,null,null,null,null,null,null,0,0]
[283,null,null,null,null,null,null,null,null,0,0,null,null,null,null,null,null,null,null,null,null,null,null,null,0,0]
[284,null,null,null,null,null,null,null,null,0,0,null,null,null,null,null,null,null,null,null,null,null,null,null,0,0]
[285,null,null,null,null,null,null,null,null,0,0,null,null,null,null,null,null,null,null,null,null,null,null,null,0,0]
[286,null,null,null,null,null,null,null,null,0,0,null,null,null,null,null,null,null,null,null,null,null,null,null,0,0]
[287,null,null,null,null,null,null,null,null,0,0,null,null,null,null,null,null,null,null,null,null,null,null,null,0,0]
[288,null,null,null,null,null,null,null,null,0,0,null,null,null,null,null,null,null,null,null,null,null,null,null,0,0]
[289,null,null,null,null,null,null,null,null,0,0,null,null,null,null,null,null,null,null,null,null,null,null,null,0,0]
[290,null,null,null,null,null,null,null,null,0,0,null,null,null,null,null,null,null,null,null,null,null,null,null,0,0]
[291,null,null,null,null,null,null,null,null,0,0,null,null,null,null,null,null,null,null,null,null,null,null,null,0,0]
[292,null,null,null,null,null,null,null,null,0,0,null,null,null,null,null,null,null,null,null,null,null,null,null,0,0]
[293,null,null,null,null,null,null,null,null,0,0,null,null,null,null,null,null,null,null,null,null,null,null,null,0,0]
[294,null,null,null,null,null,null,null,null,0,0,null,null,null,null,null,null,null,null,null,null,null,null,null,0,0]
[295,null,null,null,null,null,null,null,null,0,0,null,null,null,null,null,null,null,null,null,null,null,null,null,0,0]
[296,null,null,null,null,null,null,null,null,0,0,null,null,null,null,null,null,null,null,null,null,null,null,null,0,0]
[297,null,null,null,null,null,null,null,null,0,0,null,null,null,null,null,null,null,null,null,null,null,null,null,0,0]
[298,null,null,null,null,null,null,null,null,0,0,null,null,null,null,null,null,null,null,null,null,null,null,null,0,0]
[299,null,null,null,null,null,null,null,null,0,0,null,null,null,null,null,null,null,null,null,null,null,null,null,0,0]
[300,null,null,null,null,null,null,null,null,0,0,null,null,null,null,null,null,null,null,null,null,null,null,null,0,0]
[301,null,null,null,null,null,null,null,null,0,0,null,null,null,null,null,null,null,null,null,null,null,null,null,0,0]
[302,null,null,null,null,null,null,null,null,0,0,null,null,null,null,null,null,null,null,null,null,null,null,null,0,0]
[303,null,null,null,null,null,null,null,null,0,0,null,null,null,null,null,null,null,null,null,null,null,null,null,0,0]
[304,null,null,null,null,null,null,null,null,0,0,null,null,null,null,null,null,null,null,null,null,null,null,null,0,0]
[305,null,null,null,null,null,null,null,null,0,0,null,null,null,null,null,null,null,null,null,null,null,null,null,0,0]
[306,null,null,null,null,null,null,null,null,0,0,null,null,null,null,null,null,null,null,null,null,null,null,null,0,0]
[307,null,null,null,null,null,null,null,null,0,0,null,null,null,null,null,null,null,null,null,null,null,null,null,0,0]
[308,null,null,null,null,null,null,null,null,0,0,null,null,null,null,null,null,null,null,null,null,null,null,null,0,0]
[309,null,null,null,null,null,null,null,null,0,0,null,null,null,null,null,null,null,null,null,null,null,null,null,0,0]
[310,null,null,null,null,null,null,null,null,0,0,null,null,null,null,null,null,null,null,null,null,null,null,null,0,0]
[311,null,null,null,null,null,null,null,null,0,0,null,null,null,null,null,null,null,null,null,null,null,null,null,0,0]
[312,null,null,null,null,null,null,null,null,0,0,null,null,null,null,null,null,null,null,null,null,null,null,null,0,0]
[313,null,null,null,null,null,null,null,null,0,0,null,null,null,null,null,null,null,null,null,null,null,null,null,0,0]
[314,null,null,null,null,null,null,null,null,0,0,null,null,null,null,null,null,null,null,null,null,null,null,null,0,0]
[315,null,null,null,null,null,null,null,null,0,0,null,null,null,null,null,null,null,null,null,null,null,null,null,0,0]
[316,null,null,null,null,null,null,null,null,0,0,null,null,null,null,null,null,null,null,null,null,null,null,null,0,0]
[317,null,null,null,null,null,null,null,null,0,0,null,null,null,null,null,null,null,null,null,null,null,null,null,0,0]
[318,null,null,null,null,null,null,null,null,0,0,null,null,null,null,null,null,null,null,null,null,null,null,null,0,0]
[319,null,null,null,null,null,null,null,null,0,0,null,null,null,null,null,null,null,null,null,null,null,null,null,0,0]
[320,null,null,null,null,null,null,null,null,0,0,null,null,null,null,null,null,null,null,null,null,null,null,null,0,0]
[321,null,null,null,null,null,null,null,null,0,{"$f":"F317-I317","v":0},null,null,null,null,null,null,null,null,null,null,null,null,null,{"$f":"IF(X317-F317>=0,X317-F317,\"\")","v":0},0]
[322,null,null,null,null,null,null,null,null,0,0,null,null,null,null,null,null,null,null,null,null,null,null,null,0,0]
[323,null,null,null,null,null,null,null,null,0,0,null,null,null,null,null,null,null,null,null,null,null,null,null,0,0]
[324,null,null,null,null,null,null,null,null,0,0,null,null,null,null,null,null,null,null,null,null,null,null,null,0,0]
[325,null,null,null,null,null,null,null,null,0,0,null,null,null,null,null,null,null,null,null,null,null,null,null,0,0]
[326,null,null,null,null,null,null,null,null,{"$f":"DATEDIF(C322,I322,\"y\")","v":0},0,null,null,null,null,null,null,null,null,null,null,null,null,null,0,0]
[327,null,null,null,null,null,null,null,null,0,0,null,null,null,null,null,null,null,null,null,null,null,null,null,0,0]
[328,null,null,null,null,null,null,null,null,0,0,null,null,null,null,null,null,null,null,null,null,null,null,null,0,0]
[329,null,null,null,null,null,null,null,null,0,0,null,null,null,null,null,null,null,null,null,null,null,null,null,0,0]
[330,null,null,null,null,null,null,null,null,0,0,null,null,null,null,null,null,null,null,null,null,null,null,null,0,0]
[331,null,null,null,null,null,null,null,null,0,0,null,null,null,null,null,null,null,null,null,null,null,null,null,0,0]
[332,null,null,null,null,null,null,null,null,0,0,null,null,null,null,null,null,null,null,null,null,null,null,null,0,0]
[333,null,null,null,null,null,null,null,null,0,0,null,null,null,null,null,null,null,null,null,null,null,null,null,0,0]
[334,null,null,null,null,null,null,null,null,0,0,null,null,null,null,null,null,null,null,null,null,null,null,null,0,0]
[335,null,null,null,null,null,null,null,null,0,0,null,null,null,null,null,null,null,null,null,null,null,null,null,0,0]
[336,null,null,null,null,null,null,null,null,0,0,null,null,null,null,null,null,null,null,null,null,null,null,null,0,0]
[337,null,null,null,null,null,null,null,null,0,0,null,null,null,null,null,null,null,null,null,null,null,null,null,0,{"$f":"IF(AF333-I333>=0,AF333-I333,\"\")","v":0}]
[338,null,null,null,null,null,null,null,null,0,0,null,null,null,null,null,null,null,null,null,null,null,null,null,0,0]
[339,null,null,null,null,null,null,null,null,0,0,null,null,null,null,null,null,null,null,null,null,null,null,null,0,0]
[340,null,null,null,null,null,null,null,null,0,0,null,null,null,null,null,null,null,null,null,null,null,null,null,0,0]
[341,null,null,null,null,null,null,null,null,0,0,null,null,null,null,null,null,null,null,null,null,null,null,null,0,0]
[342,null,null,null,null,null,null,null,null,0,0,null,null,null,null,null,null,null,null,null,null,null,null,null,0,0]
[343,null,null,null,null,null,null,null,null,0,0,null,null,null,null,null,null,null,null,null,null,null,null,null,0,0]
[344,null,null,null,null,null,null,null,null,0,0,null,null,null,null,null,null,null,null,null,null,null,null,null,0,0]
[345,null,null,null,null,null,null,null,null,0,0,null,null,null,null,null,null,null,null,null,null,null,null,null,0,0]
[346,null,null,null,null,null,null,null,null,0,0,null,null,null,null,null,null,null,null,null,null,null,null,null,0,0]
[347,null,null,null,null,null,null,null,null,0,0,null,null,null,null,null,null,null,null,null,null,null,null,null,0,0]
[348,null,null,null,null,null,null,null,null,0,0,null,null,null,null,null,null,null,null,null,null,null,null,null,0,0]
[349,null,null,null,null,null,null,null,null,0,0,null,null,null,null,null,null,null,null,null,null,null,null,null,0,0]
[350,null,null,null,null,null,null,null,null,0,0,null,null,null,null,null,null,null,null,null,null,null,null,null,0,0]
[351,null,null,null,null,null,null,null,null,0,0,null,null,null,null,null,null,null,null,null,null,null,null,null,0,0]
[352,null,null,null,null,null,null,null,null,0,0,null,null,null,null,null,null,null,null,null,null,null,null,null,0,0]
[353,null,null,null,null,null,null,null,null,0,0,null,null,null,null,null,null,null,null,null,null,null,null,null,0,0]
[354,null,null,null,null,null,null,null,null,0,0,null,null,null,null,null,null,null,null,null,null,null,null,null,0,0]
[355,null,null,null,null,null,null,null,null,0,0,null,null,null,null,null,null,null,null,null,null,null,null,null,0,0]
[356,null,null,null,null,null,null,null,null,0,0,null,null,null,null,null,null,null,null,null,null,null,null,null,0,0]
[357,null,null,null,null,null,null,null,null,0,0,null,null,null,null,null,null,null,null,null,null,null,null,null,0,0]
[358,null,null,null,null,null,null,null,null,0,0,null,null,null,null,null,null,null,null,null,null,null,null,null,0,0]
[359,null,null,null,null,null,null,null,null,0,0,null,null,null,null,null,null,null,null,null,null,null,null,null,0,0]
[360,null,null,null,null,null,null,null,null,0,0,null,null,null,null,null,null,null,null,null,null,null,null,null,0,0]
[361,null,null,null,null,null,null,null,null,0,0,null,null,null,null,null,null,null,null,null,null,null,null,null,0,0]
[362,null,null,null,null,null,null,null,null,0,0,null,null,null,null,null,null,null,null,null,null,null,null,null,0,0]
[363,null,null,null,null,null,null,null,null,0,0,null,null,null,null,null,null,null,null,null,null,null,null,null,0,0]
[364,null,null,null,null,null,null,null,null,0,0,null,null,null,null,null,null,null,null,null,null,null,null,null,0,0]
[365,null,null,null,null,null,null,null,null,0,0,null,null,null,null,null,null,null,null,null,null,null,null,null,0,0]
[366,null,null,null,null,null,null,null,null,0,0,null,null,null,null,null,null,null,null,null,null,null,null,null,0,0]
[367,null,null,null,null,null,null,null,null,0,0,null,null,null,null,null,null,null,null,null,null,null,null,null,0,0]
[368,null,null,null,null,null,null,null,null,0,0,null,null,null,null,null,null,null,null,null,null,null,null,null,0,0]
[369,null,null,null,null,null,null,null,null,0,0,null,null,null,null,null,null,null,null,null,null,null,null,null,0,0]
[370,null,null,null,null,null,null,null,null,0,0,null,null,null,null,null,null,null,null,null,null,null,null,null,0,0]
[371,null,null,null,null,null,null,null,null,0,0,null,null,null,null,null,null,null,null,null,null,null,null,null,0,0]
[372,null,null,null,null,null,null,null,null,0,0,null,null,null,null,null,null,null,null,null,null,null,null,null,0,0]
[373,null,null,null,null,null,null,null,null,0,0,null,null,null,null,null,null,null,null,null,null,null,null,null,0,0]
[374,null,null,null,null,null,null,null,null,0,0,null,null,null,null,null,null,null,null,null,null,null,null,null,0,0]
[375,null,null,null,null,null,null,null,null,0,0,null,null,null,null,null,null,null,null,null,null,null,null,null,0,0]
[376,null,null,null,null,null,null,null,null,0,0,null,null,null,null,null,null,null,null,null,null,null,null,null,0,0]
[377,null,null,null,null,null,null,null,null,0,0,null,null,null,null,null,null,null,null,null,null,null,null,null,0,0]
[378,null,null,null,null,null,null,null,null,0,0,null,null,null,null,null,null,null,null,null,null,null,null,null,0,0]
[379,null,null,null,null,null,null,null,null,0,0,null,null,null,null,null,null,null,null,null,null,null,null,null,0,0]
[380,null,null,null,null,null,null,null,null,0,0,null,null,null,null,null,null,null,null,null,null,null,null,null,0,0]
[381,null,null,null,null,null,null,null,null,0,0,null,null,null,null,null,null,null,null,null,null,null,null,null,0,0]
[382,null,null,null,null,null,null,null,null,0,0,null,null,null,null,null,null,null,null,null,null,null,null,null,0,0]
[383,null,null,null,null,null,null,null,null,0,0,null,null,null,null,null,null,null,null,null,null,null,null,null,0,0]
[384,null,null,null,null,null,null,null,null,0,0,null,null,null,null,null,null,null,null,null,null,null,null,null,0,0]
[385,null,null,null,null,null,null,null,null,0,{"$f":"F381-I381","v":0},null,null,null,null,null,null,null,null,null,null,null,null,null,{"$f":"IF(X381-F381>=0,X381-F381,\"\")","v":0},0]
[386,null,null,null,null,null,null,null,null,0,0,null,null,null,null,null,null,null,null,null,null,null,null,null,0,0]
[387,null,null,null,null,null,null,null,null,0,0,null,null,null,null,null,null,null,null,null,null,null,null,null,0,0]
[388,null,null,null,null,null,null,null,null,0,0,null,null,null,null,null,null,null,null,null,null,null,null,null,0,0]
[389,null,null,null,null,null,null,null,null,0,0,null,null,null,null,null,null,null,null,null,null,null,null,null,0,0]
[390,null,null,null,null,null,null,null,null,{"$f":"DATEDIF(C386,I386,\"y\")","v":0},0,null,null,null,null,null,null,null,null,null,null,null,null,null,0,0]
[391,null,null,null,null,null,null,null,null,0,0,null,null,null,null,null,null,null,null,null,null,null,null,null,0,0]
[392,null,null,null,null,null,null,null,null,0,0,null,null,null,null,null,null,null,null,null,null,null,null,null,0,0]
[393,null,null,null,null,null,null,null,null,0,0,null,null,null,null,null,null,null,null,null,null,null,null,null,0,0]
[394,null,null,null,null,null,null,null,null,0,0,null,null,null,null,null,null,null,null,null,null,null,null,null,0,0]
[395,null,null,null,null,null,null,null,null,0,0,null,null,null,null,null,null,null,null,null,null,null,null,null,0,0]
[396,null,null,null,null,null,null,null,null,0,0,null,null,null,null,null,null,null,null,null,null,null,null,null,0,0]
[397,null,null,null,null,null,null,null,null,0,0,null,null,null,null,null,null,null,null,null,null,null,null,null,0,0]
[398,null,null,null,null,null,null,null,null,0,0,null,null,null,null,null,null,null,null,null,null,null,null,null,0,0]
[399,null,null,null,null,null,null,null,null,0,0,null,null,null,null,null,null,null,null,null,null,null,null,null,0,0]
[400,null,null,null,null,null,null,null,null,0,0,null,null,null,null,null,null,null,null,null,null,null,null,null,0,0]
[401,null,null,null,null,null,null,null,null,0,0,null,null,null,null,null,null,null,null,null,null,null,null,null,0,{"$f":"IF(AF397-I397>=0,AF397-I397,\"\")","v":0}]
[402,null,null,null,null,null,null,null,null,0,0,null,null,null,null,null,null,null,null,null,null,null,null,null,0,0]
[403,null,null,null,null,null,null,null,null,0,0,null,null,null,null,null,null,null,null,null,null,null,null,null,0,0]
[404,null,null,null,null,null,null,null,null,0,0,null,null,null,null,null,null,null,null,null,null,null,null,null,0,0]
[405,null,null,null,null,null,null,null,null,0,0,null,null,null,null,null,null,null,null,null,null,null,null,null,0,0]
[406,null,null,null,null,null,null,null,null,0,0,null,null,null,null,null,null,null,null,null,null,null,null,null,0,0]
[407,null,null,null,null,null,null,null,null,0,0,null,null,null,null,null,null,null,null,null,null,null,null,null,0,0]
[408,null,null,null,null,null,null,null,null,0,0,null,null,null,null,null,null,null,null,null,null,null,null,null,0,0]
[409,null,null,null,null,null,null,null,null,0,0,null,null,null,null,null,null,null,null,null,null,null,null,null,0,0]
[410,null,null,null,null,null,null,null,null,0,0,null,null,null,null,null,null,null,null,null,null,null,null,null,0,0]
[411,null,null,null,null,null,null,null,null,0,0,null,null,null,null,null,null,null,null,null,null,null,null,null,0,0]
[412,null,null,null,null,null,null,null,null,0,0,null,null,null,null,null,null,null,null,null,null,null,null,null,0,0]
[413,null,null,null,null,null,null,null,null,0,0,null,null,null,null,null,null,null,null,null,null,null,null,null,0,0]
[414,null,null,null,null,null,null,null,null,0,0,null,null,null,null,null,null,null,null,null,null,null,null,null,0,0]
[415,null,null,null,null,null,null,null,null,0,0,null,null,null,null,null,null,null,null,null,null,null,null,null,0,0]
[416,null,null,null,null,null,null,null,null,0,0,null,null,null,null,null,null,null,null,null,null,null,null,null,0,0]
[417,null,null,null,null,null,null,null,null,0,0,null,null,null,null,null,null,null,null,null,null,null,null,null,0,0]
[418,null,null,null,null,null,null,null,null,0,0,null,null,null,null,null,null,null,null,null,null,null,null,null,0,0]
[419,null,null,null,null,null,null,null,null,0,0,null,null,null,null,null,null,null,null,null,null,null,null,null,0,0]
[420,null,null,null,null,null,null,null,null,0,0,null,null,null,null,null,null,null,null,null,null,null,null,null,0,0]
[421,null,null,null,null,null,null,null,null,0,0,null,null,null,null,null,null,null,null,null,null,null,null,null,0,0]
[422,null,null,null,null,null,null,null,null,0,0,null,null,null,null,null,null,null,null,null,null,null,null,null,0,0]
[423,null,null,null,null,null,null,null,null,0,0,null,null,null,null,null,null,null,null,null,null,null,null,null,0,0]
[424,null,null,null,null,null,null,null,null,0,0,null,null,null,null,null,null,null,null,null,null,null,null,null,0,0]
[425,null,null,null,null,null,null,null,null,0,0,null,null,null,null,null,null,null,null,null,null,null,null,null,0,0]
[426,null,null,null,null,null,null,null,null,0,0,null,null,null,null,null,null,null,null,null,null,null,null,null,0,0]
[427,null,null,null,null,null,null,null,null,0,0,null,null,null,null,null,null,null,null,null,null,null,null,null,0,0]
[428,null,null,null,null,null,null,null,null,0,0,null,null,null,null,null,null,null,null,null,null,null,null,null,0,0]
[429,null,null,null,null,null,null,null,null,0,0,null,null,null,null,null,null,null,null,null,null,null,null,null,0,0]
[430,null,null,null,null,null,null,null,null,0,0,null,null,null,null,null,null,null,null,null,null,null,null,null,0,0]
[431,null,null,null,null,null,null,null,null,0,0,null,null,null,null,null,null,null,null,null,null,null,null,null,0,0]
[432,null,null,null,null,null,null,null,null,0,0,null,null,null,null,null,null,null,null,null,null,null,null,null,0,0]
[433,null,null,null,null,null,null,null,null,0,0,null,null,null,null,null,null,null,null,null,null,null,null,null,0,0]
[434,null,null,null,null,null,null,null,null,0,0,null,null,null,null,null,null,null,null,null,null,null,null,null,0,0]
[435,null,null,null,null,null,null,null,null,0,0,null,null,null,null,null,null,null,null,null,null,null,null,null,0,0]
[436,null,null,null,null,null,null,null,null,0,0,null,null,null,null,null,null,null,null,null,null,null,null,null,0,0]
[437,null,null,null,null,null,null,null,null,0,0,null,null,null,null,null,null,null,null,null,null,null,null,null,0,0]
[438,null,null,null,null,null,null,null,null,0,0,null,null,null,null,null,null,null,null,null,null,null,null,null,0,0]
[439,null,null,null,null,null,null,null,null,0,0,null,null,null,null,null,null,null,null,null,null,null,null,null,0,0]
[440,null,null,null,null,null,null,null,null,0,0,null,null,null,null,null,null,null,null,null,null,null,null,null,0,0]
[441,null,null,null,null,null,null,null,null,0,0,null,null,null,null,null,null,null,null,null,null,null,null,null,0,0]
[442,null,null,null,null,null,null,null,null,0,0,null,null,null,null,null,null,null,null,null,null,null,null,null,0,0]
[443,null,null,null,null,null,null,null,null,0,0,null,null,null,null,null,null,null,null,null,null,null,null,null,0,0]
[444,null,null,null,null,null,null,null,null,0,0,null,null,null,null,null,null,null,null,null,null,null,null,null,0,0]
[445,null,null,null,null,null,null,null,null,0,0,null,null,null,null,null,null,null,null,null,null,null,null,null,0,0]
[446,null,null,null,null,null,null,null,null,0,0,null,null,null,null,null,null,null,null,null,null,null,null,null,0,0]
[447,null,null,null,null,null,null,null,null,0,0,null,null,null,null,null,null,null,null,null,null,null,null,null,0,0]
[448,null,null,null,null,null,null,null,null,0,0,null,null,null,null,null,null,null,null,null,null,null,null,null,0,0]
[449,null,null,null,null,null,null,null,null,0,{"$f":"F445-I445","v":0},null,null,null,null,null,null,null,null,null,null,null,null,null,{"$f":"IF(X445-F445>=0,X445-F445,\"\")","v":0},0]
[450,null,null,null,null,null,null,null,null,0,0,null,null,null,null,null,null,null,null,null,null,null,null,null,0,0]
[451,null,null,null,null,null,null,null,null,0,0,null,null,null,null,null,null,null,null,null,null,null,null,null,0,0]
[452,null,null,null,null,null,null,null,null,0,0,null,null,null,null,null,null,null,null,null,null,null,null,null,0,0]
[453,null,null,null,null,null,null,null,null,0,0,null,null,null,null,null,null,null,null,null,null,null,null,null,0,0]
[454,null,null,null,null,null,null,null,null,{"$f":"DATEDIF(C450,I450,\"y\")","v":0},0,null,null,null,null,null,null,null,null,null,null,null,null,null,0,0]
[455,null,null,null,null,null,null,null,null,0,0,null,null,null,null,null,null,null,null,null,null,null,null,null,0,0]
[456,null,null,null,null,null,null,null,null,0,0,null,null,null,null,null,null,null,null,null,null,null,null,null,0,0]
[457,null,null,null,null,null,null,null,null,0,0,null,null,null,null,null,null,null,null,null,null,null,null,null,0,0]
[458,null,null,null,null,null,null,null,null,0,0,null,null,null,null,null,null,null,null,null,null,null,null,null,0,0]
[459,null,null,null,null,null,null,null,null,0,0,null,null,null,null,null,null,null,null,null,null,null,null,null,0,0]
[460,null,null,null,null,null,null,null,null,0,0,null,null,null,null,null,null,null,null,null,null,null,null,null,0,0]
[461,null,null,null,null,null,null,null,null,0,0,null,null,null,null,null,null,null,null,null,null,null,null,null,0,0]
[462,null,null,null,null,null,null,null,null,0,0,null,null,null,null,null,null,null,null,null,null,null,null,null,0,0]
[463,null,null,null,null,null,null,null,null,0,0,null,null,null,null,null,null,null,null,null,null,null,null,null,0,0]
[464,null,null,null,null,null,null,null,null,0,0,null,null,null,null,null,null,null,null,null,null,null,null,null,0,0]
[465,null,null,null,null,null,null,null,null,0,0,null,null,null,null,null,null,null,null,null,null,null,null,null,0,{"$f":"IF(AF461-I461>=0,AF461-I461,\"\")","v":0}]
[466,null,null,null,null,null,null,null,null,0,0,null,null,null,null,null,null,null,null,null,null,null,null,null,0,0]
[467,null,null,null,null,null,null,null,null,0,0,null,null,null,null,null,null,null,null,null,null,null,null,null,0,0]
[468,null,null,null,null,null,null,null,null,0,0,null,null,null,null,null,null,null,null,null,null,null,null,null,0,0]
[469,null,null,null,null,null,null,null,null,0,0,null,null,null,null,null,null,null,null,null,null,null,null,null,0,0]
[470,null,null,null,null,null,null,null,null,0,0,null,null,null,null,null,null,null,null,null,null,null,null,null,0,0]
[471,null,null,null,null,null,null,null,null,0,0,null,null,null,null,null,null,null,null,null,null,null,null,null,0,0]
[472,null,null,null,null,null,null,null,null,0,0,null,null,null,null,null,null,null,null,null,null,null,null,null,0,0]
[473,null,null,null,null,null,null,null,null,0,0,null,null,null,null,null,null,null,null,null,null,null,null,null,0,0]
[474,null,null,null,null,null,null,null,null,0,0,null,null,null,null,null,null,null,null,null,null,null,null,null,0,0]
[475,null,null,null,null,null,null,null,null,0,0,null,null,null,null,null,null,null,null,null,null,null,null,null,0,0]
[476,null,null,null,null,null,null,null,null,0,0,null,null,null,null,null,null,null,null,null,null,null,null,null,0,0]
[477,null,null,null,null,null,null,null,null,0,0,null,null,null,null,null,null,null,null,null,null,null,null,null,0,0]
[478,null,null,null,null,null,null,null,null,0,0,null,null,null,null,null,null,null,null,null,null,null,null,null,0,0]
[479,null,null,null,null,null,null,null,null,0,0,null,null,null,null,null,null,null,null,null,null,null,null,null,0,0]
[480,null,null,null,null,null,null,null,null,0,0,null,null,null,null,null,null,null,null,null,null,null,null,null,0,0]
[481,null,null,null,null,null,null,null,null,0,0,null,null,null,null,null,null,null,null,null,null,null,null,null,0,0]
[482,null,null,null,null,null,null,null,null,0,0,null,null,null,null,null,null,null,null,null,null,null,null,null,0,0]
[483,null,null,null,null,null,null,null,null,0,0,null,null,null,null,null,null,null,null,null,null,null,null,null,0,0]
[484,null,null,null,null,null,null,null,null,0,0,null,null,null,null,null,null,null,null,null,null,null,null,null,0,0]
[485,null,null,null,null,null,null,null,null,0,0,null,null,null,null,null,null,null,null,null,null,null,null,null,0,0]
[486,null,null,null,null,null,null,null,null,0,0,null,null,null,null,null,null,null,null,null,null,null,null,null,0,0]
[487,null,null,null,null,null,null,null,null,0,0,null,null,null,null,null,null,null,null,null,null,null,null,null,0,0]
[488,null,null,null,null,null,null,null,null,0,0,null,null,null,null,null,null,null,null,null,null,null,null,null,0,0]
[489,null,null,null,null,null,null,null,null,0,0,null,null,null,null,null,null,null,null,null,null,null,null,null,0,0]
[490,null,null,null,null,null,null,null,null,0,0,null,null,null,null,null,null,null,null,null,null,null,null,null,0,0]
[491,null,null,null,null,null,null,null,null,0,0,null,null,null,null,null,null,null,null,null,null,null,null,null,0,0]
[492,null,null,null,null,null,null,null,null,0,0,null,null,null,null,null,null,null,null,null,null,null,null,null,0,0]
[493,null,null,null,null,null,null,null,null,0,0,null,null,null,null,null,null,null,null,null,null,null,null,null,0,0]
[494,null,null,null,null,null,null,null,null,0,0,null,null,null,null,null,null,null,null,null,null,null,null,null,0,0]
[495,null,null,null,null,null,null,null,null,0,0,null,null,null,null,null,null,null,null,null,null,null,null,null,0,0]
[496,null,null,null,null,null,null,null,null,0,0,null,null,null,null,null,null,null,null,null,null,null,null,null,0,0]
[497,null,null,null,null,null,null,null,null,0,0,null,null,null,null,null,null,null,null,null,null,null,null,null,0,0]
[498,null,null,null,null,null,null,null,null,0,0,null,null,null,null,null,null,null,null,null,null,null,null,null,0,0]
[499,null,null,null,null,null,null,null,null,0,0,null,null,null,null,null,null,null,null,null,null,null,null,null,0,0]
[500,null,null,null,null,null,null,null,null,0,0,null,null,null,null,null,null,null,null,null,null,null,null,null,0,0]
[501,null,null,null,null,null,null,null,null,0,0,null,null,null,null,null,null,null,null,null,null,null,null,null,0,0]
[502,null,null,null,null,null,null,null,null,0,0,null,null,null,null,null,null,null,null,null,null,null,null,null,0,0]
[503,null,null,null,null,null,null,null,null,0,0,null,null,null,null,null,null,null,null,null,null,null,null,null,0,0]
[504,null,null,null,null,null,null,null,null,0,0,null,null,null,null,null,null,null,null,null,null,null,null,null,0,0]
[505,null,null,null,null,null,null,null,null,0,0,null,null,null,null,null,null,null,null,null,null,null,null,null,0,0]
[506,null,null,null,null,null,null,null,null,0,0,null,null,null,null,null,null,null,null,null,null,null,null,null,0,0]
[507,null,null,null,null,null,null,null,null,0,0,null,null,null,null,null,null,null,null,null,null,null,null,null,0,0]
[508,null,null,null,null,null,null,null,null,0,0,null,null,null,null,null,null,null,null,null,null,null,null,null,0,0]
[509,null,null,null,null,null,null,null,null,0,0,null,null,null,null,null,null,null,null,null,null,null,null,null,0,0]
[510,null,null,null,null,null,null,null,null,0,0,null,null,null,null,null,null,null,null,null,null,null,null,null,0,0]
[511,null,null,null,null,null,null,null,null,0,0,null,null,null,null,null,null,null,null,null,null,null,null,null,0,0]
[512,null,null,null,null,null,null,null,null,0,0,null,null,null,null,null,null,null,null,null,null,null,null,null,0,0]
[513,null,null,null,null,null,null,null,null,0,{"$f":"F509-I509","v":0},null,null,null,null,null,null,null,null,null,null,null,null,null,{"$f":"IF(X509-F509>=0,X509-F509,\"\")","v":0},0]
[514,null,null,null,null,null,null,null,null,0,0,null,null,null,null,null,null,null,null,null,null,null,null,null,0,0]
[515,null,null,null,null,null,null,null,null,0,0,null,null,null,null,null,null,null,null,null,null,null,null,null,0,0]
[516,null,null,null,null,null,null,null,null,0,0,null,null,null,null,null,null,null,null,null,null,null,null,null,0,0]
[517,null,null,null,null,null,null,null,null,0,0,null,null,null,null,null,null,null,null,null,null,null,null,null,0,0]
[518,null,null,null,null,null,null,null,null,{"$f":"DATEDIF(C514,I514,\"y\")","v":0},0,null,null,null,null,null,null,null,null,null,null,null,null,null,0,0]
[519,null,null,null,null,null,null,null,null,0,0,null,null,null,null,null,null,null,null,null,null,null,null,null,0,0]
[520,null,null,null,null,null,null,null,null,0,0,null,null,null,null,null,null,null,null,null,null,null,null,null,0,0]
[521,null,null,null,null,null,null,null,null,0,0,null,null,null,null,null,null,null,null,null,null,null,null,null,0,0]
[522,null,null,null,null,null,null,null,null,0,0,null,null,null,null,null,null,null,null,null,null,null,null,null,0,0]
[523,null,null,null,null,null,null,null,null,0,0,null,null,null,null,null,null,null,null,null,null,null,null,null,0,0]
[524,null,null,null,null,null,null,null,null,0,0,null,null,null,null,null,null,null,null,null,null,null,null,null,0,0]
[525,null,null,null,null,null,null,null,null,0,0,null,null,null,null,null,null,null,null,null,null,null,null,null,0,0]
[526,null,null,null,null,null,null,null,null,0,0,null,null,null,null,null,null,null,null,null,null,null,null,null,0,0]
[527,null,null,null,null,null,null,null,null,0,0,null,null,null,null,null,null,null,null,null,null,null,null,null,0,0]
[528,null,null,null,null,null,null,null,null,0,0,null,null,null,null,null,null,null,null,null,null,null,null,null,0,0]
[529,null,null,null,null,null,null,null,null,0,0,null,null,null,null,null,null,null,null,null,null,null,null,null,0,{"$f":"IF(AF525-I525>=0,AF525-I525,\"\")","v":0}]
[530,null,null,null,null,null,null,null,null,0,0,null,null,null,null,null,null,null,null,null,null,null,null,null,0,0]
[531,null,null,null,null,null,null,null,null,0,0,null,null,null,null,null,null,null,null,null,null,null,null,null,0,0]
[532,null,null,null,null,null,null,null,null,0,0,null,null,null,null,null,null,null,null,null,null,null,null,null,0,0]
[533,null,null,null,null,null,null,null,null,0,0,null,null,null,null,null,null,null,null,null,null,null,null,null,0,0]
[534,null,null,null,null,null,null,null,null,0,0,null,null,null,null,null,null,null,null,null,null,null,null,null,0,0]
[535,null,null,null,null,null,null,null,null,0,0,null,null,null,null,null,null,null,null,null,null,null,null,null,0,0]
[536,null,null,null,null,null,null,null,null,0,0,null,null,null,null,null,null,null,null,null,null,null,null,null,0,0]
[537,null,null,null,null,null,null,null,null,0,0,null,null,null,null,null,null,null,null,null,null,null,null,null,0,0]
[538,null,null,null,null,null,null,null,null,0,0,null,null,null,null,null,null,null,null,null,null,null,null,null,0,0]
[539,null,null,null,null,null,null,null,null,0,0,null,null,null,null,null,null,null,null,null,null,null,null,null,0,0]
[540,null,null,null,null,null,null,null,null,0,0,null,null,null,null,null,null,null,null,null,null,null,null,null,0,0]
[541,null,null,null,null,null,null,null,null,0,0,null,null,null,null,null,null,null,null,null,null,null,null,null,0,0]
[542,null,null,null,null,null,null,null,null,0,0,null,null,null,null,null,null,null,null,null,null,null,null,null,0,0]
[543,null,null,null,null,null,null,null,null,0,0,null,null,null,null,null,null,null,null,null,null,null,null,null,0,0]
[544,null,null,null,null,null,null,null,null,0,0,null,null,null,null,null,null,null,null,null,null,null,null,null,0,0]
[545,null,null,null,null,null,null,null,null,0,0,null,null,null,null,null,null,null,null,null,null,null,null,null,0,0]
[546,null,null,null,null,null,null,null,null,0,0,null,null,null,null,null,null,null,null,null,null,null,null,null,0,0]
[547,null,null,null,null,null,null,null,null,0,0,null,null,null,null,null,null,null,null,null,null,null,null,null,0,0]
[548,null,null,null,null,null,null,null,null,0,0,null,null,null,null,null,null,null,null,null,null,null,null,null,0,0]
[549,null,null,null,null,null,null,null,null,0,0,null,null,null,null,null,null,null,null,null,null,null,null,null,0,0]
[550,null,null,null,null,null,null,null,null,0,0,null,null,null,null,null,null,null,null,null,null,null,null,null,0,0]
[551,null,null,null,null,null,null,null,null,0,0,null,null,null,null,null,null,null,null,null,null,null,null,null,0,0]
[552,null,null,null,null,null,null,null,null,0,0,null,null,null,null,null,null,null,null,null,null,null,null,null,0,0]
[553,null,null,null,null,null,null,null,null,0,0,null,null,null,null,null,null,null,null,null,null,null,null,null,0,0]
[554,null,null,null,null,null,null,null,null,0,0,null,null,null,null,null,null,null,null,null,null,null,null,null,0,0]
[555,null,null,null,null,null,null,null,null,0,0,null,null,null,null,null,null,null,null,null,null,null,null,null,0,0]
[556,null,null,null,null,null,null,null,null,0,0,null,null,null,null,null,null,null,null,null,null,null,null,null,0,0]
[557,null,null,null,null,null,null,null,null,0,0,null,null,null,null,null,null,null,null,null,null,null,null,null,0,0]
[558,null,null,null,null,null,null,null,null,0,0,null,null,null,null,null,null,null,null,null,null,null,null,null,0,0]
[559,null,null,null,null,null,null,null,null,0,0,null,null,null,null,null,null,null,null,null,null,null,null,null,0,0]
[560,null,null,null,null,null,null,null,null,0,0,null,null,null,null,null,null,null,null,null,null,null,null,null,0,0]
[561,null,null,null,null,null,null,null,null,0,0,null,null,null,null,null,null,null,null,null,null,null,null,null,0,0]
[562,null,null,null,null,null,null,null,null,0,0,null,null,null,null,null,null,null,null,null,null,null,null,null,0,0]
[563,null,null,null,null,null,null,null,null,0,0,null,null,null,null,null,null,null,null,null,null,null,null,null,0,0]
[564,null,null,null,null,null,null,null,null,0,0,null,null,null,null,null,null,null,null,null,null,null,null,null,0,0]
[565,null,null,null,null,null,null,null,null,0,0,null,null,null,null,null,null,null,null,null,null,null,null,null,0,0]
[566,null,null,null,null,null,null,null,null,0,0,null,null,null,null,null,null,null,null,null,null,null,null,null,0,0]
[567,null,null,null,null,null,null,null,null,0,0,null,null,null,null,null,null,null,null,null,null,null,null,null,0,0]
[568,null,null,null,null,null,null,null,null,0,0,null,null,null,null,null,null,null,null,null,null,null,null,null,0,0]
[569,null,null,null,null,null,null,null,null,0,0,null,null,null,null,null,null,null,null,null,null,null,null,null,0,0]
[570,null,null,null,null,null,null,null,null,0,0,null,null,null,null,null,null,null,null,null,null,null,null,null,0,0]
[571,null,null,null,null,null,null,null,null,0,0,null,null,null,null,null,null,null,null,null,null,null,null,null,0,0]
[572,null,null,null,null,null,null,null,null,0,0,null,null,null,null,null,null,null,null,null,null,null,null,null,0,0]
[573,null,null,null,null,null,null,null,null,0,0,null,null,null,null,null,null,null,null,null,null,null,null,null,0,0]
[574,null,null,null,null,null,null,null,null,0,0,null,null,null,null,null,null,null,null,null,null,null,null,null,0,0]
[575,null,null,null,null,null,null,null,null,0,0,null,null,null,null,null,null,null,null,null,null,null,null,null,0,0]
[576,null,null,null,null,null,null,null,null,0,0,null,null,null,null,null,null,null,null,null,null,null,null,null,0,0]
[577,null,null,null,null,null,null,null,null,0,{"$f":"F573-I573","v":0},null,null,null,null,null,null,null,null,null,null,null,null,null,{"$f":"IF(X573-F573>=0,X573-F573,\"\")","v":0},0]
[578,null,null,null,null,null,null,null,null,0,0,null,null,null,null,null,null,null,null,null,null,null,null,null,0,0]
[579,null,null,null,null,null,null,null,null,0,0,null,null,null,null,null,null,null,null,null,null,null,null,null,0,0]
[580,null,null,null,null,null,null,null,null,0,0,null,null,null,null,null,null,null,null,null,null,null,null,null,0,0]
[581,null,null,null,null,null,null,null,null,0,0,null,null,null,null,null,null,null,null,null,null,null,null,null,0,0]
[582,null,null,null,null,null,null,null,null,{"$f":"DATEDIF(C578,I578,\"y\")","v":0},0,null,null,null,null,null,null,null,null,null,null,null,null,null,0,0]
[583,null,null,null,null,null,null,null,null,0,0,null,null,null,null,null,null,null,null,null,null,null,null,null,0,0]
[584,null,null,null,null,null,null,null,null,0,0,null,null,null,null,null,null,null,null,null,null,null,null,null,0,0]
[585,null,null,null,null,null,null,null,null,0,0,null,null,null,null,null,null,null,null,null,null,null,null,null,0,0]
[586,null,null,null,null,null,null,null,null,0,0,null,null,null,null,null,null,null,null,null,null,null,null,null,0,0]
[587,null,null,null,null,null,null,null,null,0,0,null,null,null,null,null,null,null,null,null,null,null,null,null,0,0]
[588,null,null,null,null,null,null,null,null,0,0,null,null,null,null,null,null,null,null,null,null,null,null,null,0,0]
[589,null,null,null,null,null,null,null,null,0,0,null,null,null,null,null,null,null,null,null,null,null,null,null,0,0]
[590,null,null,null,null,null,null,null,null,0,0,null,null,null,null,null,null,null,null,null,null,null,null,null,0,0]
[591,null,null,null,null,null,null,null,null,0,0,null,null,null,null,null,null,null,null,null,null,null,null,null,0,0]
[592,null,null,null,null,null,null,null,null,0,0,null,null,null,null,null,null,null,null,null,null,null,null,null,0,0]
[593,null,null,null,null,null,null,null,null,0,0,null,null,null,null,null,null,null,null,null,null,null,null,null,0,{"$f":"IF(AF589-I589>=0,AF589-I589,\"\")","v":0}]
[594,null,null,null,null,null,null,null,null,0,0,null,null,null,null,null,null,null,null,null,null,null,null,null,0,0]
[595,null,null,null,null,null,null,null,null,0,0,null,null,null,null,null,null,null,null,null,null,null,null,null,0,0]
[596,null,null,null,null,null,null,null,null,0,0,null,null,null,null,null,null,null,null,null,null,null,null,null,0,0]
[597,null,null,null,null,null,null,null,null,0,0,null,null,null,null,null,null,null,null,null,null,null,null,null,0,0]
[598,null,null,null,null,null,null,null,null,0,0,null,null,null,null,null,null,null,null,null,null,null,null,null,0,0]
[599,null,null,null,null,null,null,null,null,0,0,null,null,null,null,null,null,null,null,null,null,null,null,null,0,0]
[600,null,null,null,null,null,null,null,null,0,0,null,null,null,null,null,null,null,null,null,null,null,null,null,0,0]
[601,null,null,null,null,null,null,null,null,0,0,null,null,null,null,null,null,null,null,null,null,null,null,null,0,0]
[602,null,null,null,null,null,null,null,null,0,0,null,null,null,null,null,null,null,null,null,null,null,null,null,0,0]
[603,null,null,null,null,null,null,null,null,0,0,null,null,null,null,null,null,null,null,null,null,null,null,null,0,0]
[604,null,null,null,null,null,null,null,null,0,0,null,null,null,null,null,null,null,null,null,null,null,null,null,0,0]
[605,null,null,null,null,null,null,null,null,0,0,null,null,null,null,null,null,null,null,null,null,null,null,null,0,0]
[606,null,null,null,null,null,null,null,null,0,0,null,null,null,null,null,null,null,null,null,null,null,null,null,0,0]
[607,null,null,null,null,null,null,null,null,0,0,null,null,null,null,null,null,null,null,null,null,null,null,null,0,0]
[608,null,null,null,null,null,null,null,null,0,0,null,null,null,null,null,null,null,null,null,null,null,null,null,0,0]
[609,null,null,null,null,null,null,null,null,0,0,null,null,null,null,null,null,null,null,null,null,null,null,null,0,0]
[610,null,null,null,null,null,null,null,null,0,0,null,null,null,null,null,null,null,null,null,null,null,null,null,0,0]
[611,null,null,null,null,null,null,null,null,0,0,null,null,null,null,null,null,null,null,null,null,null,null,null,0,0]
[612,null,null,null,null,null,null,null,null,0,0,null,null,null,null,null,null,null,null,null,null,null,null,null,0,0]
[613,null,null,null,null,null,null,null,null,0,0,null,null,null,null,null,null,null,null,null,null,null,null,null,0,0]
[614,null,null,null,null,null,null,null,null,0,0,null,null,null,null,null,null,null,null,null,null,null,null,null,0,0]
[615,null,null,null,null,null,null,null,null,0,0,null,null,null,null,null,null,null,null,null,null,null,null,null,0,0]
[616,null,null,null,null,null,null,null,null,0,0,null,null,null,null,null,null,null,null,null,null,null,null,null,0,0]
[617,null,null,null,null,null,null,null,null,0,0,null,null,null,null,null,null,null,null,null,null,null,null,null,0,0]
[618,null,null,null,null,null,null,null,null,0,0,null,null,null,null,null,null,null,null,null,null,null,null,null,0,0]
[619,null,null,null,null,null,null,null,null,0,0,null,null,null,null,null,null,null,null,null,null,null,null,null,0,0]
[620,null,null,null,null,null,null,null,null,0,0,null,null,null,null,null,null,null,null,null,null,null,null,null,0,0]
[621,null,null,null,null,null,null,null,null,0,0,null,null,null,null,null,null,null,null,null,null,null,null,null,0,0]
[622,null,null,null,null,null,null,null,null,0,0,null,null,null,null,null,null,null,null,null,null,null,null,null,0,0]
[623,null,null,null,null,null,null,null,null,0,0,null,null,null,null,null,null,null,null,null,null,null,null,null,0,0]
[624,null,null,null,null,null,null,null,null,0,0,null,null,null,null,null,null,null,null,null,null,null,null,null,0,0]
[625,null,null,null,null,null,null,null,null,0,0,null,null,null,null,null,null,null,null,null,null,null,null,null,0,0]
[626,null,null,null,null,null,null,null,null,0,0,null,null,null,null,null,null,null,null,null,null,null,null,null,0,0]
[627,null,null,null,null,null,null,null,null,0,0,null,null,null,null,null,null,null,null,null,null,null,null,null,0,0]
[628,null,null,null,null,null,null,null,null,0,0,null,null,null,null,null,null,null,null,null,null,null,null,null,0,0]
[629,null,null,null,null,null,null,null,null,0,0,null,null,null,null,null,null,null,null,null,null,null,null,null,0,0]
[630,null,null,null,null,null,null,null,null,0,0,null,null,null,null,null,null,null,null,null,null,null,null,null,0,0]
[631,null,null,null,null,null,null,null,null,0,0,null,null,null,null,null,null,null,null,null,null,null,null,null,0,0]
[632,null,null,null,null,null,null,null,null,0,0,null,null,null,null,null,null,null,null,null,null,null,null,null,0,0]
[633,null,null,null,null,null,null,null,null,0,0,null,null,null,null,null,null,null,null,null,null,null,null,null,0,0]
[634,null,null,null,null,null,null,null,null,0,0,null,null,null,null,null,null,null,null,null,null,null,null,null,0,0]
[635,null,null,null,null,null,null,null,null,0,0,null,null,null,null,null,null,null,null,null,null,null,null,null,0,0]
[636,null,null,null,null,null,null,null,null,0,0,null,null,null,null,null,null,null,null,null,null,null,null,null,0,0]
[637,null,null,null,null,null,null,null,null,0,0,null,null,null,null,null,null,null,null,null,null,null,null,null,0,0]
[638,null,null,null,null,null,null,null,null,0,0,null,null,null,null,null,null,null,null,null,null,null,null,null,0,0]
[639,null,null,null,null,null,null,null,null,0,0,null,null,null,null,null,null,null,null,null,null,null,null,null,0,0]
[640,null,null,null,null,null,null,null,null,0,0,null,null,null,null,null,null,null,null,null,null,null,null,null,0,0]
[641,null,null,null,null,null,null,null,null,0,{"$f":"F637-I637","v":0},null,null,null,null,null,null,null,null,null,null,null,null,null,{"$f":"IF(X637-F637>=0,X637-F637,\"\")","v":0},0]
[642,null,null,null,null,null,null,null,null,0,0,null,null,null,null,null,null,null,null,null,null,null,null,null,0,0]
[643,null,null,null,null,null,null,null,null,0,0,null,null,null,null,null,null,null,null,null,null,null,null,null,0,0]
[644,null,null,null,null,null,null,null,null,0,0,null,null,null,null,null,null,null,null,null,null,null,null,null,0,0]
[645,null,null,null,null,null,null,null,null,0,0,null,null,null,null,null,null,null,null,null,null,null,null,null,0,0]
[646,null,null,null,null,null,null,null,null,{"$f":"DATEDIF(C642,I642,\"y\")","v":0},0,null,null,null,null,null,null,null,null,null,null,null,null,null,0,0]
[647,null,null,null,null,null,null,null,null,0,0,null,null,null,null,null,null,null,null,null,null,null,null,null,0,0]
[648,null,null,null,null,null,null,null,null,0,0,null,null,null,null,null,null,null,null,null,null,null,null,null,0,0]
[649,null,null,null,null,null,null,null,null,0,0,null,null,null,null,null,null,null,null,null,null,null,null,null,0,0]
[650,null,null,null,null,null,null,null,null,0,0,null,null,null,null,null,null,null,null,null,null,null,null,null,0,0]
[651,null,null,null,null,null,null,null,null,0,0,null,null,null,null,null,null,null,null,null,null,null,null,null,0,0]
[652,null,null,null,null,null,null,null,null,0,0,null,null,null,null,null,null,null,null,null,null,null,null,null,0,0]
[653,null,null,null,null,null,null,null,null,0,0,null,null,null,null,null,null,null,null,null,null,null,null,null,0,0]
[654,null,null,null,null,null,null,null,null,0,0,null,null,null,null,null,null,null,null,null,null,null,null,null,0,0]
[655,null,null,null,null,null,null,null,null,0,0,null,null,null,null,null,null,null,null,null,null,null,null,null,0,0]
[656,null,null,null,null,null,null,null,null,0,0,null,null,null,null,null,null,null,null,null,null,null,null,null,0,0]
[657,null,null,null,null,null,null,null,null,0,0,null,null,null,null,null,null,null,null,null,null,null,null,null,0,{"$f":"IF(AF653-I653>=0,AF653-I653,\"\")","v":0}]
[658,null,null,null,null,null,null,null,null,0,0,null,null,null,null,null,null,null,null,null,null,null,null,null,0,0]
[659,null,null,null,null,null,null,null,null,0,0,null,null,null,null,null,null,null,null,null,null,null,null,null,0,0]
[660,null,null,null,null,null,null,null,null,0,0,null,null,null,null,null,null,null,null,null,null,null,null,null,0,0]
[661,null,null,null,null,null,null,null,null,0,0,null,null,null,null,null,null,null,null,null,null,null,null,null,0,0]
[662,null,null,null,null,null,null,null,null,0,0,null,null,null,null,null,null,null,null,null,null,null,null,null,0,0]
[663,null,null,null,null,null,null,null,null,0,0,null,null,null,null,null,null,null,null,null,null,null,null,null,0,0]
[664,null,null,null,null,null,null,null,null,0,0,null,null,null,null,null,null,null,null,null,null,null,null,null,0,0]
[665,null,null,null,null,null,null,null,null,0,0,null,null,null,null,null,null,null,null,null,null,null,null,null,0,0]
[666,null,null,null,null,null,null,null,null,0,0,null,null,null,null,null,null,null,null,null,null,null,null,null,0,0]
[667,null,null,null,null,null,null,null,null,0,0,null,null,null,null,null,null,null,null,null,null,null,null,null,0,0]
[668,null,null,null,null,null,null,null,null,0,0,null,null,null,null,null,null,null,null,null,null,null,null,null,0,0]
[669,null,null,null,null,null,null,null,null,0,0,null,null,null,null,null,null,null,null,null,null,null,null,null,0,0]
[670,null,null,null,null,null,null,null,null,0,0,null,null,null,null,null,null,null,null,null,null,null,null,null,0,0]
[671,null,null,null,null,null,null,null,null,0,0,null,null,null,null,null,null,null,null,null,null,null,null,null,0,0]
[672,null,null,null,null,null,null,null,null,0,0,null,null,null,null,null,null,null,null,null,null,null,null,null,0,0]
[673,null,null,null,null,null,null,null,null,0,0,null,null,null,null,null,null,null,null,null,null,null,null,null,0,0]
[674,null,null,null,null,null,null,null,null,0,0,null,null,null,null,null,null,null,null,null,null,null,null,null,0,0]
[675,null,null,null,null,null,null,null,null,0,0,null,null,null,null,null,null,null,null,null,null,null,null,null,0,0]
[676,null,null,null,null,null,null,null,null,0,0,null,null,null,null,null,null,null,null,null,null,null,null,null,0,0]
[677,null,null,null,null,null,null,null,null,0,0,null,null,null,null,null,null,null,null,null,null,null,null,null,0,0]
[678,null,null,null,null,null,null,null,null,0,0,null,null,null,null,null,null,null,null,null,null,null,null,null,0,0]
[679,null,null,null,null,null,null,null,null,0,0,null,null,null,null,null,null,null,null,null,null,null,null,null,0,0]
[680,null,null,null,null,null,null,null,null,0,0,null,null,null,null,null,null,null,null,null,null,null,null,null,0,0]
[681,null,null,null,null,null,null,null,null,0,0,null,null,null,null,null,null,null,null,null,null,null,null,null,0,0]
[682,null,null,null,null,null,null,null,null,0,0,null,null,null,null,null,null,null,null,null,null,null,null,null,0,0]
[683,null,null,null,null,null,null,null,null,0,0,null,null,null,null,null,null,null,null,null,null,null,null,null,0,0]
[684,null,null,null,null,null,null,null,null,0,0,null,null,null,null,null,null,null,null,null,null,null,null,null,0,0]
[685,null,null,null,null,null,null,null,null,0,0,null,null,null,null,null,null,null,null,null,null,null,null,null,0,0]
[686,null,null,null,null,null,null,null,null,0,0,null,null,null,null,null,null,null,null,null,null,null,null,null,0,0]
[687,null,null,null,null,null,null,null,null,0,0,null,null,null,null,null,null,null,null,null,null,null,null,null,0,0]
[688,null,null,null,null,null,null,null,null,0,0,null,null,null,null,null,null,null,null,null,null,null,null,null,0,0]
[689,null,null,null,null,null,null,null,null,0,0,null,null,null,null,null,null,null,null,null,null,null,null,null,0,0]
[690,null,null,null,null,null,null,null,null,0,0,null,null,null,null,null,null,null,null,null,null,null,null,null,0,0]
[691,null,null,null,null,null,null,null,null,0,0,null,null,null,null,null,null,null,null,null,null,null,null,null,0,0]
[692,null,null,null,null,null,null,null,null,0,0,null,null,null,null,null,null,null,null,null,null,null,null,null,0,0]
[693,null,null,null,null,null,null,null,null,0,0,null,null,null,null,null,null,null,null,null,null,null,null,null,0,0]
[694,null,null,null,null,null,null,null,null,0,0,null,null,null,null,null,null,null,null,null,null,null,null,null,0,0]
[695,null,null,null,null,null,null,null,null,0,0,null,null,null,null,null,null,null,null,null,null,null,null,null,0,0]
[696,null,null,null,null,null,null,null,null,0,0,null,null,null,null,null,null,null,null,null,null,null,null,null,0,0]
[697,null,null,null,null,null,null,null,null,0,0,null,null,null,null,null,null,null,null,null,null,null,null,null,0,0]
[698,null,null,null,null,null,null,null,null,0,0,null,null,null,null,null,null,null,null,null,null,null,null,null,0,0]
[699,null,null,null,null,null,null,null,null,0,0,null,null,null,null,null,null,null,null,null,null,null,null,null,0,0]
[700,null,null,null,null,null,null,null,null,0,0,null,null,null,null,null,null,null,null,null,null,null,null,null,0,0]
[701,null,null,null,null,null,null,null,null,0,0,null,null,null,null,null,null,null,null,null,null,null,null,null,0,0]
[702,null,null,null,null,null,null,null,null,0,0,null,null,null,null,null,null,null,null,null,null,null,null,null,0,0]
[703,null,null,null,null,null,null,null,null,0,0,null,null,null,null,null,null,null,null,null,null,null,null,null,0,0]
[704,null,null,null,null,null,null,null,null,0,0,null,null,null,null,null,null,null,null,null,null,null,null,null,0,0]
[705,null,null,null,null,null,null,null,null,0,{"$f":"F701-I701","v":0},null,null,null,null,null,null,null,null,null,null,null,null,null,{"$f":"IF(X701-F701>=0,X701-F701,\"\")","v":0},0]
[706,null,null,null,null,null,null,null,null,0,0,null,null,null,null,null,null,null,null,null,null,null,null,null,0,0]
[707,null,null,null,null,null,null,null,null,0,0,null,null,null,null,null,null,null,null,null,null,null,null,null,0,0]
[708,null,null,null,null,null,null,null,null,0,0,null,null,null,null,null,null,null,null,null,null,null,null,null,0,0]
[709,null,null,null,null,null,null,null,null,0,0,null,null,null,null,null,null,null,null,null,null,null,null,null,0,0]
[710,null,null,null,null,null,null,null,null,{"$f":"DATEDIF(C706,I706,\"y\")","v":0},0,null,null,null,null,null,null,null,null,null,null,null,null,null,0,0]
[711,null,null,null,null,null,null,null,null,0,0,null,null,null,null,null,null,null,null,null,null,null,null,null,0,0]
[712,null,null,null,null,null,null,null,null,0,0,null,null,null,null,null,null,null,null,null,null,null,null,null,0,0]
[713,null,null,null,null,null,null,null,null,0,0,null,null,null,null,null,null,null,null,null,null,null,null,null,0,0]
[714,null,null,null,null,null,null,null,null,0,0,null,null,null,null,null,null,null,null,null,null,null,null,null,0,0]
[715,null,null,null,null,null,null,null,null,0,0,null,null,null,null,null,null,null,null,null,null,null,null,null,0,0]
[716,null,null,null,null,null,null,null,null,0,0,null,null,null,null,null,null,null,null,null,null,null,null,null,0,0]
[717,null,null,null,null,null,null,null,null,0,0,null,null,null,null,null,null,null,null,null,null,null,null,null,0,0]
[718,null,null,null,null,null,null,null,null,0,0,null,null,null,null,null,null,null,null,null,null,null,null,null,0,0]
[719,null,null,null,null,null,null,null,null,0,0,null,null,null,null,null,null,null,null,null,null,null,null,null,0,0]
[720,null,null,null,null,null,null,null,null,0,0,null,null,null,null,null,null,null,null,null,null,null,null,null,0,0]
[721,null,null,null,null,null,null,null,null,0,0,null,null,null,null,null,null,null,null,null,null,null,null,null,0,{"$f":"IF(AF717-I717>=0,AF717-I717,\"\")","v":0}]
[722,null,null,null,null,null,null,null,null,0,0,null,null,null,null,null,null,null,null,null,null,null,null,null,0,0]
[723,null,null,null,null,null,null,null,null,0,0,null,null,null,null,null,null,null,null,null,null,null,null,null,0,0]
[724,null,null,null,null,null,null,null,null,0,0,null,null,null,null,null,null,null,null,null,null,null,null,null,0,0]
[725,null,null,null,null,null,null,null,null,0,0,null,null,null,null,null,null,null,null,null,null,null,null,null,0,0]
[726,null,null,null,null,null,null,null,null,0,0,null,null,null,null,null,null,null,null,null,null,null,null,null,0,0]
[727,null,null,null,null,null,null,null,null,0,0,null,null,null,null,null,null,null,null,null,null,null,null,null,0,0]
[728,null,null,null,null,null,null,null,null,0,0,null,null,null,null,null,null,null,null,null,null,null,null,null,0,0]
[729,null,null,null,null,null,null,null,null,0,0,null,null,null,null,null,null,null,null,null,null,null,null,null,0,0]
[730,null,null,null,null,null,null,null,null,0,0,null,null,null,null,null,null,null,null,null,null,null,null,null,0,0]
[731,null,null,null,null,null,null,null,null,0,0,null,null,null,null,null,null,null,null,null,null,null,null,null,0,0]
[732,null,null,null,null,null,null,null,null,0,0,null,null,null,null,null,null,null,null,null,null,null,null,null,0,0]
[733,null,null,null,null,null,null,null,null,0,0,null,null,null,null,null,null,null,null,null,null,null,null,null,0,0]
[734,null,null,null,null,null,null,null,null,0,0,null,null,null,null,null,null,null,null,null,null,null,null,null,0,0]
[735,null,null,null,null,null,null,null,null,0,0,null,null,null,null,null,null,null,null,null,null,null,null,null,0,0]
[736,null,null,null,null,null,null,null,null,0,0,null,null,null,null,null,null,null,null,null,null,null,null,null,0,0]
[737,null,null,null,null,null,null,null,null,0,0,null,null,null,null,null,null,null,null,null,null,null,null,null,0,0]
[738,null,null,null,null,null,null,null,null,0,0,null,null,null,null,null,null,null,null,null,null,null,null,null,0,0]
[739,null,null,null,null,null,null,null,null,0,0,null,null,null,null,null,null,null,null,null,null,null,null,null,0,0]
[740,null,null,null,null,null,null,null,null,0,0,null,null,null,null,null,null,null,null,null,null,null,null,null,0,0]
[741,null,null,null,null,null,null,null,null,0,0,null,null,null,null,null,null,null,null,null,null,null,null,null,0,0]
[742,null,null,null,null,null,null,null,null,0,0,null,null,null,null,null,null,null,null,null,null,null,null,null,0,0]
[743,null,null,null,null,null,null,null,null,0,0,null,null,null,null,null,null,null,null,null,null,null,null,null,0,0]
[744,null,null,null,null,null,null,null,null,0,0,null,null,null,null,null,null,null,null,null,null,null,null,null,0,0]
[745,null,null,null,null,null,null,null,null,0,0,null,null,null,null,null,null,null,null,null,null,null,null,null,0,0]
[746,null,null,null,null,null,null,null,null,0,0,null,null,null,null,null,null,null,null,null,null,null,null,null,0,0]
[747,null,null,null,null,null,null,null,null,0,0,null,null,null,null,null,null,null,null,null,null,null,null,null,0,0]
[748,null,null,null,null,null,null,null,null,0,0,null,null,null,null,null,null,null,null,null,null,null,null,null,0,0]
[749,null,null,null,null,null,null,null,null,0,0,null,null,null,null,null,null,null,null,null,null,null,null,null,0,0]
[750,null,null,null,null,null,null,null,null,0,0,null,null,null,null,null,null,null,null,null,null,null,null,null,0,0]
[751,null,null,null,null,null,null,null,null,0,0,null,null,null,null,null,null,null,null,null,null,null,null,null,0,0]
[752,null,null,null,null,null,null,null,null,0,0,null,null,null,null,null,null,null,null,null,null,null,null,null,0,0]
[753,null,null,null,null,null,null,null,null,0,0,null,null,null,null,null,null,null,null,null,null,null,null,null,0,0]
[754,null,null,null,null,null,null,null,null,0,0,null,null,null,null,null,null,null,null,null,null,null,null,null,0,0]
[755,null,null,null,null,null,null,null,null,0,0,null,null,null,null,null,null,null,null,null,null,null,null,null,0,0]
[756,null,null,null,null,null,null,null,null,0,0,null,null,null,null,null,null,null,null,null,null,null,null,null,0,0]
[757,null,null,null,null,null,null,null,null,0,0,null,null,null,null,null,null,null,null,null,null,null,null,null,0,0]
[758,null,null,null,null,null,null,null,null,0,0,null,null,null,null,null,null,null,null,null,null,null,null,null,0,0]
[759,null,null,null,null,null,null,null,null,0,0,null,null,null,null,null,null,null,null,null,null,null,null,null,0,0]
[760,null,null,null,null,null,null,null,null,0,0,null,null,null,null,null,null,null,null,null,null,null,null,null,0,0]
[761,null,null,null,null,null,null,null,null,0,0,null,null,null,null,null,null,null,null,null,null,null,null,null,0,0]
[762,null,null,null,null,null,null,null,null,0,0,null,null,null,null,null,null,null,null,null,null,null,null,null,0,0]
[763,null,null,null,null,null,null,null,null,0,0,null,null,null,null,null,null,null,null,null,null,null,null,null,0,0]
[764,null,null,null,null,null,null,null,null,0,0,null,null,null,null,null,null,null,null,null,null,null,null,null,0,0]
[765,null,null,null,null,null,null,null,null,0,0,null,null,null,null,null,null,null,null,null,null,null,null,null,0,0]
[766,null,null,null,null,null,null,null,null,0,0,null,null,null,null,null,null,null,null,null,null,null,null,null,0,0]
[767,null,null,null,null,null,null,null,null,0,0,null,null,null,null,null,null,null,null,null,null,null,null,null,0,0]
[768,null,null,null,null,null,null,null,null,0,0,null,null,null,null,null,null,null,null,null,null,null,null,null,0,0]
[769,null,null,null,null,null,null,null,null,0,{"$f":"F765-I765","v":0},null,null,null,null,null,null,null,null,null,null,null,null,null,{"$f":"IF(X765-F765>=0,X765-F765,\"\")","v":0},0]
[770,null,null,null,null,null,null,null,null,0,0,null,null,null,null,null,null,null,null,null,null,null,null,null,0,0]
[771,null,null,null,null,null,null,null,null,0,0,null,null,null,null,null,null,null,null,null,null,null,null,null,0,0]
[772,null,null,null,null,null,null,null,null,0,0,null,null,null,null,null,null,null,null,null,null,null,null,null,0,0]
[773,null,null,null,null,null,null,null,null,0,0,null,null,null,null,null,null,null,null,null,null,null,null,null,0,0]
[774,null,null,null,null,null,null,null,null,{"$f":"DATEDIF(C770,I770,\"y\")","v":0},0,null,null,null,null,null,null,null,null,null,null,null,null,null,0,0]
[775,null,null,null,null,null,null,null,null,0,0,null,null,null,null,null,null,null,null,null,null,null,null,null,0,0]
[776,null,null,null,null,null,null,null,null,0,0,null,null,null,null,null,null,null,null,null,null,null,null,null,0,0]
[777,null,null,null,null,null,null,null,null,0,0,null,null,null,null,null,null,null,null,null,null,null,null,null,0,0]
[778,null,null,null,null,null,null,null,null,0,0,null,null,null,null,null,null,null,null,null,null,null,null,null,0,0]
[779,null,null,null,null,null,null,null,null,0,0,null,null,null,null,null,null,null,null,null,null,null,null,null,0,0]
[780,null,null,null,null,null,null,null,null,0,0,null,null,null,null,null,null,null,null,null,null,null,null,null,0,0]
[781,null,null,null,null,null,null,null,null,0,0,null,null,null,null,null,null,null,null,null,null,null,null,null,0,0]
[782,null,null,null,null,null,null,null,null,0,0,null,null,null,null,null,null,null,null,null,null,null,null,null,0,0]
[783,null,null,null,null,null,null,null,null,0,0,null,null,null,null,null,null,null,null,null,null,null,null,null,0,0]
[784,null,null,null,null,null,null,null,null,0,0,null,null,null,null,null,null,null,null,null,null,null,null,null,0,0]
[785,null,null,null,null,null,null,null,null,0,0,null,null,null,null,null,null,null,null,null,null,null,null,null,0,{"$f":"IF(AF781-I781>=0,AF781-I781,\"\")","v":0}]
[786,null,null,null,null,null,null,null,null,0,0,null,null,null,null,null,null,null,null,null,null,null,null,null,0,0]
[787,null,null,null,null,null,null,null,null,0,0,null,null,null,null,null,null,null,null,null,null,null,null,null,0,0]
[788,null,null,null,null,null,null,null,null,0,0,null,null,null,null,null,null,null,null,null,null,null,null,null,0,0]
[789,null,null,null,null,null,null,null,null,0,0,null,null,null,null,null,null,null,null,null,null,null,null,null,0,0]
[790,null,null,null,null,null,null,null,null,0,0,null,null,null,null,null,null,null,null,null,null,null,null,null,0,0]
[791,null,null,null,null,null,null,null,null,0,0,null,null,null,null,null,null,null,null,null,null,null,null,null,0,0]
[792,null,null,null,null,null,null,null,null,0,0,null,null,null,null,null,null,null,null,null,null,null,null,null,0,0]
[793,null,null,null,null,null,null,null,null,0,0,null,null,null,null,null,null,null,null,null,null,null,null,null,0,0]
[794,null,null,null,null,null,null,null,null,0,0,null,null,null,null,null,null,null,null,null,null,null,null,null,0,0]
[795,null,null,null,null,null,null,null,null,0,0,null,null,null,null,null,null,null,null,null,null,null,null,null,0,0]
[796,null,null,null,null,null,null,null,null,0,0,null,null,null,null,null,null,null,null,null,null,null,null,null,0,0]
[797,null,null,null,null,null,null,null,null,0,0,null,null,null,null,null,null,null,null,null,null,null,null,null,0,0]
[798,null,null,null,null,null,null,null,null,0,0,null,null,null,null,null,null,null,null,null,null,null,null,null,0,0]
[799,null,null,null,null,null,null,null,null,0,0,null,null,null,null,null,null,null,null,null,null,null,null,null,0,0]
[800,null,null,null,null,null,null,null,null,0,0,null,null,null,null,null,null,null,null,null,null,null,null,null,0,0]
[801,null,null,null,null,null,null,null,null,0,0,null,null,null,null,null,null,null,null,null,null,null,null,null,0,0]
[802,null,null,null,null,null,null,null,null,0,0,null,null,null,null,null,null,null,null,null,null,null,null,null,0,0]
[803,null,null,null,null,null,null,null,null,0,0,null,null,null,null,null,null,null,null,null,null,null,null,null,0,0]
[804,null,null,null,null,null,null,null,null,0,0,null,null,null,null,null,null,null,null,null,null,null,null,null,0,0]
[805,null,null,null,null,null,null,null,null,0,0,null,null,null,null,null,null,null,null,null,null,null,null,null,0,0]
[806,null,null,null,null,null,null,null,null,0,0,null,null,null,null,null,null,null,null,null,null,null,null,null,0,0]
[807,null,null,null,null,null,null,null,null,0,0,null,null,null,null,null,null,null,null,null,null,null,null,null,0,0]
[808,null,null,null,null,null,null,null,null,0,0,null,null,null,null,null,null,null,null,null,null,null,null,null,0,0]
[809,null,null,null,null,null,null,null,null,0,0,null,null,null,null,null,null,null,null,null,null,null,null,null,0,0]
[810,null,null,null,null,null,null,null,null,0,0,null,null,null,null,null,null,null,null,null,null,null,null,null,0,0]
[811,null,null,null,null,null,null,null,null,0,0,null,null,null,null,null,null,null,null,null,null,null,null,null,0,0]
[812,null,null,null,null,null,null,null,null,0,0,null,null,null,null,null,null,null,null,null,null,null,null,null,0,0]
[813,null,null,null,null,null,null,null,null,0,0,null,null,null,null,null,null,null,null,null,null,null,null,null,0,0]
[814,null,null,null,null,null,null,null,null,0,0,null,null,null,null,null,null,null,null,null,null,null,null,null,0,0]
[815,null,null,null,null,null,null,null,null,0,0,null,null,null,null,null,null,null,null,null,null,null,null,null,0,0]
[816,null,null,null,null,null,null,null,null,0,0,null,null,null,null,null,null,null,null,null,null,null,null,null,0,0]
[817,null,null,null,null,null,null,null,null,0,0,null,null,null,null,null,null,null,null,null,null,null,null,null,0,0]
[818,null,null,null,null,null,null,null,null,0,0,null,null,null,null,null,null,null,null,null,null,null,null,null,0,0]
[819,null,null,null,null,null,null,null,null,0,0,null,null,null,null,null,null,null,null,null,null,null,null,null,0,0]
[820,null,null,null,null,null,null,null,null,0,0,null,null,null,null,null,null,null,null,null,null,null,null,null,0,0]
[821,null,null,null,null,null,null,null,null,0,0,null,null,null,null,null,null,null,null,null,null,null,null,null,0,0]
[822,null,null,null,null,null,null,null,null,0,0,null,null,null,null,null,null,null,null,null,null,null,null,null,0,0]
[823,null,null,null,null,null,null,null,null,0,0,null,null,null,null,null,null,null,null,null,null,null,null,null,0,0]
[824,null,null,null,null,null,null,null,null,0,0,null,null,null,null,null,null,null,null,null,null,null,null,null,0,0]
[825,null,null,null,null,null,null,null,null,0,0,null,null,null,null,null,null,null,null,null,null,null,null,null,0,0]
[826,null,null,null,null,null,null,null,null,0,0,null,null,null,null,null,null,null,null,null,null,null,null,null,0,0]
[827,null,null,null,null,null,null,null,null,0,0,null,null,null,null,null,null,null,null,null,null,null,null,null,0,0]
[828,null,null,null,null,null,null,null,null,0,0,null,null,null,null,null,null,null,null,null,null,null,null,null,0,0]
[829,null,null,null,null,null,null,null,null,0,0,null,null,null,null,null,null,null,null,null,null,null,null,null,0,0]
[830,null,null,null,null,null,null,null,null,0,0,null,null,null,null,null,null,null,null,null,null,null,null,null,0,0]
[831,null,null,null,null,null,null,null,null,0,0,null,null,null,null,null,null,null,null,null,null,null,null,null,0,0]
[832,null,null,null,null,null,null,null,null,0,0,null,null,null,null,null,null,null,null,null,null,null,null,null,0,0]
[833,null,null,null,null,null,null,null,null,0,{"$f":"F829-I829","v":0},null,null,null,null,null,null,null,null,null,null,null,null,null,{"$f":"IF(X829-F829>=0,X829-F829,\"\")","v":0},0]
[834,null,null,null,null,null,null,null,null,0,0,null,null,null,null,null,null,null,null,null,null,null,null,null,0,0]
[835,null,null,null,null,null,null,null,null,0,0,null,null,null,null,null,null,null,null,null,null,null,null,null,0,0]
[836,null,null,null,null,null,null,null,null,0,0,null,null,null,null,null,null,null,null,null,null,null,null,null,0,0]
[837,null,null,null,null,null,null,null,null,0,0,null,null,null,null,null,null,null,null,null,null,null,null,null,0,0]
[838,null,null,null,null,null,null,null,null,{"$f":"DATEDIF(C834,I834,\"y\")","v":0},0,null,null,null,null,null,null,null,null,null,null,null,null,null,0,0]
[839,null,null,null,null,null,null,null,null,0,0,null,null,null,null,null,null,null,null,null,null,null,null,null,0,0]
[840,null,null,null,null,null,null,null,null,0,0,null,null,null,null,null,null,null,null,null,null,null,null,null,0,0]
[841,null,null,null,null,null,null,null,null,0,0,null,null,null,null,null,null,null,null,null,null,null,null,null,0,0]
[842,null,null,null,null,null,null,null,null,0,0,null,null,null,null,null,null,null,null,null,null,null,null,null,0,0]
[843,null,null,null,null,null,null,null,null,0,0,null,null,null,null,null,null,null,null,null,null,null,null,null,0,0]
[844,null,null,null,null,null,null,null,null,0,0,null,null,null,null,null,null,null,null,null,null,null,null,null,0,0]
[845,null,null,null,null,null,null,null,null,0,0,null,null,null,null,null,null,null,null,null,null,null,null,null,0,0]
[846,null,null,null,null,null,null,null,null,0,0,null,null,null,null,null,null,null,null,null,null,null,null,null,0,0]
[847,null,null,null,null,null,null,null,null,0,0,null,null,null,null,null,null,null,null,null,null,null,null,null,0,0]
[848,null,null,null,null,null,null,null,null,0,0,null,null,null,null,null,null,null,null,null,null,null,null,null,0,0]
[849,null,null,null,null,null,null,null,null,0,0,null,null,null,null,null,null,null,null,null,null,null,null,null,0,{"$f":"IF(AF845-I845>=0,AF845-I845,\"\")","v":0}]
[850,null,null,null,null,null,null,null,null,0,0,null,null,null,null,null,null,null,null,null,null,null,null,null,0,0]
[851,null,null,null,null,null,null,null,null,0,0,null,null,null,null,null,null,null,null,null,null,null,null,null,0,0]
[852,null,null,null,null,null,null,null,null,0,0,null,null,null,null,null,null,null,null,null,null,null,null,null,0,0]
[853,null,null,null,null,null,null,null,null,0,0,null,null,null,null,null,null,null,null,null,null,null,null,null,0,0]
[854,null,null,null,null,null,null,null,null,0,0,null,null,null,null,null,null,null,null,null,null,null,null,null,0,0]
[855,null,null,null,null,null,null,null,null,0,0,null,null,null,null,null,null,null,null,null,null,null,null,null,0,0]
[856,null,null,null,null,null,null,null,null,0,0,null,null,null,null,null,null,null,null,null,null,null,null,null,0,0]
[857,null,null,null,null,null,null,null,null,0,0,null,null,null,null,null,null,null,null,null,null,null,null,null,0,0]
[858,null,null,null,null,null,null,null,null,0,0,null,null,null,null,null,null,null,null,null,null,null,null,null,0,0]
[859,null,null,null,null,null,null,null,null,0,0,null,null,null,null,null,null,null,null,null,null,null,null,null,0,0]
[860,null,null,null,null,null,null,null,null,0,0,null,null,null,null,null,null,null,null,null,null,null,null,null,0,0]
[861,null,null,null,null,null,null,null,null,0,0,null,null,null,null,null,null,null,null,null,null,null,null,null,0,0]
[862,null,null,null,null,null,null,null,null,0,0,null,null,null,null,null,null,null,null,null,null,null,null,null,0,0]
[863,null,null,null,null,null,null,null,null,0,0,null,null,null,null,null,null,null,null,null,null,null,null,null,0,0]
[864,null,null,null,null,null,null,null,null,0,0,null,null,null,null,null,null,null,null,null,null,null,null,null,0,0]
[865,null,null,null,null,null,null,null,null,0,0,null,null,null,null,null,null,null,null,null,null,null,null,null,0,0]
[866,null,null,null,null,null,null,null,null,0,0,null,null,null,null,null,null,null,null,null,null,null,null,null,0,0]
[867,null,null,null,null,null,null,null,null,0,0,null,null,null,null,null,null,null,null,null,null,null,null,null,0,0]
[868,null,null,null,null,null,null,null,null,0,0,null,null,null,null,null,null,null,null,null,null,null,null,null,0,0]
[869,null,null,null,null,null,null,null,null,0,0,null,null,null,null,null,null,null,null,null,null,null,null,null,0,0]
[870,null,null,null,null,null,null,null,null,0,0,null,null,null,null,null,null,null,null,null,null,null,null,null,0,0]
[871,null,null,null,null,null,null,null,null,0,0,null,null,null,null,null,null,null,null,null,null,null,null,null,0,0]
[872,null,null,null,null,null,null,null,null,0,0,null,null,null,null,null,null,null,null,null,null,null,null,null,0,0]
[873,null,null,null,null,null,null,null,null,0,0,null,null,null,null,null,null,null,null,null,null,null,null,null,0,0]
[874,null,null,null,null,null,null,null,null,0,0,null,null,null,null,null,null,null,null,null,null,null,null,null,0,0]
[875,null,null,null,null,null,null,null,null,0,0,null,null,null,null,null,null,null,null,null,null,null,null,null,0,0]
[876,null,null,null,null,null,null,null,null,0,0,null,null,null,null,null,null,null,null,null,null,null,null,null,0,0]
[877,null,null,null,null,null,null,null,null,0,0,null,null,null,null,null,null,null,null,null,null,null,null,null,0,0]
[878,null,null,null,null,null,null,null,null,0,0,null,null,null,null,null,null,null,null,null,null,null,null,null,0,0]
[879,null,null,null,null,null,null,null,null,0,0,null,null,null,null,null,null,null,null,null,null,null,null,null,0,0]
[880,null,null,null,null,null,null,null,null,0,0,null,null,null,null,null,null,null,null,null,null,null,null,null,0,0]
[881,null,null,null,null,null,null,null,null,0,0,null,null,null,null,null,null,null,null,null,null,null,null,null,0,0]
[882,null,null,null,null,null,null,null,null,0,0,null,null,null,null,null,null,null,null,null,null,null,null,null,0,0]
[883,null,null,null,null,null,null,null,null,0,0,null,null,null,null,null,null,null,null,null,null,null,null,null,0,0]
[884,null,null,null,null,null,null,null,null,0,0,null,null,null,null,null,null,null,null,null,null,null,null,null,0,0]
[885,null,null,null,null,null,null,null,null,0,0,null,null,null,null,null,null,null,null,null,null,null,null,null,0,0]
[886,null,null,null,null,null,null,null,null,0,0,null,null,null,null,null,null,null,null,null,null,null,null,null,0,0]
[887,null,null,null,null,null,null,null,null,0,0,null,null,null,null,null,null,null,null,null,null,null,null,null,0,0]
[888,null,null,null,null,null,null,null,null,0,0,null,null,null,null,null,null,null,null,null,null,null,null,null,0,0]
[889,null,null,null,null,null,null,null,null,0,0,null,null,null,null,null,null,null,null,null,null,null,null,null,0,0]
[890,null,null,null,null,null,null,null,null,0,0,null,null,null,null,null,null,null,null,null,null,null,null,null,0,0]
[891,null,null,null,null,null,null,null,null,0,0,null,null,null,null,null,null,null,null,null,null,null,null,null,0,0]
[892,null,null,null,null,null,null,null,null,0,0,null,null,null,null,null,null,null,null,null,null,null,null,null,0,0]
[893,null,null,null,null,null,null,null,null,0,0,null,null,null,null,null,null,null,null,null,null,null,null,null,0,0]
[894,null,null,null,null,null,null,null,null,0,0,null,null,null,null,null,null,null,null,null,null,null,null,null,0,0]
[895,null,null,null,null,null,null,null,null,0,0,null,null,null,null,null,null,null,null,null,null,null,null,null,0,0]
[896,null,null,null,null,null,null,null,null,0,0,null,null,null,null,null,null,null,null,null,null,null,null,null,0,0]
[897,null,null,null,null,null,null,null,null,0,{"$f":"F893-I893","v":0},null,null,null,null,null,null,null,null,null,null,null,null,null,{"$f":"IF(X893-F893>=0,X893-F893,\"\")","v":0},0]
[898,null,null,null,null,null,null,null,null,0,0,null,null,null,null,null,null,null,null,null,null,null,null,null,0,0]
[899,null,null,null,null,null,null,null,null,0,0,null,null,null,null,null,null,null,null,null,null,null,null,null,0,0]
[900,null,null,null,null,null,null,null,null,0,0,null,null,null,null,null,null,null,null,null,null,null,null,null,0,0]
[901,null,null,null,null,null,null,null,null,0,0,null,null,null,null,null,null,null,null,null,null,null,null,null,0,0]
[902,null,null,null,null,null,null,null,null,{"$f":"DATEDIF(C898,I898,\"y\")","v":0},0,null,null,null,null,null,null,null,null,null,null,null,null,null,0,0]
[903,null,null,null,null,null,null,null,null,0,0,null,null,null,null,null,null,null,null,null,null,null,null,null,0,0]
[904,null,null,null,null,null,null,null,null,0,0,null,null,null,null,null,null,null,null,null,null,null,null,null,0,0]
[905,null,null,null,null,null,null,null,null,0,0,null,null,null,null,null,null,null,null,null,null,null,null,null,0,0]
[906,null,null,null,null,null,null,null,null,0,0,null,null,null,null,null,null,null,null,null,null,null,null,null,0,0]
[907,null,null,null,null,null,null,null,null,0,0,null,null,null,null,null,null,null,null,null,null,null,null,null,0,0]
[908,null,null,null,null,null,null,null,null,0,0,null,null,null,null,null,null,null,null,null,null,null,null,null,0,0]
[909,null,null,null,null,null,null,null,null,0,0,null,null,null,null,null,null,null,null,null,null,null,null,null,0,0]
[910,null,null,null,null,null,null,null,null,0,0,null,null,null,null,null,null,null,null,null,null,null,null,null,0,0]
[911,null,null,null,null,null,null,null,null,0,0,null,null,null,null,null,null,null,null,null,null,null,null,null,0,0]
[912,null,null,null,null,null,null,null,null,0,0,null,null,null,null,null,null,null,null,null,null,null,null,null,0,0]
[913,null,null,null,null,null,null,null,null,0,0,null,null,null,null,null,null,null,null,null,null,null,null,null,0,{"$f":"IF(AF909-I909>=0,AF909-I909,\"\")","v":0}]
[914,null,null,null,null,null,null,null,null,0,0,null,null,null,null,null,null,null,null,null,null,null,null,null,0,0]
[915,null,null,null,null,null,null,null,null,0,0,null,null,null,null,null,null,null,null,null,null,null,null,null,0,0]
[916,null,null,null,null,null,null,null,null,0,0,null,null,null,null,null,null,null,null,null,null,null,null,null,0,0]
[917,null,null,null,null,null,null,null,null,0,0,null,null,null,null,null,null,null,null,null,null,null,null,null,0,0]
[918,null,null,null,null,null,null,null,null,0,0,null,null,null,null,null,null,null,null,null,null,null,null,null,0,0]
[919,null,null,null,null,null,null,null,null,0,0,null,null,null,null,null,null,null,null,null,null,null,null,null,0,0]
[920,null,null,null,null,null,null,null,null,0,0,null,null,null,null,null,null,null,null,null,null,null,null,null,0,0]
[921,null,null,null,null,null,null,null,null,0,0,null,null,null,null,null,null,null,null,null,null,null,null,null,0,0]
[922,null,null,null,null,null,null,null,null,0,0,null,null,null,null,null,null,null,null,null,null,null,null,null,0,0]
[923,null,null,null,null,null,null,null,null,0,0,null,null,null,null,null,null,null,null,null,null,null,null,null,0,0]
[924,null,null,null,null,null,null,null,null,0,0,null,null,null,null,null,null,null,null,null,null,null,null,null,0,0]
[925,null,null,null,null,null,null,null,null,0,0,null,null,null,null,null,null,null,null,null,null,null,null,null,0,0]
[926,null,null,null,null,null,null,null,null,0,0,null,null,null,null,null,null,null,null,null,null,null,null,null,0,0]
[927,null,null,null,null,null,null,null,null,0,0,null,null,null,null,null,null,null,null,null,null,null,null,null,0,0]
[928,null,null,null,null,null,null,null,null,0,0,null,null,null,null,null,null,null,null,null,null,null,null,null,0,0]
[929,null,null,null,null,null,null,null,null,0,0,null,null,null,null,null,null,null,null,null,null,null,null,null,0,0]
[930,null,null,null,null,null,null,null,null,0,0,null,null,null,null,null,null,null,null,null,null,null,null,null,0,0]
[931,null,null,null,null,null,null,null,null,0,0,null,null,null,null,null,null,null,null,null,null,null,null,null,0,0]
[932,null,null,null,null,null,null,null,null,0,0,null,null,null,null,null,null,null,null,null,null,null,null,null,0,0]
[933,null,null,null,null,null,null,null,null,0,0,null,null,null,null,null,null,null,null,null,null,null,null,null,0,0]
[934,null,null,null,null,null,null,null,null,0,0,null,null,null,null,null,null,null,null,null,null,null,null,null,0,0]
[935,null,null,null,null,null,null,null,null,0,0,null,null,null,null,null,null,null,null,null,null,null,null,null,0,0]
[936,null,null,null,null,null,null,null,null,0,0,null,null,null,null,null,null,null,null,null,null,null,null,null,0,0]
[937,null,null,null,null,null,null,null,null,0,0,null,null,null,null,null,null,null,null,null,null,null,null,null,0,0]
[938,null,null,null,null,null,null,null,null,0,0,null,null,null,null,null,null,null,null,null,null,null,null,null,0,0]
[939,null,null,null,null,null,null,null,null,0,0,null,null,null,null,null,null,null,null,null,null,null,null,null,0,0]
[940,null,null,null,null,null,null,null,null,0,0,null,null,null,null,null,null,null,null,null,null,null,null,null,0,0]
[941,null,null,null,null,null,null,null,null,0,0,null,null,null,null,null,null,null,null,null,null,null,null,null,0,0]
[942,null,null,null,null,null,null,null,null,0,0,null,null,null,null,null,null,null,null,null,null,null,null,null,0,0]
[943,null,null,null,null,null,null,null,null,0,0,null,null,null,null,null,null,null,null,null,null,null,null,null,0,0]
[944,null,null,null,null,null,null,null,null,0,0,null,null,null,null,null,null,null,null,null,null,null,null,null,0,0]
[945,null,null,null,null,null,null,null,null,0,0,null,null,null,null,null,null,null,null,null,null,null,null,null,0,0]
[946,null,null,null,null,null,null,null,null,0,0,null,null,null,null,null,null,null,null,null,null,null,null,null,0,0]
[947,null,null,null,null,null,null,null,null,0,0,null,null,null,null,null,null,null,null,null,null,null,null,null,0,0]
[948,null,null,null,null,null,null,null,null,0,0,null,null,null,null,null,null,null,null,null,null,null,null,null,0,0]
[949,null,null,null,null,null,null,null,null,0,0,null,null,null,null,null,null,null,null,null,null,null,null,null,0,0]
[950,null,null,null,null,null,null,null,null,0,0,null,null,null,null,null,null,null,null,null,null,null,null,null,0,0]
[951,null,null,null,null,null,null,null,null,0,0,null,null,null,null,null,null,null,null,null,null,null,null,null,0,0]
[952,null,null,null,null,null,null,null,null,0,0,null,null,null,null,null,null,null,null,null,null,null,null,null,0,0]
[953,null,null,null,null,null,null,null,null,0,0,null,null,null,null,null,null,null,null,null,null,null,null,null,0,0]
[954,null,null,null,null,null,null,null,null,0,0,null,null,null,null,null,null,null,null,null,null,null,null,null,0,0]
[955,null,null,null,null,null,null,null,null,0,0,null,null,null,null,null,null,null,null,null,null,null,null,null,0,0]
[956,null,null,null,null,null,null,null,null,0,0,null,null,null,null,null,null,null,null,null,null,null,null,null,0,0]
[957,null,null,null,null,null,null,null,null,0,0,null,null,null,null,null,null,null,null,null,null,null,null,null,0,0]
[958,null,null,null,null,null,null,null,null,0,0,null,null,null,null,null,null,null,null,null,null,null,null,null,0,0]
[959,null,null,null,null,null,null,null,null,0,0,null,null,null,null,null,null,null,null,null,null,null,null,null,0,0]
[960,null,null,null,null,null,null,null,null,0,0,null,null,null,null,null,null,null,null,null,null,null,null,null,0,0]
[961,null,null,null,null,null,null,null,null,0,{"$f":"F957-I957","v":0},null,null,null,null,null,null,null,null,null,null,null,null,null,{"$f":"IF(X957-F957>=0,X957-F957,\"\")","v":0},0]
[962,null,null,null,null,null,null,null,null,0,0,null,null,null,null,null,null,null,null,null,null,null,null,null,0,0]
[963,null,null,null,null,null,null,null,null,0,0,null,null,null,null,null,null,null,null,null,null,null,null,null,0,0]
[964,null,null,null,null,null,null,null,null,0,0,null,null,null,null,null,null,null,null,null,null,null,null,null,0,0]
[965,null,null,null,null,null,null,null,null,0,0,null,null,null,null,null,null,null,null,null,null,null,null,null,0,0]
[966,null,null,null,null,null,null,null,null,{"$f":"DATEDIF(C962,I962,\"y\")","v":0},0,null,null,null,null,null,null,null,null,null,null,null,null,null,0,0]
[967,null,null,null,null,null,null,null,null,0,0,null,null,null,null,null,null,null,null,null,null,null,null,null,0,0]
[968,null,null,null,null,null,null,null,null,0,0,null,null,null,null,null,null,null,null,null,null,null,null,null,0,0]
[969,null,null,null,null,null,null,null,null,0,0,null,null,null,null,null,null,null,null,null,null,null,null,null,0,0]
[970,null,null,null,null,null,null,null,null,0,0,null,null,null,null,null,null,null,null,null,null,null,null,null,0,0]
[971,null,null,null,null,null,null,null,null,0,0,null,null,null,null,null,null,null,null,null,null,null,null,null,0,0]
[972,null,null,null,null,null,null,null,null,0,0,null,null,null,null,null,null,null,null,null,null,null,null,null,0,0]
[973,null,null,null,null,null,null,null,null,0,0,null,null,null,null,null,null,null,null,null,null,null,null,null,0,0]
[974,null,null,null,null,null,null,null,null,0,0,null,null,null,null,null,null,null,null,null,null,null,null,null,0,0]
[975,null,null,null,null,null,null,null,null,0,0,null,null,null,null,null,null,null,null,null,null,null,null,null,0,0]
[976,null,null,null,null,null,null,null,null,0,0,null,null,null,null,null,null,null,null,null,null,null,null,null,0,0]
[977,null,null,null,null,null,null,null,null,0,0,null,null,null,null,null,null,null,null,null,null,null,null,null,0,{"$f":"IF(AF973-I973>=0,AF973-I973,\"\")","v":0}]
[978,null,null,null,null,null,null,null,null,0,0,null,null,null,null,null,null,null,null,null,null,null,null,null,0,0]
[979,null,null,null,null,null,null,null,null,0,0,null,null,null,null,null,null,null,null,null,null,null,null,null,0,0]
[980,null,null,null,null,null,null,null,null,0,0,null,null,null,null,null,null,null,null,null,null,null,null,null,0,0]
[981,null,null,null,null,null,null,null,null,0,0,null,null,null,null,null,null,null,null,null,null,null,null,null,0,0]
[982,null,null,null,null,null,null,null,null,0,0,null,null,null,null,null,null,null,null,null,null,null,null,null,0,0]
[983,null,null,null,null,null,null,null,null,0,0,null,null,null,null,null,null,null,null,null,null,null,null,null,0,0]
[984,null,null,null,null,null,null,null,null,0,0,null,null,null,null,null,null,null,null,null,null,null,null,null,0,0]
[985,null,null,null,null,null,null,null,null,0,0,null,null,null,null,null,null,null,null,null,null,null,null,null,0,0]
[986,null,null,null,null,null,null,null,null,0,0,null,null,null,null,null,null,null,null,null,null,null,null,null,0,0]
[987,null,null,null,null,null,null,null,null,0,0,null,null,null,null,null,null,null,null,null,null,null,null,null,0,0]
[988,null,null,null,null,null,null,null,null,0,0,null,null,null,null,null,null,null,null,null,null,null,null,null,0,0]
[989,null,null,null,null,null,null,null,null,0,0,null,null,null,null,null,null,null,null,null,null,null,null,null,0,0]
[990,null,null,null,null,null,null,null,null,0,0,null,null,null,null,null,null,null,null,null,null,null,null,null,0,0]
[991,null,null,null,null,null,null,null,null,0,0,null,null,null,null,null,null,null,null,null,null,null,null,null,0,0]
[992,null,null,null,null,null,null,null,null,0,0,null,null,null,null,null,null,null,null,null,null,null,null,null,0,0]
[993,null,null,null,null,null,null,null,null,0,0,null,null,null,null,null,null,null,null,null,null,null,null,null,0,0]
[994,null,null,null,null,null,null,null,null,0,0,null,null,null,null,null,null,null,null,null,null,null,null,null,0,0]
[995,null,null,null,null,null,null,null,null,0,0,null,null,null,null,null,null,null,null,null,null,null,null,null,0,0]
[996,null,null,null,null,null,null,null,null,0,0,null,null,null,null,null,null,null,null,null,null,null,null,null,0,0]
[997,null,null,null,null,null,null,null,null,0,0,null,null,null,null,null,null,null,null,null,null,null,null,null,0,0]
[998,null,null,null,null,null,null,null,null,0,0,null,null,null,null,null,null,null,null,null,null,null,null,null,0,0]
[999,null,null,null,null,null,null,null,null,0,0,null,null,null,null,null,null,null,null,null,null,null,null,null,0,0]

{"sheet":"Summary (EN & FR)","index":1,"n_rows":79,"n_cols":3,"rows_kept":79,"cut":false,"hidden":false,"merged":[]}
["CIHI data (Denominator B) Admitted hip # from database/CIHI (hospital data) ","Données de CIHI (Dénominateur B) Admission de la hanche dans la base de données/CIHI (données hospitalières)",43]
[]
["B-Demominator (CIHI data x 1.7)","B-Demominator (données de CIHI x 1.7)",{"$f":"C1*1.7","v":73.099999999999994}]
[]
["How many total enrolled patients (eligible and ineligible)?","Combien de patients inscrits au total (eligble et inéligibles)?",{"$f":"'Criteria Calculations'!B130","v":3}]
["How many total enrolled patients (eligible)?","Combien de patients inscrits (éligibles)?",{"$f":"'Criteria Calculations'!B128","v":3}]
["How many total enrolled patients (ineligible)?","Combien de patients inscrits au total (inéligibles)?",{"$f":"'Criteria Calculations'!B129","v":0}]
[]
["How many trauma?","Combien de traumatismes ?",{"$f":"COUNTIF(Primary!N2:N4780, \"Trauma/traumatique\")","v":0}]
["How many palliative care?","Combien de soins palliatifs?",{"$f":"COUNTIF(Primary!N2:N4780, \"Palliative/ Soins palliatif  \")","v":0}]
["How many patient declined?","Combien de patients ont refusé?",{"$f":"COUNTIF(Primary!N2:N4780, \"Patient declined/Refus du patient\")","v":0}]
["How many No family doc (for initial fracture)?","Combien de doc De famille (pour la fracture initiale)?",{"$f":"COUNTIF(Primary!N2:N4780, \"No family doc/Pas de médecin de famille\")","v":0}]
["How many referred to OP Specialist (for initial fracture)?","Combien ont mentionné OP Specialist (pour la fracture initiale)?",{"$f":"COUNTIF(Primary!N2:N4780, \"OP specialist/ Spécialiste en ostéoporose\")","v":0}]
["How many non-osteoporotic fractures?","Combien de fractures fracture non-ostéoporotique ?",{"$f":"COUNTIF(Primary!N2:N4780, \"Non-osteoporotic fracture/ Fracture non-ostéoporotique\")","v":0}]
[]
["How many HIGH risk patients?","Combien de patients à risque ÉLEVÉ?",{"$f":"'Criteria Calculations'!B121","v":1}]
["How many MODERATE risk patients?","Combien de patients à risque MODERATE?",{"$f":"'Criteria Calculations'!B123","v":0}]
["How many LOW risk patients?","Combien de patients à risque LOW?",{"$f":"'Criteria Calculations'!B132","v":0}]
[]
["Number of Hip Fractures","Nombre de fractures de la hanche"]
[]
["A-Total Hip Fractures Eligible (enrolled 12wks post fracture)","A-Total Fractures de la hanche éligibles (inscrits 12wks post fracture)",{"$f":"'Criteria Calculations'!B30","v":1}]
[]
["Number of non-hip fractures","Nombre de fractures non-hip"]
["Total Wrist Fractures Eligible (enrolled 12wks post fracture)\n","Fractures totales du poignet admissibles (12wks inscrits après fracture)",{"$f":"'Criteria Calculations'!B42","v":1}]
["Total Shoulder Fractures Eligible (enrolled 12wks post fracture)\n","Fractures totales de l'épaule éligibles (12wks inscrits après fracture)",{"$f":"'Criteria Calculations'!B45","v":1}]
["Total Pelvis Fractures Eligible (enrolled 12wks post fracture)","Fractures pelvis totales éligibles (inscrits 12wks post fracture)",{"$f":"'Criteria Calculations'!B49","v":0}]
["Total Spine Fractures Eligible (enrolled 12wks post fracture)","Fractures totales de la colonne vertébrale éligibles (inscrits 12wks post fracture)",{"$f":"'Criteria Calculations'!B53","v":0}]
[]
["A-Pts with non-hip, non-spine enrolled with 12 weeks(<=84d)","A-Pts avec non-hanche, non-colonne vertébrale inscrit avec 12 semaines (<=84d)",{"$f":"'Criteria Calculations'!B36","v":2}]
["A-TOTAL: Patients with fracture of hip, shoulder, wrist, pelvis ","A-totale (hanche, épaule, poignet et bassin)",{"$f":"C22+C30","v":3}]
[]
[]
["C-Patients with fracture risk assessment of hip Fractures eligible (enrolled 12wks post fracture)","C-Patients avec l'évaluation du risque de fracture de la hanche totale Fractures de la hanche admissibles (inscrits 12wks post fracture)",{"$f":"'Criteria Calculations'!B61","v":1}]
["C-Patients with fracture risk assessment of with non-hip, non-spine shoulder, wrist, pelvis) enrolled with 12 weeks(<=84d)","C-Patientsavec l'évaluation du risque de fracture de Pts avec non-hanche, non-épine s'inscrit avec 12 semaines (<=84d)",{"$f":"'Criteria Calculations'!B68","v":2}]
["C-TOTAL: Patients with fracture risk assessment of hip, shoulder, wrist or pelvis enrolled with 12 weeks(<=84d)","C-Totale(hanche, épaule, poignet et bassin)",{"$f":"C34+C35","v":3}]
[]
[]
["D-Patients with fracture risk assessment of Total Hip Fracture Eligible (enrolled 12 wks post fracture plus HIGH risk)","D-Patients avec l'évaluation du risque de fracture de la fracture totale de la hanche admissible (inscrits 12 wks post fracture plus risque élevé)",{"$f":"'Criteria Calculations'!B77","v":1}]
["D-High Risk non-hip and non-spine (and determined by FRD by 26wks)","D-High Risk non-hip et non-colonne vertébrale (et déterminé par FRD par 26wks)",{"$f":"'Criteria Calculations'!B86","v":2}]
["D: TOTAL-pts at HIGH RISK","C-Totale(hanche, épaule, poignet et bassin)",{"$f":"C39+C40","v":3}]
[]
[]
["E-High Risk-hip (and determined by FRD (within 26wks) plus initiated at 26wks)","E-High Risk hanche (et déterminé par FRD par 12 wks plus initié)",{"$f":"'Criteria Calculations'!B99","v":1}]
["E-High Risk-non hip, non spine (and determined by FRD (within 26wks) plus initiated at 26wks)","E-High Risk hanche (et déterminé par FRD par 12 wks plus initié)",{"$f":"'Criteria Calculations'!M107","v":1}]
["E-TOTAL: High Risk (and determined by FRD (within 26wks) plus initiated at 26wks)","E-High Risk hanche (et déterminé par FRD par 12 wks plus initié)",{"$f":"C45+C44","v":2}]
[]
["F-number of patients(HIGH-RISK patients initiated and/or recommended to remain on osteoporosis medication as per the numerator for KPI 3) who are still on first-line osteoporosis medication (whether it is still the original one, or switched to an alternate one) at least 52 weeks after their incident fracture","F- nombre de patients ( patients qui ont amorcé un traitement médicamenteux contre l’ostéoporose et/ou à qui l’on a recommandé de poursuivre le traitement médicamenteux de première lignecontre l’ostéoporose. Comprend les patients qui sont décédés.)qui suivent encore un traitement médicamenteux de première ligne contre l’ostéoporose (que ce soit le traitement initial ou qu’ils soient passés à un autre traitement) au moins 52 semaines après la survenue de la fracture",{"$f":"'Criteria Calculations'!B6","v":3}]
[]
["KPI 1 (identification)","KPI 1 (identification)"]
["First i(A/B*100)-HIP \nNumber of patients aged 50 and up with a fragility fracture of the\nhip (proximal femur) enrolled in the FLS within 12 weeks of the\nincident fracture./Number of patients admitted or discharged with a hip fracture,from the hospital’s administrative databasec X 1.","Premier i(A/B*100)\nNombre de patients âgés de 50 ans et plus présentant une fracture de fragilité de la hanche (fémur proximal) inscrits au FLS dans les 12 semaines suivant la survenue de la fracture./ Nombre de patients admis/ayant quitté l’hôpital avec une fracture\nde la hanche, selon la base de données administratives de l’hôpital  (x1.0). ",{"$f":"C22/C1","v":2.3255813953488372E-2}]
["First i (A/B*100)-Non HIP, Non Spine \nNumber of patients aged 50 and up with a fragility fracture of the shoulder (proximal humerus), wrist (distal radius) or pelvis enrolled in the FLS within 12 weeks of the\nincident fracture./ Number of patients admitted/discharged with a hip fracture, from the\nhospital’s administrative database  X 1.7.","Premier i (A/B*100)-Non hanche, Non colonne vertébrale\nNombre de patients âgés de 50 ans et plus présentant une fracture de fragilité du poignet (radius distal), de l’épaule (humérus\nproximal) ou du bassin inscrits au FLS dans les 12 semaines suivant la survenue de la fracture / Nombre de patients hospitalisés ou ayant\nquitté l’hôpital avec une fracture de la hanche, selon la base de données\nadministratives de l’hôpital  (x1.7).",{"$f":"C30/C3","v":2.7359781121751029E-2}]
["KPI 2 (investigation)","KPI 2 (investigation)"]
["Second i (C/A*100)\nOf denominator A, number of patients aged 50 and up with a fragility fracture of the\nhip (proximal femur), shoulder (proximal humerus), wrist (distal radius) or pelvis who have a fracture risk completed by a validated fracture risk assessment tool (FRAX with or without BMD or CAROC) within 26 weeks of the incident fracture/Number of patients aged 50 and up with a fragility fracture of the hip (proximal femur), shoulder (proximal humerus), wrist (distal radial) or pelvis enrolled in the FLS within 12 weeksof the incident fracture, as per the numerators for KPI 1. Includes patients who have died.","Deuxième i HIP (C/A*100)\nDu dénominateur  (A), nombre de patients âgés de 50 ans et plus ayant subi une fracture de la hanche (fémur proximal), de l’épaule (humérus proximal), du poignet (radius distal) ou du bassin chez qui on a procédé à une évaluation du risque de fracture au moyen d’un outil d’évaluation des risques de fracture validé (FRAX avec ou sans DMO ou CAROC) dans les 26 semaines suivant la survenue de la fracture./ Nombre de patients âgés de 50 ans et plus ayant subi une fracture de fragilité de la hanche\n(fémur proximal), de l’épaule (humérus proximal), du poignet (radius distal) ou du bassin qui sont inscrits au FLS selon les numérateurs du KPI 1.",{"$f":"C36/C31","v":1}]
["KPI 3 (initiation)","KPI 3 (initiation)"]
["Third i (E/D*100)  \nOf denominator D, the number of HIGH-RISK patients initiated and/or still on a first-line osteoporosis medication within 26 weeks of the incident fracture/ Number of HIGH-RISK patients (after determination of fracture risk by a validated fracture risk determination tool such as FRAX with or without BMD or CAROC within 26 weeks of the incident fracture). Includes patients who have died)","Troisième i (E/D*100)\nDu dénominateur (D), nombre de patients à RISQUE ÉLEVÉ qui ont amorcéa  et/ou qui ont poursuivi un traitement médicamenteux de première ligne contre l’ostéoporose dans les 26 semaines suivant la survenue de la fracture/ Nombre de patients à RISQUE ÉLEVÉ (après détermination du risque de fracture au moyen d’un outil de détermination du risque de fracture validé tel que FRAX avec ou sans DMO ou CAROC) dans les 26 semaines suivant la survenue de la fracture. Comprend les patients qui sont décédés.",{"$f":"C46/C41","v":0.66666666666666663}]
["KPI 4 (persistence of Rx)","KPI 4 (persistance du traitement)"]
["Fourth i (F/E *100)\nNumber of patients who are still on first-line osteoporosis medication (whether it is still the original one, or switched to an alternate one) at least 52 weeks after their incident fracture/Number of HIGH-RISK patients initiated and/or recommended to remain on osteoporosis medication as per the numerator for KPI 3. Includes patients who have died.)","Quatrième i (F/E *100)\nDu dénominateur E, nombre de patients qui suivent encore un traitement médicamenteux de première ligne contre l’ostéoporose (que ce soit le traitement initial ou qu’ils soient passés à un autre traitement) au moins 52 semaines après la survenue de la fracture/Nombre de patients qui ont amorcé un traitement médicamenteux contre l’ostéoporose et/ ou à qui l’on a recommandé de poursuivre le traitement médicamenteux de première ligne contre l’ostéoporose. Comprend les patients qui sont décédés.",{"$f":"C48/C46","v":1.5}]
[]
["Supplementary KPIs"]
[]
["Falls Prevention\n(num of pts referred to falls prev/number of pts enrolled at high falls risk)",null,{"$f":"'Criteria Calculations'!B229","v":1}]
["Numerator=num of pts referred to falls prev",null,{"$f":"'Criteria Calculations'!E230","v":3}]
["Denominator=number of pts enrolled at high falls risk",null,{"$f":"'Criteria Calculations'!I230","v":3}]
[]
["Repeat/subsequent fractures \n(num of enrolled pts who have a new fracture within specified time frame(2nd year post-fracture)/num of pts the FLS has follow-up data (2nd yr post-fracture)",null,{"$f":"'Criteria Calculations'!B232","v":0}]
["Numerator=num of enrolled pts who have a new fracture within specified time frame(2nd year post-fracture)",null,{"$f":"'Criteria Calculations'!E233","v":0}]
["Denominator=num of pts the FLS has follow-up data (2nd yr post-fracture)",null,{"$f":"'Criteria Calculations'!I233","v":3}]
[]
["Demographics"]
[]
["Gender calculations: number of eligible males and females in data set","Calculs de genre : nombre d'hommes et de femmes admissibles dans l'ensemble de données"]
["Females","Femme",{"$f":"'Criteria Calculations'!B201","v":2}]
["Males","Homme",{"$f":"'Criteria Calculations'!B204","v":1}]
[]
["Number of patients with fragility fractures after age 40 (hip, spine, wrist, shoulder, pelvis)","Nombre de patients présentant des fractures de fragilité après l'âge de 40 ans (hanche, colonne vertébrale, poignet, épaule, bassin)",{"$f":"'Criteria Calculations'!B208","v":0}]
["Number of falls in the last year (including the one that led to the incident fracture)-ie \"1\" or \"2 or more\"","Nombre de chutes au cours de la dernière année (y compris celle qui a mené à la fracture de l'incident) - c'est-à-dire « 1 » ou « 2 ou plus »",{"$f":"'Criteria Calculations'!B211","v":3}]
["Treatment status at time of fracture (e.g. already on osteoprosis treatment at time of fracture)","État du traitement au moment de la fracture (p. ex. déjà sous traitement d'ostéoprose au moment de la fracture)",{"$f":"'Criteria Calculations'!B214","v":0}]
["Treatment failure (e.g. pt has already received a full year or more of appropriate Tx prior to FF)","Échec du traitement (p. ex. pt a déjà reçu une année complète ou plus de Tx approprié avant FF)",{"$f":"'Criteria Calculations'!B217","v":0}]

{"sheet":"Monthly printout","index":2,"n_rows":11,"n_cols":24,"rows_kept":11,"cut":false,"hidden":false,"merged":[]}
[]
["Current date:         Date actuelle:","2019-05-10",null,null,null,null,null,null,null,null,null,null,null,null,null,null,"Patient Eligible/ admissible","3-6 month follow-up/  Suivi de 3-6 mois","OP treatment\n3-6 month/ Traitement OP de 3-6 mois","OP treatment\n6-9 month","OP treatment\n6-9 month/ Traitement OP de 6-9 mois","OP treatment\n1 yr / Traitement OP d'un an","Date of Initial/ première FLS visit(e) yyyy/mm/dd","Fracture risk/ risque de fracture"]
["(control + ;)",null,null,null,null,null,null,null,null,null,null,null,null,null,null,null,"YES/OUI",{"$f":"\"=\"","v":"="},{"$f":"\"=\"","v":"="},{"$f":"\"=\"","v":"="},"=","=",{"$f":"\"<=\"&DATE(YEAR(B2),MONTH(B2)+3,DAY(B2))","v":"<=43687"},"HIGH/ÉLEVÉ"]
[null,null,null,null,null,null,null,null,null,null,null,null,null,null,null,null,"YES/OUI","Unable to contact/ Impossible à rejoindre",{"$f":"\"=\"","v":"="},"=","=","=",{"$f":"\"<=\"&DATE(YEAR(B2),MONTH(B2)+3,DAY(B2))","v":"<=43687"},"HIGH/ÉLEVÉ"]
[null,null,null,null,null,null,null,null,null,null,null,null,null,null,null,null,"YES/OUI",{"$f":"\"=\"","v":"="},{"$f":"\"=\"","v":"="},"Unable to contact/ Impossible à rejoindre","=","=",{"$f":"\"<=\"&DATE(YEAR(B2),MONTH(B2)+3,DAY(B2))","v":"<=43687"},"HIGH/ÉLEVÉ"]
["Names to call/Noms à appeler :",null,null,null,null,null,null,null,null,null,null,null,null,null,null,null,"YES/OUI",{"$f":"\"=\"","v":"="},"None/Aucun","=","=","=",{"$f":"\"<=\"&DATE(YEAR(B2),MONTH(B2)+3,DAY(B2))","v":"<=43687"},"HIGH/ÉLEVÉ"]
["Number/ Nombre","Name/Nom","Date of Initial/ première FLS visit(e) yyyy/mm/dd",null,null,null,null,null,null,null,null,null,null,null,null,null,"YES/OUI","Unable to contact/ Impossible à rejoindre","None/Aucun","=","=","=",{"$f":"\"<=\"&DATE(YEAR(B2),MONTH(B2)+3,DAY(B2))","v":"<=43687"},"HIGH/ÉLEVÉ"]
[null,null,null,null,null,null,null,null,null,null,null,null,null,null,null,null,"YES/OUI",{"$f":"\"=\"","v":"="},"None/Aucun","Unable to contact/ Impossible à rejoindre","=","=",{"$f":"\"<=\"&DATE(YEAR(B2),MONTH(B2)+3,DAY(B2))","v":"<=43687"},"HIGH/ÉLEVÉ"]
[null,null,null,null,null,null,null,null,null,null,null,null,null,null,null,null,"YES/OUI",{"$f":"\"=\"","v":"="},"None/Aucun","=","None/Aucun","=",{"$f":"\"<=\"&DATE(YEAR(B2),MONTH(B2)+3,DAY(B2))","v":"<=43687"},"HIGH/ÉLEVÉ"]
[null,null,null,null,null,null,null,null,null,null,null,null,null,null,null,null,"YES/OUI","Unable to contact/ Impossible à rejoindre","None/Aucun","=","None/Aucun","=",{"$f":"\"<=\"&DATE(YEAR(B2),MONTH(B2)+3,DAY(B2))","v":"<=43687"},"HIGH/ÉLEVÉ"]
[null,null,null,null,null,null,null,null,null,null,null,null,null,null,null,null,"YES/OUI",{"$f":"\"=\"","v":"="},"None/Aucun","Unable to contact/ Impossible à rejoindre","None/Aucun","=",{"$f":"\"<=\"&DATE(YEAR(B2),MONTH(B2)+3,DAY(B2))","v":"<=43687"},"HIGH/ÉLEVÉ"]

{"sheet":"DEMO-data entry","index":3,"n_rows":995,"n_cols":47,"rows_kept":995,"cut":false,"hidden":false,"merged":[]}
["Number/ Nombre","Name/Nom","DOB/DON    yyyy/mm/dd","Provincial health card number/  numéro de carte santé","Family Doctor (PHC)/ médecin de famille","Date of Initial/ première FLS visit(e) yyyy/mm/dd","Sex(e)","Living Status/ statut de vie","Date of/de Index Fracture  yyyy/mm/dd","Age at Time of Fracture/Âge au moment de la fracture","Days from fracture to first FLS visit/ jours de la fracture à la première visite","Fracture Type/ type de fracture","Patient Eligible/ admissible","Reason Patient Excluded/ raison patient exclu","Prior fragility fracture after age 40/Fracture de fragilité préalable après 40 ans","Number of falls/ nombre de chutes","Current OP Tx/ traitement actue OP","Patient Adherence (pt taking Tx for over 1 yr)/ Adhérence du patient (prise de la Tx pendant plus d'un an)","Is patient at a high risk for falls?/ Le patient présente-t-il un risque élevé de chute?","Referral to Falls prev services/ Référence à des services antichute","Blood work completed/ prises de sang terminée","Spine X-rays completed/  xrays d'épine terminée","Method of fracture risk determination/ Méthode de détermination du risque de fracture","Date fracture risk completed/ date limite du risque de fracture complété yyyy/mm/dd","Time to fracture risk assessment/temps pour évaluer le risque de fractur","Time to initial treatment/ temps jusqu'au traitement initial","Fracture risk/ risque de fracture","Recommended referal to OP specialist/ Recommandation recommandée au spécialiste en OP","3-6 month follow-up/  Suivi de 3-6 mois","OP treatment\n3-6 month/ Traitement OP de 3-6 mois","Patient Adherence         3-6 month/ Adhérence du patient de 3-6 mois","Date Tx started/      date de début du traitement yyyy/mm/dd","6-9 month follow-up/ Suivi de 6-9 mois","OP treatment\n6-9 month/ Traitement OP de 6-9 mois","Patient Adherence         6-9 month/ Adhérence du patient de 6-9 mois","One year follow-up/ Suivi d'un an","OP treatment>=52 wks/ Traitement OP d'un an","Patient Adherence         1 yr/ Adhérence du patient d'in an","New fracture? patient perspective/nouvelle fracture? (perspective du patient)","New fracture?(xray report)/  nouvelle fracture? (rapport de radiographie)","Comments/Commentaires","0-8 wks follow-up/\nSuivi de 0-8 semaines","OP treatment 0-8 wks/\nTraitement OP de 0-8 semaines","Patient Adherence         0-8 wks/ Adhérence du patient de0-8 semaines","8.1-16 wks follow-up/\nSuivi de 8.1-16 semaines","OP treatment 8.1-16 wks/\nTraitement OP de 8.1-16 semaines","Patient Adherence 8.1-16 wks/ Adhérence du patient de 8.1-16 semaines"]
[1,"Happy First patient","1966-12-01",null,null,"2020-10-10","Female/Femme",null,"2020-09-09",{"$f":"DATEDIF(C2,I2,\"y\")","v":53},{"$f":"F2-I2","v":31},"Wrist/Poignet","YES/OUI",null,"NO/NON",null,null,null,null,null,null,null,null,"2020-12-01",{"$f":"IF(X2-F2>=0,X2-F2,\"\")","v":52},{"$f":"IF(AF2-I2>=0,AF2-I2,\"\")","v":121},"HIGH/ÉLEVÉ",null,"Contacted/ Contacté","Oral bisphos","YES/OUI","2021-01-08",null,null,null,"Contacted/ Contacté","Oral bisphos","YES/OUI","No","No"]
[2,"Second patient","1926-12-02",null,null,"2020-12-11","Female/Femme",null,"2020-09-10",{"$f":"DATEDIF(C3,I3,\"y\")","v":93},92,"Wrist/Poignet","NO/NON","Palliative/ Soins palliatif  ",null,null,null,null,null,null,null,null,null,null,{"$f":"IF(X3-F3>=0,X3-F3,\"\")","v":""},{"$f":"IF(AF3-I3>=0,AF3-I3,\"\")","v":""}]
[3,"Third patient","1936-12-03",null,null,"2020-02-01","Male/Homme",null,"2020-01-11",{"$f":"DATEDIF(C4,I4,\"y\")","v":83},21,"Pelvis/Bassin","YES/OUI",null,"NO/NON",null,"NO/NON",null,null,null,null,null,null,"2020-12-03",306,"","LOW/FAIBLE",null,null,null,null,null,"Deceased"]
[4,"Fourth patient","1946-12-04",null,null,"2020-10-13","Male/Homme",null,"2020-01-12",73,275,"Hip/Hanche","YES/OUI",null,null,null,"YES/OUI","YES/OUI","NO/NON","NO/NON","NO/NON",null,null,"2020-12-04",{"$f":"IF(X5-F5>=0,X5-F5,\"\")","v":52},368,"HIGH/ÉLEVÉ",null,null,null,null,"2021-01-14"]
[5,null,null,null,null,null,null,null,null,0,0,null,null,null,null,null,null,null,null,null,null,null,null,null,{"$f":"IF(X6-F6>=0,X6-F6,\"\")","v":0},0]
[6,null,null,null,null,null,null,null,null,0,0,null,null,null,null,null,null,null,null,null,null,null,null,null,{"$f":"IF(X7-F7>=0,X7-F7,\"\")","v":0},0]
[7,null,null,null,null,null,null,null,null,0,0,null,null,null,null,null,null,null,null,null,null,null,null,null,{"$f":"IF(X8-F8>=0,X8-F8,\"\")","v":0},0]
[8,null,null,null,null,null,null,null,null,0,0,null,null,null,null,null,null,null,null,null,null,null,null,null,{"$f":"IF(X9-F9>=0,X9-F9,\"\")","v":0},0]
[9,null,null,null,null,null,null,null,null,0,{"$f":"F10-I10","v":0},null,null,null,null,null,null,null,null,null,null,null,null,null,{"$f":"IF(X10-F10>=0,X10-F10,\"\")","v":0},0]
[10,null,null,null,null,null,null,null,null,0,{"$f":"F11-I11","v":0},null,null,null,null,null,null,null,null,null,null,null,null,null,0,0]
[11,null,null,null,null,null,null,null,null,0,0,null,null,null,null,null,null,null,null,null,null,null,null,null,0,0]
[12,null,null,null,null,null,null,null,null,0,0,null,null,null,null,null,null,null,null,null,null,null,null,null,0,0]
[13,null,null,null,null,null,null,null,null,0,0,null,null,null,null,null,null,null,null,null,null,null,null,null,0,0]
[14,null,null,null,null,null,null,null,null,0,0,null,null,null,null,null,null,null,null,null,null,null,null,null,0,0]
[15,null,null,null,null,null,null,null,null,0,0,null,null,null,null,null,null,null,null,null,null,null,null,null,0,0]
[16,null,null,null,null,null,null,null,null,0,0,null,null,null,null,null,null,null,null,null,null,null,null,null,0]
[17,null,null,null,null,null,null,null,null,0,0,null,null,null,null,null,null,null,null,null,null,null,null,null,0,{"$f":"IF(AF18-I18>=0,AF18-I18,\"\")","v":0}]
[18,null,null,null,null,null,null,null,null,0,0,null,null,null,null,null,null,null,null,null,null,null,null,null,0,0]
[19,null,null,null,null,null,null,null,null,0,0,null,null,null,null,null,null,null,null,null,null,null,null,null,0,0]
[20,null,null,null,null,null,null,null,null,0,0,null,null,null,null,null,null,null,null,null,null,null,null,null,0,0]
[21,null,null,null,null,null,null,null,null,0,0,null,null,null,null,null,null,null,null,null,null,null,null,null,0,0]
[22,null,null,null,null,null,null,null,null,0,0,null,null,null,null,null,null,null,null,null,null,null,null,null,0,0]
[23,null,null,null,null,null,null,null,null,0,0,null,null,null,null,null,null,null,null,null,null,null,null,null,0,0]
[24,null,null,null,null,null,null,null,null,0,0,null,null,null,null,null,null,null,null,null,null,null,null,null,0,0]
[25,null,null,null,null,null,null,null,null,0,0,null,null,null,null,null,null,null,null,null,null,null,null,null,0,0]
[26,null,null,null,null,null,null,null,null,0,0,null,null,null,null,null,null,null,null,null,null,null,null,null,0,0]
[27,null,null,null,null,null,null,null,null,0,0,null,null,null,null,null,null,null,null,null,null,null,null,null,0,0]
[28,null,null,null,null,null,null,null,null,0,0,null,null,null,null,null,null,null,null,null,null,null,null,null,0,0]
[29,null,null,null,null,null,null,null,null,0,0,null,null,null,null,null,null,null,null,null,null,null,null,null,0,0]
[30,null,null,null,null,null,null,null,null,0,0,null,null,null,null,null,null,null,null,null,null,null,null,null,0,0]
[36,null,null,null,null,null,null,null,null,0,0,null,null,null,null,null,null,null,null,null,null,null,null,null,0,0]
[37,null,null,null,null,null,null,null,null,0,0,null,null,null,null,null,null,null,null,null,null,null,null,null,0,0]
[38,null,null,null,null,null,null,null,null,0,0,null,null,null,null,null,null,null,null,null,null,null,null,null,0,0]
[39,null,null,null,null,null,null,null,null,0,0,null,null,null,null,null,null,null,null,null,null,null,null,null,0,0]
[40,null,null,null,null,null,null,null,null,0,0,null,null,null,null,null,null,null,null,null,null,null,null,null,0,0]
[41,null,null,null,null,null,null,null,null,0,0,null,null,null,null,null,null,null,null,null,null,null,null,null,0,0]
[42,null,null,null,null,null,null,null,null,0,0,null,null,null,null,null,null,null,null,null,null,null,null,null,0,0]
[43,null,null,null,null,null,null,null,null,0,0,null,null,null,null,null,null,null,null,null,null,null,null,null,0,0]
[44,null,null,null,null,null,null,null,null,0,0,null,null,null,null,null,null,null,null,null,null,null,null,null,0,0]
[45,null,null,null,null,null,null,null,null,0,0,null,null,null,null,null,null,null,null,null,null,null,null,null,0,0]
[46,null,null,null,null,null,null,null,null,0,0,null,null,null,null,null,null,null,null,null,null,null,null,null,0,0]
[47,null,null,null,null,null,null,null,null,0,0,null,null,null,null,null,null,null,null,null,null,null,null,null,0,0]
[48,null,null,null,null,null,null,null,null,0,0,null,null,null,null,null,null,null,null,null,null,null,null,null,0,0]
[49,null,null,null,null,null,null,null,null,0,0,null,null,null,null,null,null,null,null,null,null,null,null,null,0,0]
[50,null,null,null,null,null,null,null,null,0,0,null,null,null,null,null,null,null,null,null,null,null,null,null,0,0]
[51,null,null,null,null,null,null,null,null,0,0,null,null,null,null,null,null,null,null,null,null,null,null,null,0,0]
[52,null,null,null,null,null,null,null,null,0,0,null,null,null,null,null,null,null,null,null,null,null,null,null,0,0]
[53,null,null,null,null,null,null,null,null,0,0,null,null,null,null,null,null,null,null,null,null,null,null,null,0,0]
[54,null,null,null,null,null,null,null,null,0,0,null,null,null,null,null,null,null,null,null,null,null,null,null,0,0]
[55,null,null,null,null,null,null,null,null,0,0,null,null,null,null,null,null,null,null,null,null,null,null,null,0,0]
[56,null,null,null,null,null,null,null,null,0,0,null,null,null,null,null,null,null,null,null,null,null,null,null,0,0]
[57,null,null,null,null,null,null,null,null,0,0,null,null,null,null,null,null,null,null,null,null,null,null,null,0,0]
[58,null,null,null,null,null,null,null,null,0,0,null,null,null,null,null,null,null,null,null,null,null,null,null,0,0]
[59,null,null,null,null,null,null,null,null,0,0,null,null,null,null,null,null,null,null,null,null,null,null,null,0,0]
[60,null,null,null,null,null,null,null,null,0,0,null,null,null,null,null,null,null,null,null,null,null,null,null,0,0]
[61,null,null,null,null,null,null,null,null,0,0,null,null,null,null,null,null,null,null,null,null,null,null,null,0,0]
[62,null,null,null,null,null,null,null,null,0,0,null,null,null,null,null,null,null,null,null,null,null,null,null,0,0]
[63,null,null,null,null,null,null,null,null,0,0,null,null,null,null,null,null,null,null,null,null,null,null,null,0,0]
[64,null,null,null,null,null,null,null,null,0,0,null,null,null,null,null,null,null,null,null,null,null,null,null,0,0]
[65,null,null,null,null,null,null,null,null,0,0,null,null,null,null,null,null,null,null,null,null,null,null,null,0,0]
[66,null,null,null,null,null,null,null,null,0,0,null,null,null,null,null,null,null,null,null,null,null,null,null,0,0]
[67,null,null,null,null,null,null,null,null,0,0,null,null,null,null,null,null,null,null,null,null,null,null,null,0,0]
[68,null,null,null,null,null,null,null,null,0,0,null,null,null,null,null,null,null,null,null,null,null,null,null,0,0]
[69,null,null,null,null,null,null,null,null,0,0,null,null,null,null,null,null,null,null,null,null,null,null,null,0,0]
[70,null,null,null,null,null,null,null,null,0,0,null,null,null,null,null,null,null,null,null,null,null,null,null,0,0]
[71,null,null,null,null,null,null,null,null,0,0,null,null,null,null,null,null,null,null,null,null,null,null,null,0,0]
[72,null,null,null,null,null,null,null,null,{"$f":"DATEDIF(C68,I68,\"y\")","v":0},{"$f":"F68-I68","v":0},null,null,null,null,null,null,null,null,null,null,null,null,null,{"$f":"IF(X68-F68>=0,X68-F68,\"\")","v":0},0]
[73,null,null,null,null,null,null,null,null,0,0,null,null,null,null,null,null,null,null,null,null,null,null,null,0,0]
[74,null,null,null,null,null,null,null,null,0,0,null,null,null,null,null,null,null,null,null,null,null,null,null,0,0]
[75,null,null,null,null,null,null,null,null,0,0,null,null,null,null,null,null,null,null,null,null,null,null,null,0,0]
[76,null,null,null,null,null,null,null,null,0,0,null,null,null,null,null,null,null,null,null,null,null,null,null,0,0]
[77,null,null,null,null,null,null,null,null,0,0,null,null,null,null,null,null,null,null,null,null,null,null,null,0,0]
[78,null,null,null,null,null,null,null,null,0,0,null,null,null,null,null,null,null,null,null,null,null,null,null,0,0]
[79,null,null,null,null,null,null,null,null,0,0,null,null,null,null,null,null,null,null,null,null,null,null,null,0,0]
[80,null,null,null,null,null,null,null,null,0,0,null,null,null,null,null,null,null,null,null,null,null,null,null,0,0]
[81,null,null,null,null,null,null,null,null,0,0,null,null,null,null,null,null,null,null,null,null,null,null,null,0,0]
[82,null,null,null,null,null,null,null,null,0,0,null,null,null,null,null,null,null,null,null,null,null,null,null,0,0]
[83,null,null,null,null,null,null,null,null,0,0,null,null,null,null,null,null,null,null,null,null,null,null,null,0,0]
[84,null,null,null,null,null,null,null,null,0,0,null,null,null,null,null,null,null,null,null,null,null,null,null,0,0]
[85,null,null,null,null,null,null,null,null,0,0,null,null,null,null,null,null,null,null,null,null,null,null,null,0,0]
[86,null,null,null,null,null,null,null,null,0,0,null,null,null,null,null,null,null,null,null,null,null,null,null,0,{"$f":"IF(AF82-I82>=0,AF82-I82,\"\")","v":0}]
[87,null,null,null,null,null,null,null,null,0,0,null,null,null,null,null,null,null,null,null,null,null,null,null,0,0]
[88,null,null,null,null,null,null,null,null,0,0,null,null,null,null,null,null,null,null,null,null,null,null,null,0,0]
[89,null,null,null,null,null,null,null,null,0,0,null,null,null,null,null,null,null,null,null,null,null,null,null,0,0]
[90,null,null,null,null,null,null,null,null,0,0,null,null,null,null,null,null,null,null,null,null,null,null,null,0,0]
[91,null,null,null,null,null,null,null,null,0,0,null,null,null,null,null,null,null,null,null,null,null,null,null,0,0]
[92,null,null,null,null,null,null,null,null,0,0,null,null,null,null,null,null,null,null,null,null,null,null,null,0,0]
[93,null,null,null,null,null,null,null,null,0,0,null,null,null,null,null,null,null,null,null,null,null,null,null,0,0]
[94,null,null,null,null,null,null,null,null,0,0,null,null,null,null,null,null,null,null,null,null,null,null,null,0,0]
[95,null,null,null,null,null,null,null,null,0,0,null,null,null,null,null,null,null,null,null,null,null,null,null,0,0]
[96,null,null,null,null,null,null,null,null,0,0,null,null,null,null,null,null,null,null,null,null,null,null,null,0,0]
[97,null,null,null,null,null,null,null,null,0,0,null,null,null,null,null,null,null,null,null,null,null,null,null,0,0]
[98,null,null,null,null,null,null,null,null,0,0,null,null,null,null,null,null,null,null,null,null,null,null,null,0,0]
[99,null,null,null,null,null,null,null,null,0,0,null,null,null,null,null,null,null,null,null,null,null,null,null,0,0]
[100,null,null,null,null,null,null,null,null,0,0,null,null,null,null,null,null,null,null,null,null,null,null,null,0,0]
[101,null,null,null,null,null,null,null,null,0,0,null,null,null,null,null,null,null,null,null,null,null,null,null,0,0]
[102,null,null,null,null,null,null,null,null,0,0,null,null,null,null,null,null,null,null,null,null,null,null,null,0,0]
[103,null,null,null,null,null,null,null,null,0,0,null,null,null,null,null,null,null,null,null,null,null,null,null,0,0]
[104,null,null,null,null,null,null,null,null,0,0,null,null,null,null,null,null,null,null,null,null,null,null,null,0,0]
[105,null,null,null,null,null,null,null,null,0,0,null,null,null,null,null,null,null,null,null,null,null,null,null,0,0]
[106,null,null,null,null,null,null,null,null,0,0,null,null,null,null,null,null,null,null,null,null,null,null,null,0,0]
[107,null,null,null,null,null,null,null,null,0,0,null,null,null,null,null,null,null,null,null,null,null,null,null,0,0]
[108,null,null,null,null,null,null,null,null,0,0,null,null,null,null,null,null,null,null,null,null,null,null,null,0,0]
[109,null,null,null,null,null,null,null,null,0,0,null,null,null,null,null,null,null,null,null,null,null,null,null,0,0]
[110,null,null,null,null,null,null,null,null,0,0,null,null,null,null,null,null,null,null,null,null,null,null,null,0,0]
[111,null,null,null,null,null,null,null,null,0,0,null,null,null,null,null,null,null,null,null,null,null,null,null,0,0]
[112,null,null,null,null,null,null,null,null,0,0,null,null,null,null,null,null,null,null,null,null,null,null,null,0,0]
[113,null,null,null,null,null,null,null,null,0,0,null,null,null,null,null,null,null,null,null,null,null,null,null,0,0]
[114,null,null,null,null,null,null,null,null,0,0,null,null,null,null,null,null,null,null,null,null,null,null,null,0,0]
[115,null,null,null,null,null,null,null,null,0,0,null,null,null,null,null,null,null,null,null,null,null,null,null,0,0]
[116,null,null,null,null,null,null,null,null,0,0,null,null,null,null,null,null,null,null,null,null,null,null,null,0,0]
[117,null,null,null,null,null,null,null,null,0,0,null,null,null,null,null,null,null,null,null,null,null,null,null,0,0]
[118,null,null,null,null,null,null,null,null,0,0,null,null,null,null,null,null,null,null,null,null,null,null,null,0,0]
[119,null,null,null,null,null,null,null,null,0,0,null,null,null,null,null,null,null,null,null,null,null,null,null,0,0]
[120,null,null,null,null,null,null,null,null,0,0,null,null,null,null,null,null,null,null,null,null,null,null,null,0,0]
[121,null,null,null,null,null,null,null,null,0,0,null,null,null,null,null,null,null,null,null,null,null,null,null,0,0]
[122,null,null,null,null,null,null,null,null,0,0,null,null,null,null,null,null,null,null,null,null,null,null,null,0,0]
[123,null,null,null,null,null,null,null,null,0,0,null,null,null,null,null,null,null,null,null,null,null,null,null,0,0]
[124,null,null,null,null,null,null,null,null,0,0,null,null,null,null,null,null,null,null,null,null,null,null,null,0,0]
[125,null,null,null,null,null,null,null,null,0,0,null,null,null,null,null,null,null,null,null,null,null,null,null,0,0]
[126,null,null,null,null,null,null,null,null,0,0,null,null,null,null,null,null,null,null,null,null,null,null,null,0,0]
[127,null,null,null,null,null,null,null,null,0,0,null,null,null,null,null,null,null,null,null,null,null,null,null,0,0]
[128,null,null,null,null,null,null,null,null,0,0,null,null,null,null,null,null,null,null,null,null,null,null,null,0,0]
[129,null,null,null,null,null,null,null,null,0,0,null,null,null,null,null,null,null,null,null,null,null,null,null,0,0]
[130,null,null,null,null,null,null,null,null,0,0,null,null,null,null,null,null,null,null,null,null,null,null,null,0,0]
[131,null,null,null,null,null,null,null,null,0,0,null,null,null,null,null,null,null,null,null,null,null,null,null,0,0]
[132,null,null,null,null,null,null,null,null,0,0,null,null,null,null,null,null,null,null,null,null,null,null,null,0,0]
[133,null,null,null,null,null,null,null,null,0,0,null,null,null,null,null,null,null,null,null,null,null,null,null,0,0]
[134,null,null,null,null,null,null,null,null,0,0,null,null,null,null,null,null,null,null,null,null,null,null,null,0,0]
[135,null,null,null,null,null,null,null,null,0,0,null,null,null,null,null,null,null,null,null,null,null,null,null,0,0]
[136,null,null,null,null,null,null,null,null,{"$f":"DATEDIF(C132,I132,\"y\")","v":0},{"$f":"F132-I132","v":0},null,null,null,null,null,null,null,null,null,null,null,null,null,{"$f":"IF(X132-F132>=0,X132-F132,\"\")","v":0},0]
[137,null,null,null,null,null,null,null,null,0,0,null,null,null,null,null,null,null,null,null,null,null,null,null,0,0]
[138,null,null,null,null,null,null,null,null,0,0,null,null,null,null,null,null,null,null,null,null,null,null,null,0,0]
[139,null,null,null,null,null,null,null,null,0,0,null,null,null,null,null,null,null,null,null,null,null,null,null,0,0]
[140,null,null,null,null,null,null,null,null,0,0,null,null,null,null,null,null,null,null,null,null,null,null,null,0,0]
[141,null,null,null,null,null,null,null,null,0,0,null,null,null,null,null,null,null,null,null,null,null,null,null,0,0]
[142,null,null,null,null,null,null,null,null,0,0,null,null,null,null,null,null,null,null,null,null,null,null,null,0,0]
[143,null,null,null,null,null,null,null,null,0,0,null,null,null,null,null,null,null,null,null,null,null,null,null,0,0]
[144,null,null,null,null,null,null,null,null,0,0,null,null,null,null,null,null,null,null,null,null,null,null,null,0,0]
[145,null,null,null,null,null,null,null,null,0,0,null,null,null,null,null,null,null,null,null,null,null,null,null,0,0]
[146,null,null,null,null,null,null,null,null,0,0,null,null,null,null,null,null,null,null,null,null,null,null,null,0,0]
[147,null,null,null,null,null,null,null,null,0,0,null,null,null,null,null,null,null,null,null,null,null,null,null,0,0]
[148,null,null,null,null,null,null,null,null,0,0,null,null,null,null,null,null,null,null,null,null,null,null,null,0,0]
[149,null,null,null,null,null,null,null,null,0,0,null,null,null,null,null,null,null,null,null,null,null,null,null,0,0]
[150,null,null,null,null,null,null,null,null,0,0,null,null,null,null,null,null,null,null,null,null,null,null,null,0,{"$f":"IF(AF146-I146>=0,AF146-I146,\"\")","v":0}]
[151,null,null,null,null,null,null,null,null,0,0,null,null,null,null,null,null,null,null,null,null,null,null,null,0,0]
[152,null,null,null,null,null,null,null,null,0,0,null,null,null,null,null,null,null,null,null,null,null,null,null,0,0]
[153,null,null,null,null,null,null,null,null,0,0,null,null,null,null,null,null,null,null,null,null,null,null,null,0,0]
[154,null,null,null,null,null,null,null,null,0,0,null,null,null,null,null,null,null,null,null,null,null,null,null,0,0]
[155,null,null,null,null,null,null,null,null,0,0,null,null,null,null,null,null,null,null,null,null,null,null,null,0,0]
[156,null,null,null,null,null,null,null,null,0,0,null,null,null,null,null,null,null,null,null,null,null,null,null,0,0]
[157,null,null,null,null,null,null,null,null,0,0,null,null,null,null,null,null,null,null,null,null,null,null,null,0,0]
[158,null,null,null,null,null,null,null,null,0,0,null,null,null,null,null,null,null,null,null,null,null,null,null,0,0]
[159,null,null,null,null,null,null,null,null,0,0,null,null,null,null,null,null,null,null,null,null,null,null,null,0,0]
[160,null,null,null,null,null,null,null,null,0,0,null,null,null,null,null,null,null,null,null,null,null,null,null,0,0]
[161,null,null,null,null,null,null,null,null,0,0,null,null,null,null,null,null,null,null,null,null,null,null,null,0,0]
[162,null,null,null,null,null,null,null,null,0,0,null,null,null,null,null,null,null,null,null,null,null,null,null,0,0]
[163,null,null,null,null,null,null,null,null,0,0,null,null,null,null,null,null,null,null,null,null,null,null,null,0,0]
[164,null,null,null,null,null,null,null,null,0,0,null,null,null,null,null,null,null,null,null,null,null,null,null,0,0]
[165,null,null,null,null,null,null,null,null,0,0,null,null,null,null,null,null,null,null,null,null,null,null,null,0,0]
[166,null,null,null,null,null,null,null,null,0,0,null,null,null,null,null,null,null,null,null,null,null,null,null,0,0]
[167,null,null,null,null,null,null,null,null,0,0,null,null,null,null,null,null,null,null,null,null,null,null,null,0,0]
[168,null,null,null,null,null,null,null,null,0,0,null,null,null,null,null,null,null,null,null,null,null,null,null,0,0]
[169,null,null,null,null,null,null,null,null,0,0,null,null,null,null,null,null,null,null,null,null,null,null,null,0,0]
[170,null,null,null,null,null,null,null,null,0,0,null,null,null,null,null,null,null,null,null,null,null,null,null,0,0]
[171,null,null,null,null,null,null,null,null,0,0,null,null,null,null,null,null,null,null,null,null,null,null,null,0,0]
[172,null,null,null,null,null,null,null,null,0,0,null,null,null,null,null,null,null,null,null,null,null,null,null,0,0]
[173,null,null,null,null,null,null,null,null,0,0,null,null,null,null,null,null,null,null,null,null,null,null,null,0,0]
[174,null,null,null,null,null,null,null,null,0,0,null,null,null,null,null,null,null,null,null,null,null,null,null,0,0]
[175,null,null,null,null,null,null,null,null,0,0,null,null,null,null,null,null,null,null,null,null,null,null,null,0,0]
[176,null,null,null,null,null,null,null,null,0,0,null,null,null,null,null,null,null,null,null,null,null,null,null,0,0]
[177,null,null,null,null,null,null,null,null,0,0,null,null,null,null,null,null,null,null,null,null,null,null,null,0,0]
[178,null,null,null,null,null,null,null,null,0,0,null,null,null,null,null,null,null,null,null,null,null,null,null,0,0]
[179,null,null,null,null,null,null,null,null,0,0,null,null,null,null,null,null,null,null,null,null,null,null,null,0,0]
[180,null,null,null,null,null,null,null,null,0,0,null,null,null,null,null,null,null,null,null,null,null,null,null,0,0]
[181,null,null,null,null,null,null,null,null,0,0,null,null,null,null,null,null,null,null,null,null,null,null,null,0,0]
[182,null,null,null,null,null,null,null,null,0,0,null,null,null,null,null,null,null,null,null,null,null,null,null,0,0]
[183,null,null,null,null,null,null,null,null,0,0,null,null,null,null,null,null,null,null,null,null,null,null,null,0,0]
[184,null,null,null,null,null,null,null,null,0,0,null,null,null,null,null,null,null,null,null,null,null,null,null,0,0]
[185,null,null,null,null,null,null,null,null,0,0,null,null,null,null,null,null,null,null,null,null,null,null,null,0,0]
[186,null,null,null,null,null,null,null,null,0,0,null,null,null,null,null,null,null,null,null,null,null,null,null,0,0]
[187,null,null,null,null,null,null,null,null,0,0,null,null,null,null,null,null,null,null,null,null,null,null,null,0,0]
[188,null,null,null,null,null,null,null,null,0,0,null,null,null,null,null,null,null,null,null,null,null,null,null,0,0]
[189,null,null,null,null,null,null,null,null,0,0,null,null,null,null,null,null,null,null,null,null,null,null,null,0,0]
[190,null,null,null,null,null,null,null,null,0,0,null,null,null,null,null,null,null,null,null,null,null,null,null,0,0]
[191,null,null,null,null,null,null,null,null,0,0,null,null,null,null,null,null,null,null,null,null,null,null,null,0,0]
[192,null,null,null,null,null,null,null,null,0,0,null,null,null,null,null,null,null,null,null,null,null,null,null,0,0]
[193,null,null,null,null,null,null,null,null,0,0,null,null,null,null,null,null,null,null,null,null,null,null,null,0,0]
[194,null,null,null,null,null,null,null,null,0,0,null,null,null,null,null,null,null,null,null,null,null,null,null,0,0]
[195,null,null,null,null,null,null,null,null,0,0,null,null,null,null,null,null,null,null,null,null,null,null,null,0,0]
[196,null,null,null,null,null,null,null,null,0,0,null,null,null,null,null,null,null,null,null,null,null,null,null,0,0]
[197,null,null,null,null,null,null,null,null,0,0,null,null,null,null,null,null,null,null,null,null,null,null,null,0,0]
[198,null,null,null,null,null,null,null,null,0,0,null,null,null,null,null,null,null,null,null,null,null,null,null,0,0]
[199,null,null,null,null,null,null,null,null,0,0,null,null,null,null,null,null,null,null,null,null,null,null,null,0,0]
[200,null,null,null,null,null,null,null,null,{"$f":"DATEDIF(C196,I196,\"y\")","v":0},{"$f":"F196-I196","v":0},null,null,null,null,null,null,null,null,null,null,null,null,null,{"$f":"IF(X196-F196>=0,X196-F196,\"\")","v":0},0]
[201,null,null,null,null,null,null,null,null,0,0,null,null,null,null,null,null,null,null,null,null,null,null,null,0,0]
[202,null,null,null,null,null,null,null,null,0,0,null,null,null,null,null,null,null,null,null,null,null,null,null,0,0]
[203,null,null,null,null,null,null,null,null,0,0,null,null,null,null,null,null,null,null,null,null,null,null,null,0,0]
[204,null,null,null,null,null,null,null,null,0,0,null,null,null,null,null,null,null,null,null,null,null,null,null,0,0]
[205,null,null,null,null,null,null,null,null,0,0,null,null,null,null,null,null,null,null,null,null,null,null,null,0,0]
[206,null,null,null,null,null,null,null,null,0,0,null,null,null,null,null,null,null,null,null,null,null,null,null,0,0]
[207,null,null,null,null,null,null,null,null,0,0,null,null,null,null,null,null,null,null,null,null,null,null,null,0,0]
[208,null,null,null,null,null,null,null,null,0,0,null,null,null,null,null,null,null,null,null,null,null,null,null,0,0]
[209,null,null,null,null,null,null,null,null,0,0,null,null,null,null,null,null,null,null,null,null,null,null,null,0,0]
[210,null,null,null,null,null,null,null,null,0,0,null,null,null,null,null,null,null,null,null,null,null,null,null,0,0]
[211,null,null,null,null,null,null,null,null,0,0,null,null,null,null,null,null,null,null,null,null,null,null,null,0,0]
[212,null,null,null,null,null,null,null,null,0,0,null,null,null,null,null,null,null,null,null,null,null,null,null,0,0]
[213,null,null,null,null,null,null,null,null,0,0,null,null,null,null,null,null,null,null,null,null,null,null,null,0,0]
[214,null,null,null,null,null,null,null,null,0,0,null,null,null,null,null,null,null,null,null,null,null,null,null,0,{"$f":"IF(AF210-I210>=0,AF210-I210,\"\")","v":0}]
[215,null,null,null,null,null,null,null,null,0,0,null,null,null,null,null,null,null,null,null,null,null,null,null,0,0]
[216,null,null,null,null,null,null,null,null,0,0,null,null,null,null,null,null,null,null,null,null,null,null,null,0,0]
[217,null,null,null,null,null,null,null,null,0,0,null,null,null,null,null,null,null,null,null,null,null,null,null,0,0]
[218,null,null,null,null,null,null,null,null,0,0,null,null,null,null,null,null,null,null,null,null,null,null,null,0,0]
[219,null,null,null,null,null,null,null,null,0,0,null,null,null,null,null,null,null,null,null,null,null,null,null,0,0]
[220,null,null,null,null,null,null,null,null,0,0,null,null,null,null,null,null,null,null,null,null,null,null,null,0,0]
[221,null,null,null,null,null,null,null,null,0,0,null,null,null,null,null,null,null,null,null,null,null,null,null,0,0]
[222,null,null,null,null,null,null,null,null,0,0,null,null,null,null,null,null,null,null,null,null,null,null,null,0,0]
[223,null,null,null,null,null,null,null,null,0,0,null,null,null,null,null,null,null,null,null,null,null,null,null,0,0]
[224,null,null,null,null,null,null,null,null,0,0,null,null,null,null,null,null,null,null,null,null,null,null,null,0,0]
[225,null,null,null,null,null,null,null,null,0,0,null,null,null,null,null,null,null,null,null,null,null,null,null,0,0]
[226,null,null,null,null,null,null,null,null,0,0,null,null,null,null,null,null,null,null,null,null,null,null,null,0,0]
[227,null,null,null,null,null,null,null,null,0,0,null,null,null,null,null,null,null,null,null,null,null,null,null,0,0]
[228,null,null,null,null,null,null,null,null,0,0,null,null,null,null,null,null,null,null,null,null,null,null,null,0,0]
[229,null,null,null,null,null,null,null,null,0,0,null,null,null,null,null,null,null,null,null,null,null,null,null,0,0]
[230,null,null,null,null,null,null,null,null,0,0,null,null,null,null,null,null,null,null,null,null,null,null,null,0,0]
[231,null,null,null,null,null,null,null,null,0,0,null,null,null,null,null,null,null,null,null,null,null,null,null,0,0]
[232,null,null,null,null,null,null,null,null,0,0,null,null,null,null,null,null,null,null,null,null,null,null,null,0,0]
[233,null,null,null,null,null,null,null,null,0,0,null,null,null,null,null,null,null,null,null,null,null,null,null,0,0]
[234,null,null,null,null,null,null,null,null,0,0,null,null,null,null,null,null,null,null,null,null,null,null,null,0,0]
[235,null,null,null,null,null,null,null,null,0,0,null,null,null,null,null,null,null,null,null,null,null,null,null,0,0]
[236,null,null,null,null,null,null,null,null,0,0,null,null,null,null,null,null,null,null,null,null,null,null,null,0,0]
[237,null,null,null,null,null,null,null,null,0,0,null,null,null,null,null,null,null,null,null,null,null,null,null,0,0]
[238,null,null,null,null,null,null,null,null,0,0,null,null,null,null,null,null,null,null,null,null,null,null,null,0,0]
[239,null,null,null,null,null,null,null,null,0,0,null,null,null,null,null,null,null,null,null,null,null,null,null,0,0]
[240,null,null,null,null,null,null,null,null,0,0,null,null,null,null,null,null,null,null,null,null,null,null,null,0,0]
[241,null,null,null,null,null,null,null,null,0,0,null,null,null,null,null,null,null,null,null,null,null,null,null,0,0]
[242,null,null,null,null,null,null,null,null,0,0,null,null,null,null,null,null,null,null,null,null,null,null,null,0,0]
[243,null,null,null,null,null,null,null,null,0,0,null,null,null,null,null,null,null,null,null,null,null,null,null,0,0]
[244,null,null,null,null,null,null,null,null,0,0,null,null,null,null,null,null,null,null,null,null,null,null,null,0,0]
[245,null,null,null,null,null,null,null,null,0,0,null,null,null,null,null,null,null,null,null,null,null,null,null,0,0]
[246,null,null,null,null,null,null,null,null,0,0,null,null,null,null,null,null,null,null,null,null,null,null,null,0,0]
[247,null,null,null,null,null,null,null,null,0,0,null,null,null,null,null,null,null,null,null,null,null,null,null,0,0]
[248,null,null,null,null,null,null,null,null,0,0,null,null,null,null,null,null,null,null,null,null,null,null,null,0,0]
[249,null,null,null,null,null,null,null,null,0,0,null,null,null,null,null,null,null,null,null,null,null,null,null,0,0]
[250,null,null,null,null,null,null,null,null,0,0,null,null,null,null,null,null,null,null,null,null,null,null,null,0,0]
[251,null,null,null,null,null,null,null,null,0,0,null,null,null,null,null,null,null,null,null,null,null,null,null,0,0]
[252,null,null,null,null,null,null,null,null,0,0,null,null,null,null,null,null,null,null,null,null,null,null,null,0,0]
[253,null,null,null,null,null,null,null,null,0,0,null,null,null,null,null,null,null,null,null,null,null,null,null,0,0]
[254,null,null,null,null,null,null,null,null,0,0,null,null,null,null,null,null,null,null,null,null,null,null,null,0,0]
[255,null,null,null,null,null,null,null,null,0,0,null,null,null,null,null,null,null,null,null,null,null,null,null,0,0]
[256,null,null,null,null,null,null,null,null,0,0,null,null,null,null,null,null,null,null,null,null,null,null,null,0,0]
[257,null,null,null,null,null,null,null,null,0,0,null,null,null,null,null,null,null,null,null,null,null,null,null,0,0]
[258,null,null,null,null,null,null,null,null,0,0,null,null,null,null,null,null,null,null,null,null,null,null,null,0,0]
[259,null,null,null,null,null,null,null,null,0,0,null,null,null,null,null,null,null,null,null,null,null,null,null,0,0]
[260,null,null,null,null,null,null,null,null,0,0,null,null,null,null,null,null,null,null,null,null,null,null,null,0,0]
[261,null,null,null,null,null,null,null,null,0,0,null,null,null,null,null,null,null,null,null,null,null,null,null,0,0]
[262,null,null,null,null,null,null,null,null,0,0,null,null,null,null,null,null,null,null,null,null,null,null,null,0,0]
[263,null,null,null,null,null,null,null,null,0,0,null,null,null,null,null,null,null,null,null,null,null,null,null,0,0]
[264,null,null,null,null,null,null,null,null,{"$f":"DATEDIF(C260,I260,\"y\")","v":0},{"$f":"F260-I260","v":0},null,null,null,null,null,null,null,null,null,null,null,null,null,{"$f":"IF(X260-F260>=0,X260-F260,\"\")","v":0},0]
[265,null,null,null,null,null,null,null,null,0,0,null,null,null,null,null,null,null,null,null,null,null,null,null,0,0]
[266,null,null,null,null,null,null,null,null,0,0,null,null,null,null,null,null,null,null,null,null,null,null,null,0,0]
[267,null,null,null,null,null,null,null,null,0,0,null,null,null,null,null,null,null,null,null,null,null,null,null,0,0]
[268,null,null,null,null,null,null,null,null,0,0,null,null,null,null,null,null,null,null,null,null,null,null,null,0,0]
[269,null,null,null,null,null,null,null,null,0,0,null,null,null,null,null,null,null,null,null,null,null,null,null,0,0]
[270,null,null,null,null,null,null,null,null,0,0,null,null,null,null,null,null,null,null,null,null,null,null,null,0,0]
[271,null,null,null,null,null,null,null,null,0,0,null,null,null,null,null,null,null,null,null,null,null,null,null,0,0]
[272,null,null,null,null,null,null,null,null,0,0,null,null,null,null,null,null,null,null,null,null,null,null,null,0,0]
[273,null,null,null,null,null,null,null,null,0,0,null,null,null,null,null,null,null,null,null,null,null,null,null,0,0]
[274,null,null,null,null,null,null,null,null,0,0,null,null,null,null,null,null,null,null,null,null,null,null,null,0,0]
[275,null,null,null,null,null,null,null,null,0,0,null,null,null,null,null,null,null,null,null,null,null,null,null,0,0]
[276,null,null,null,null,null,null,null,null,0,0,null,null,null,null,null,null,null,null,null,null,null,null,null,0,0]
[277,null,null,null,null,null,null,null,null,0,0,null,null,null,null,null,null,null,null,null,null,null,null,null,0,0]
[278,null,null,null,null,null,null,null,null,0,0,null,null,null,null,null,null,null,null,null,null,null,null,null,0,{"$f":"IF(AF274-I274>=0,AF274-I274,\"\")","v":0}]
[279,null,null,null,null,null,null,null,null,0,0,null,null,null,null,null,null,null,null,null,null,null,null,null,0,0]
[280,null,null,null,null,null,null,null,null,0,0,null,null,null,null,null,null,null,null,null,null,null,null,null,0,0]
[281,null,null,null,null,null,null,null,null,0,0,null,null,null,null,null,null,null,null,null,null,null,null,null,0,0]
[282,null,null,null,null,null,null,null,null,0,0,null,null,null,null,null,null,null,null,null,null,null,null,null,0,0]
[283,null,null,null,null,null,null,null,null,0,0,null,null,null,null,null,null,null,null,null,null,null,null,null,0,0]
[284,null,null,null,null,null,null,null,null,0,0,null,null,null,null,null,null,null,null,null,null,null,null,null,0,0]
[285,null,null,null,null,null,null,null,null,0,0,null,null,null,null,null,null,null,null,null,null,null,null,null,0,0]
[286,null,null,null,null,null,null,null,null,0,0,null,null,null,null,null,null,null,null,null,null,null,null,null,0,0]
[287,null,null,null,null,null,null,null,null,0,0,null,null,null,null,null,null,null,null,null,null,null,null,null,0,0]
[288,null,null,null,null,null,null,null,null,0,0,null,null,null,null,null,null,null,null,null,null,null,null,null,0,0]
[289,null,null,null,null,null,null,null,null,0,0,null,null,null,null,null,null,null,null,null,null,null,null,null,0,0]
[290,null,null,null,null,null,null,null,null,0,0,null,null,null,null,null,null,null,null,null,null,null,null,null,0,0]
[291,null,null,null,null,null,null,null,null,0,0,null,null,null,null,null,null,null,null,null,null,null,null,null,0,0]
[292,null,null,null,null,null,null,null,null,0,0,null,null,null,null,null,null,null,null,null,null,null,null,null,0,0]
[293,null,null,null,null,null,null,null,null,0,0,null,null,null,null,null,null,null,null,null,null,null,null,null,0,0]
[294,null,null,null,null,null,null,null,null,0,0,null,null,null,null,null,null,null,null,null,null,null,null,null,0,0]
[295,null,null,null,null,null,null,null,null,0,0,null,null,null,null,null,null,null,null,null,null,null,null,null,0,0]
[296,null,null,null,null,null,null,null,null,0,0,null,null,null,null,null,null,null,null,null,null,null,null,null,0,0]
[297,null,null,null,null,null,null,null,null,0,0,null,null,null,null,null,null,null,null,null,null,null,null,null,0,0]
[298,null,null,null,null,null,null,null,null,0,0,null,null,null,null,null,null,null,null,null,null,null,null,null,0,0]
[299,null,null,null,null,null,null,null,null,0,0,null,null,null,null,null,null,null,null,null,null,null,null,null,0,0]
[300,null,null,null,null,null,null,null,null,0,0,null,null,null,null,null,null,null,null,null,null,null,null,null,0,0]
[301,null,null,null,null,null,null,null,null,0,0,null,null,null,null,null,null,null,null,null,null,null,null,null,0,0]
[302,null,null,null,null,null,null,null,null,0,0,null,null,null,null,null,null,null,null,null,null,null,null,null,0,0]
[303,null,null,null,null,null,null,null,null,0,0,null,null,null,null,null,null,null,null,null,null,null,null,null,0,0]
[304,null,null,null,null,null,null,null,null,0,0,null,null,null,null,null,null,null,null,null,null,null,null,null,0,0]
[305,null,null,null,null,null,null,null,null,0,0,null,null,null,null,null,null,null,null,null,null,null,null,null,0,0]
[306,null,null,null,null,null,null,null,null,0,0,null,null,null,null,null,null,null,null,null,null,null,null,null,0,0]
[307,null,null,null,null,null,null,null,null,0,0,null,null,null,null,null,null,null,null,null,null,null,null,null,0,0]
[308,null,null,null,null,null,null,null,null,0,0,null,null,null,null,null,null,null,null,null,null,null,null,null,0,0]
[309,null,null,null,null,null,null,null,null,0,0,null,null,null,null,null,null,null,null,null,null,null,null,null,0,0]
[310,null,null,null,null,null,null,null,null,0,0,null,null,null,null,null,null,null,null,null,null,null,null,null,0,0]
[311,null,null,null,null,null,null,null,null,0,0,null,null,null,null,null,null,null,null,null,null,null,null,null,0,0]
[312,null,null,null,null,null,null,null,null,0,0,null,null,null,null,null,null,null,null,null,null,null,null,null,0,0]
[313,null,null,null,null,null,null,null,null,0,0,null,null,null,null,null,null,null,null,null,null,null,null,null,0,0]
[314,null,null,null,null,null,null,null,null,0,0,null,null,null,null,null,null,null,null,null,null,null,null,null,0,0]
[315,null,null,null,null,null,null,null,null,0,0,null,null,null,null,null,null,null,null,null,null,null,null,null,0,0]
[316,null,null,null,null,null,null,null,null,0,0,null,null,null,null,null,null,null,null,null,null,null,null,null,0,0]
[317,null,null,null,null,null,null,null,null,0,0,null,null,null,null,null,null,null,null,null,null,null,null,null,0,0]
[318,null,null,null,null,null,null,null,null,0,0,null,null,null,null,null,null,null,null,null,null,null,null,null,0,0]
[319,null,null,null,null,null,null,null,null,0,0,null,null,null,null,null,null,null,null,null,null,null,null,null,0,0]
[320,null,null,null,null,null,null,null,null,0,0,null,null,null,null,null,null,null,null,null,null,null,null,null,0,0]
[321,null,null,null,null,null,null,null,null,0,0,null,null,null,null,null,null,null,null,null,null,null,null,null,0,0]
[322,null,null,null,null,null,null,null,null,0,0,null,null,null,null,null,null,null,null,null,null,null,null,null,0,0]
[323,null,null,null,null,null,null,null,null,0,0,null,null,null,null,null,null,null,null,null,null,null,null,null,0,0]
[324,null,null,null,null,null,null,null,null,0,0,null,null,null,null,null,null,null,null,null,null,null,null,null,0,0]
[325,null,null,null,null,null,null,null,null,0,0,null,null,null,null,null,null,null,null,null,null,null,null,null,0,0]
[326,null,null,null,null,null,null,null,null,0,0,null,null,null,null,null,null,null,null,null,null,null,null,null,0,0]
[327,null,null,null,null,null,null,null,null,0,0,null,null,null,null,null,null,null,null,null,null,null,null,null,0,0]
[328,null,null,null,null,null,null,null,null,{"$f":"DATEDIF(C324,I324,\"y\")","v":0},{"$f":"F324-I324","v":0},null,null,null,null,null,null,null,null,null,null,null,null,null,{"$f":"IF(X324-F324>=0,X324-F324,\"\")","v":0},0]
[329,null,null,null,null,null,null,null,null,0,0,null,null,null,null,null,null,null,null,null,null,null,null,null,0,0]
[330,null,null,null,null,null,null,null,null,0,0,null,null,null,null,null,null,null,null,null,null,null,null,null,0,0]
[331,null,null,null,null,null,null,null,null,0,0,null,null,null,null,null,null,null,null,null,null,null,null,null,0,0]
[332,null,null,null,null,null,null,null,null,0,0,null,null,null,null,null,null,null,null,null,null,null,null,null,0,0]
[333,null,null,null,null,null,null,null,null,0,0,null,null,null,null,null,null,null,null,null,null,null,null,null,0,0]
[334,null,null,null,null,null,null,null,null,0,0,null,null,null,null,null,null,null,null,null,null,null,null,null,0,0]
[335,null,null,null,null,null,null,null,null,0,0,null,null,null,null,null,null,null,null,null,null,null,null,null,0,0]
[336,null,null,null,null,null,null,null,null,0,0,null,null,null,null,null,null,null,null,null,null,null,null,null,0,0]
[337,null,null,null,null,null,null,null,null,0,0,null,null,null,null,null,null,null,null,null,null,null,null,null,0,0]
[338,null,null,null,null,null,null,null,null,0,0,null,null,null,null,null,null,null,null,null,null,null,null,null,0,0]
[339,null,null,null,null,null,null,null,null,0,0,null,null,null,null,null,null,null,null,null,null,null,null,null,0,0]
[340,null,null,null,null,null,null,null,null,0,0,null,null,null,null,null,null,null,null,null,null,null,null,null,0,0]
[341,null,null,null,null,null,null,null,null,0,0,null,null,null,null,null,null,null,null,null,null,null,null,null,0,0]
[342,null,null,null,null,null,null,null,null,0,0,null,null,null,null,null,null,null,null,null,null,null,null,null,0,{"$f":"IF(AF338-I338>=0,AF338-I338,\"\")","v":0}]
[343,null,null,null,null,null,null,null,null,0,0,null,null,null,null,null,null,null,null,null,null,null,null,null,0,0]
[344,null,null,null,null,null,null,null,null,0,0,null,null,null,null,null,null,null,null,null,null,null,null,null,0,0]
[345,null,null,null,null,null,null,null,null,0,0,null,null,null,null,null,null,null,null,null,null,null,null,null,0,0]
[346,null,null,null,null,null,null,null,null,0,0,null,null,null,null,null,null,null,null,null,null,null,null,null,0,0]
[347,null,null,null,null,null,null,null,null,0,0,null,null,null,null,null,null,null,null,null,null,null,null,null,0,0]
[348,null,null,null,null,null,null,null,null,0,0,null,null,null,null,null,null,null,null,null,null,null,null,null,0,0]
[349,null,null,null,null,null,null,null,null,0,0,null,null,null,null,null,null,null,null,null,null,null,null,null,0,0]
[350,null,null,null,null,null,null,null,null,0,0,null,null,null,null,null,null,null,null,null,null,null,null,null,0,0]
[351,null,null,null,null,null,null,null,null,0,0,null,null,null,null,null,null,null,null,null,null,null,null,null,0,0]
[352,null,null,null,null,null,null,null,null,0,0,null,null,null,null,null,null,null,null,null,null,null,null,null,0,0]
[353,null,null,null,null,null,null,null,null,0,0,null,null,null,null,null,null,null,null,null,null,null,null,null,0,0]
[354,null,null,null,null,null,null,null,null,0,0,null,null,null,null,null,null,null,null,null,null,null,null,null,0,0]
[355,null,null,null,null,null,null,null,null,0,0,null,null,null,null,null,null,null,null,null,null,null,null,null,0,0]
[356,null,null,null,null,null,null,null,null,0,0,null,null,null,null,null,null,null,null,null,null,null,null,null,0,0]
[357,null,null,null,null,null,null,null,null,0,0,null,null,null,null,null,null,null,null,null,null,null,null,null,0,0]
[358,null,null,null,null,null,null,null,null,0,0,null,null,null,null,null,null,null,null,null,null,null,null,null,0,0]
[359,null,null,null,null,null,null,null,null,0,0,null,null,null,null,null,null,null,null,null,null,null,null,null,0,0]
[360,null,null,null,null,null,null,null,null,0,0,null,null,null,null,null,null,null,null,null,null,null,null,null,0,0]
[361,null,null,null,null,null,null,null,null,0,0,null,null,null,null,null,null,null,null,null,null,null,null,null,0,0]
[362,null,null,null,null,null,null,null,null,0,0,null,null,null,null,null,null,null,null,null,null,null,null,null,0,0]
[363,null,null,null,null,null,null,null,null,0,0,null,null,null,null,null,null,null,null,null,null,null,null,null,0,0]
[364,null,null,null,null,null,null,null,null,0,0,null,null,null,null,null,null,null,null,null,null,null,null,null,0,0]
[365,null,null,null,null,null,null,null,null,0,0,null,null,null,null,null,null,null,null,null,null,null,null,null,0,0]
[366,null,null,null,null,null,null,null,null,0,0,null,null,null,null,null,null,null,null,null,null,null,null,null,0,0]
[367,null,null,null,null,null,null,null,null,0,0,null,null,null,null,null,null,null,null,null,null,null,null,null,0,0]
[368,null,null,null,null,null,null,null,null,0,0,null,null,null,null,null,null,null,null,null,null,null,null,null,0,0]
[369,null,null,null,null,null,null,null,null,0,0,null,null,null,null,null,null,null,null,null,null,null,null,null,0,0]
[370,null,null,null,null,null,null,null,null,0,0,null,null,null,null,null,null,null,null,null,null,null,null,null,0,0]
[371,null,null,null,null,null,null,null,null,0,0,null,null,null,null,null,null,null,null,null,null,null,null,null,0,0]
[372,null,null,null,null,null,null,null,null,0,0,null,null,null,null,null,null,null,null,null,null,null,null,null,0,0]
[373,null,null,null,null,null,null,null,null,0,0,null,null,null,null,null,null,null,null,null,null,null,null,null,0,0]
[374,null,null,null,null,null,null,null,null,0,0,null,null,null,null,null,null,null,null,null,null,null,null,null,0,0]
[375,null,null,null,null,null,null,null,null,0,0,null,null,null,null,null,null,null,null,null,null,null,null,null,0,0]
[376,null,null,null,null,null,null,null,null,0,0,null,null,null,null,null,null,null,null,null,null,null,null,null,0,0]
[377,null,null,null,null,null,null,null,null,0,0,null,null,null,null,null,null,null,null,null,null,null,null,null,0,0]
[378,null,null,null,null,null,null,null,null,0,0,null,null,null,null,null,null,null,null,null,null,null,null,null,0,0]
[379,null,null,null,null,null,null,null,null,0,0,null,null,null,null,null,null,null,null,null,null,null,null,null,0,0]
[380,null,null,null,null,null,null,null,null,0,0,null,null,null,null,null,null,null,null,null,null,null,null,null,0,0]
[381,null,null,null,null,null,null,null,null,0,0,null,null,null,null,null,null,null,null,null,null,null,null,null,0,0]
[382,null,null,null,null,null,null,null,null,0,0,null,null,null,null,null,null,null,null,null,null,null,null,null,0,0]
[383,null,null,null,null,null,null,null,null,0,0,null,null,null,null,null,null,null,null,null,null,null,null,null,0,0]
[384,null,null,null,null,null,null,null,null,0,0,null,null,null,null,null,null,null,null,null,null,null,null,null,0,0]
[385,null,null,null,null,null,null,null,null,0,0,null,null,null,null,null,null,null,null,null,null,null,null,null,0,0]
[386,null,null,null,null,null,null,null,null,0,0,null,null,null,null,null,null,null,null,null,null,null,null,null,0,0]
[387,null,null,null,null,null,null,null,null,0,0,null,null,null,null,null,null,null,null,null,null,null,null,null,0,0]
[388,null,null,null,null,null,null,null,null,0,0,null,null,null,null,null,null,null,null,null,null,null,null,null,0,0]
[389,null,null,null,null,null,null,null,null,0,0,null,null,null,null,null,null,null,null,null,null,null,null,null,0,0]
[390,null,null,null,null,null,null,null,null,0,0,null,null,null,null,null,null,null,null,null,null,null,null,null,0,0]
[391,null,null,null,null,null,null,null,null,0,0,null,null,null,null,null,null,null,null,null,null,null,null,null,0,0]
[392,null,null,null,null,null,null,null,null,{"$f":"DATEDIF(C388,I388,\"y\")","v":0},{"$f":"F388-I388","v":0},null,null,null,null,null,null,null,null,null,null,null,null,null,{"$f":"IF(X388-F388>=0,X388-F388,\"\")","v":0},0]
[393,null,null,null,null,null,null,null,null,0,0,null,null,null,null,null,null,null,null,null,null,null,null,null,0,0]
[394,null,null,null,null,null,null,null,null,0,0,null,null,null,null,null,null,null,null,null,null,null,null,null,0,0]
[395,null,null,null,null,null,null,null,null,0,0,null,null,null,null,null,null,null,null,null,null,null,null,null,0,0]
[396,null,null,null,null,null,null,null,null,0,0,null,null,null,null,null,null,null,null,null,null,null,null,null,0,0]
[397,null,null,null,null,null,null,null,null,0,0,null,null,null,null,null,null,null,null,null,null,null,null,null,0,0]
[398,null,null,null,null,null,null,null,null,0,0,null,null,null,null,null,null,null,null,null,null,null,null,null,0,0]
[399,null,null,null,null,null,null,null,null,0,0,null,null,null,null,null,null,null,null,null,null,null,null,null,0,0]
[400,null,null,null,null,null,null,null,null,0,0,null,null,null,null,null,null,null,null,null,null,null,null,null,0,0]
[401,null,null,null,null,null,null,null,null,0,0,null,null,null,null,null,null,null,null,null,null,null,null,null,0,0]
[402,null,null,null,null,null,null,null,null,0,0,null,null,null,null,null,null,null,null,null,null,null,null,null,0,0]
[403,null,null,null,null,null,null,null,null,0,0,null,null,null,null,null,null,null,null,null,null,null,null,null,0,0]
[404,null,null,null,null,null,null,null,null,0,0,null,null,null,null,null,null,null,null,null,null,null,null,null,0,0]
[405,null,null,null,null,null,null,null,null,0,0,null,null,null,null,null,null,null,null,null,null,null,null,null,0,0]
[406,null,null,null,null,null,null,null,null,0,0,null,null,null,null,null,null,null,null,null,null,null,null,null,0,{"$f":"IF(AF402-I402>=0,AF402-I402,\"\")","v":0}]
[407,null,null,null,null,null,null,null,null,0,0,null,null,null,null,null,null,null,null,null,null,null,null,null,0,0]
[408,null,null,null,null,null,null,null,null,0,0,null,null,null,null,null,null,null,null,null,null,null,null,null,0,0]
[409,null,null,null,null,null,null,null,null,0,0,null,null,null,null,null,null,null,null,null,null,null,null,null,0,0]
[410,null,null,null,null,null,null,null,null,0,0,null,null,null,null,null,null,null,null,null,null,null,null,null,0,0]
[411,null,null,null,null,null,null,null,null,0,0,null,null,null,null,null,null,null,null,null,null,null,null,null,0,0]
[412,null,null,null,null,null,null,null,null,0,0,null,null,null,null,null,null,null,null,null,null,null,null,null,0,0]
[413,null,null,null,null,null,null,null,null,0,0,null,null,null,null,null,null,null,null,null,null,null,null,null,0,0]
[414,null,null,null,null,null,null,null,null,0,0,null,null,null,null,null,null,null,null,null,null,null,null,null,0,0]
[415,null,null,null,null,null,null,null,null,0,0,null,null,null,null,null,null,null,null,null,null,null,null,null,0,0]
[416,null,null,null,null,null,null,null,null,0,0,null,null,null,null,null,null,null,null,null,null,null,null,null,0,0]
[417,null,null,null,null,null,null,null,null,0,0,null,null,null,null,null,null,null,null,null,null,null,null,null,0,0]
[418,null,null,null,null,null,null,null,null,0,0,null,null,null,null,null,null,null,null,null,null,null,null,null,0,0]
[419,null,null,null,null,null,null,null,null,0,0,null,null,null,null,null,null,null,null,null,null,null,null,null,0,0]
[420,null,null,null,null,null,null,null,null,0,0,null,null,null,null,null,null,null,null,null,null,null,null,null,0,0]
[421,null,null,null,null,null,null,null,null,0,0,null,null,null,null,null,null,null,null,null,null,null,null,null,0,0]
[422,null,null,null,null,null,null,null,null,0,0,null,null,null,null,null,null,null,null,null,null,null,null,null,0,0]
[423,null,null,null,null,null,null,null,null,0,0,null,null,null,null,null,null,null,null,null,null,null,null,null,0,0]
[424,null,null,null,null,null,null,null,null,0,0,null,null,null,null,null,null,null,null,null,null,null,null,null,0,0]
[425,null,null,null,null,null,null,null,null,0,0,null,null,null,null,null,null,null,null,null,null,null,null,null,0,0]
[426,null,null,null,null,null,null,null,null,0,0,null,null,null,null,null,null,null,null,null,null,null,null,null,0,0]
[427,null,null,null,null,null,null,null,null,0,0,null,null,null,null,null,null,null,null,null,null,null,null,null,0,0]
[428,null,null,null,null,null,null,null,null,0,0,null,null,null,null,null,null,null,null,null,null,null,null,null,0,0]
[429,null,null,null,null,null,null,null,null,0,0,null,null,null,null,null,null,null,null,null,null,null,null,null,0,0]
[430,null,null,null,null,null,null,null,null,0,0,null,null,null,null,null,null,null,null,null,null,null,null,null,0,0]
[431,null,null,null,null,null,null,null,null,0,0,null,null,null,null,null,null,null,null,null,null,null,null,null,0,0]
[432,null,null,null,null,null,null,null,null,0,0,null,null,null,null,null,null,null,null,null,null,null,null,null,0,0]
[433,null,null,null,null,null,null,null,null,0,0,null,null,null,null,null,null,null,null,null,null,null,null,null,0,0]
[434,null,null,null,null,null,null,null,null,0,0,null,null,null,null,null,null,null,null,null,null,null,null,null,0,0]
[435,null,null,null,null,null,null,null,null,0,0,null,null,null,null,null,null,null,null,null,null,null,null,null,0,0]
[436,null,null,null,null,null,null,null,null,0,0,null,null,null,null,null,null,null,null,null,null,null,null,null,0,0]
[437,null,null,null,null,null,null,null,null,0,0,null,null,null,null,null,null,null,null,null,null,null,null,null,0,0]
[438,null,null,null,null,null,null,null,null,0,0,null,null,null,null,null,null,null,null,null,null,null,null,null,0,0]
[439,null,null,null,null,null,null,null,null,0,0,null,null,null,null,null,null,null,null,null,null,null,null,null,0,0]
[440,null,null,null,null,null,null,null,null,0,0,null,null,null,null,null,null,null,null,null,null,null,null,null,0,0]
[441,null,null,null,null,null,null,null,null,0,0,null,null,null,null,null,null,null,null,null,null,null,null,null,0,0]
[442,null,null,null,null,null,null,null,null,0,0,null,null,null,null,null,null,null,null,null,null,null,null,null,0,0]
[443,null,null,null,null,null,null,null,null,0,0,null,null,null,null,null,null,null,null,null,null,null,null,null,0,0]
[444,null,null,null,null,null,null,null,null,0,0,null,null,null,null,null,null,null,null,null,null,null,null,null,0,0]
[445,null,null,null,null,null,null,null,null,0,0,null,null,null,null,null,null,null,null,null,null,null,null,null,0,0]
[446,null,null,null,null,null,null,null,null,0,0,null,null,null,null,null,null,null,null,null,null,null,null,null,0,0]
[447,null,null,null,null,null,null,null,null,0,0,null,null,null,null,null,null,null,null,null,null,null,null,null,0,0]
[448,null,null,null,null,null,null,null,null,0,0,null,null,null,null,null,null,null,null,null,null,null,null,null,0,0]
[449,null,null,null,null,null,null,null,null,0,0,null,null,null,null,null,null,null,null,null,null,null,null,null,0,0]
[450,null,null,null,null,null,null,null,null,0,0,null,null,null,null,null,null,null,null,null,null,null,null,null,0,0]
[451,null,null,null,null,null,null,null,null,0,0,null,null,null,null,null,null,null,null,null,null,null,null,null,0,0]
[452,null,null,null,null,null,null,null,null,0,0,null,null,null,null,null,null,null,null,null,null,null,null,null,0,0]
[453,null,null,null,null,null,null,null,null,0,0,null,null,null,null,null,null,null,null,null,null,null,null,null,0,0]
[454,null,null,null,null,null,null,null,null,0,0,null,null,null,null,null,null,null,null,null,null,null,null,null,0,0]
[455,null,null,null,null,null,null,null,null,0,0,null,null,null,null,null,null,null,null,null,null,null,null,null,0,0]
[456,null,null,null,null,null,null,null,null,{"$f":"DATEDIF(C452,I452,\"y\")","v":0},{"$f":"F452-I452","v":0},null,null,null,null,null,null,null,null,null,null,null,null,null,{"$f":"IF(X452-F452>=0,X452-F452,\"\")","v":0},0]
[457,null,null,null,null,null,null,null,null,0,0,null,null,null,null,null,null,null,null,null,null,null,null,null,0,0]
[458,null,null,null,null,null,null,null,null,0,0,null,null,null,null,null,null,null,null,null,null,null,null,null,0,0]
[459,null,null,null,null,null,null,null,null,0,0,null,null,null,null,null,null,null,null,null,null,null,null,null,0,0]
[460,null,null,null,null,null,null,null,null,0,0,null,null,null,null,null,null,null,null,null,null,null,null,null,0,0]
[461,null,null,null,null,null,null,null,null,0,0,null,null,null,null,null,null,null,null,null,null,null,null,null,0,0]
[462,null,null,null,null,null,null,null,null,0,0,null,null,null,null,null,null,null,null,null,null,null,null,null,0,0]
[463,null,null,null,null,null,null,null,null,0,0,null,null,null,null,null,null,null,null,null,null,null,null,null,0,0]
[464,null,null,null,null,null,null,null,null,0,0,null,null,null,null,null,null,null,null,null,null,null,null,null,0,0]
[465,null,null,null,null,null,null,null,null,0,0,null,null,null,null,null,null,null,null,null,null,null,null,null,0,0]
[466,null,null,null,null,null,null,null,null,0,0,null,null,null,null,null,null,null,null,null,null,null,null,null,0,0]
[467,null,null,null,null,null,null,null,null,0,0,null,null,null,null,null,null,null,null,null,null,null,null,null,0,0]
[468,null,null,null,null,null,null,null,null,0,0,null,null,null,null,null,null,null,null,null,null,null,null,null,0,0]
[469,null,null,null,null,null,null,null,null,0,0,null,null,null,null,null,null,null,null,null,null,null,null,null,0,0]
[470,null,null,null,null,null,null,null,null,0,0,null,null,null,null,null,null,null,null,null,null,null,null,null,0,{"$f":"IF(AF466-I466>=0,AF466-I466,\"\")","v":0}]
[471,null,null,null,null,null,null,null,null,0,0,null,null,null,null,null,null,null,null,null,null,null,null,null,0,0]
[472,null,null,null,null,null,null,null,null,0,0,null,null,null,null,null,null,null,null,null,null,null,null,null,0,0]
[473,null,null,null,null,null,null,null,null,0,0,null,null,null,null,null,null,null,null,null,null,null,null,null,0,0]
[474,null,null,null,null,null,null,null,null,0,0,null,null,null,null,null,null,null,null,null,null,null,null,null,0,0]
[475,null,null,null,null,null,null,null,null,0,0,null,null,null,null,null,null,null,null,null,null,null,null,null,0,0]
[476,null,null,null,null,null,null,null,null,0,0,null,null,null,null,null,null,null,null,null,null,null,null,null,0,0]
[477,null,null,null,null,null,null,null,null,0,0,null,null,null,null,null,null,null,null,null,null,null,null,null,0,0]
[478,null,null,null,null,null,null,null,null,0,0,null,null,null,null,null,null,null,null,null,null,null,null,null,0,0]
[479,null,null,null,null,null,null,null,null,0,0,null,null,null,null,null,null,null,null,null,null,null,null,null,0,0]
[480,null,null,null,null,null,null,null,null,0,0,null,null,null,null,null,null,null,null,null,null,null,null,null,0,0]
[481,null,null,null,null,null,null,null,null,0,0,null,null,null,null,null,null,null,null,null,null,null,null,null,0,0]
[482,null,null,null,null,null,null,null,null,0,0,null,null,null,null,null,null,null,null,null,null,null,null,null,0,0]
[483,null,null,null,null,null,null,null,null,0,0,null,null,null,null,null,null,null,null,null,null,null,null,null,0,0]
[484,null,null,null,null,null,null,null,null,0,0,null,null,null,null,null,null,null,null,null,null,null,null,null,0,0]
[485,null,null,null,null,null,null,null,null,0,0,null,null,null,null,null,null,null,null,null,null,null,null,null,0,0]
[486,null,null,null,null,null,null,null,null,0,0,null,null,null,null,null,null,null,null,null,null,null,null,null,0,0]
[487,null,null,null,null,null,null,null,null,0,0,null,null,null,null,null,null,null,null,null,null,null,null,null,0,0]
[488,null,null,null,null,null,null,null,null,0,0,null,null,null,null,null,null,null,null,null,null,null,null,null,0,0]
[489,null,null,null,null,null,null,null,null,0,0,null,null,null,null,null,null,null,null,null,null,null,null,null,0,0]
[490,null,null,null,null,null,null,null,null,0,0,null,null,null,null,null,null,null,null,null,null,null,null,null,0,0]
[491,null,null,null,null,null,null,null,null,0,0,null,null,null,null,null,null,null,null,null,null,null,null,null,0,0]
[492,null,null,null,null,null,null,null,null,0,0,null,null,null,null,null,null,null,null,null,null,null,null,null,0,0]
[493,null,null,null,null,null,null,null,null,0,0,null,null,null,null,null,null,null,null,null,null,null,null,null,0,0]
[494,null,null,null,null,null,null,null,null,0,0,null,null,null,null,null,null,null,null,null,null,null,null,null,0,0]
[495,null,null,null,null,null,null,null,null,0,0,null,null,null,null,null,null,null,null,null,null,null,null,null,0,0]
[496,null,null,null,null,null,null,null,null,0,0,null,null,null,null,null,null,null,null,null,null,null,null,null,0,0]
[497,null,null,null,null,null,null,null,null,0,0,null,null,null,null,null,null,null,null,null,null,null,null,null,0,0]
[498,null,null,null,null,null,null,null,null,0,0,null,null,null,null,null,null,null,null,null,null,null,null,null,0,0]
[499,null,null,null,null,null,null,null,null,0,0,null,null,null,null,null,null,null,null,null,null,null,null,null,0,0]
[500,null,null,null,null,null,null,null,null,0,0,null,null,null,null,null,null,null,null,null,null,null,null,null,0,0]
[501,null,null,null,null,null,null,null,null,0,0,null,null,null,null,null,null,null,null,null,null,null,null,null,0,0]
[502,null,null,null,null,null,null,null,null,0,0,null,null,null,null,null,null,null,null,null,null,null,null,null,0,0]
[503,null,null,null,null,null,null,null,null,0,0,null,null,null,null,null,null,null,null,null,null,null,null,null,0,0]
[504,null,null,null,null,null,null,null,null,0,0,null,null,null,null,null,null,null,null,null,null,null,null,null,0,0]
[505,null,null,null,null,null,null,null,null,0,0,null,null,null,null,null,null,null,null,null,null,null,null,null,0,0]
[506,null,null,null,null,null,null,null,null,0,0,null,null,null,null,null,null,null,null,null,null,null,null,null,0,0]
[507,null,null,null,null,null,null,null,null,0,0,null,null,null,null,null,null,null,null,null,null,null,null,null,0,0]
[508,null,null,null,null,null,null,null,null,0,0,null,null,null,null,null,null,null,null,null,null,null,null,null,0,0]
[509,null,null,null,null,null,null,null,null,0,0,null,null,null,null,null,null,null,null,null,null,null,null,null,0,0]
[510,null,null,null,null,null,null,null,null,0,0,null,null,null,null,null,null,null,null,null,null,null,null,null,0,0]
[511,null,null,null,null,null,null,null,null,0,0,null,null,null,null,null,null,null,null,null,null,null,null,null,0,0]
[512,null,null,null,null,null,null,null,null,0,0,null,null,null,null,null,null,null,null,null,null,null,null,null,0,0]
[513,null,null,null,null,null,null,null,null,0,0,null,null,null,null,null,null,null,null,null,null,null,null,null,0,0]
[514,null,null,null,null,null,null,null,null,0,0,null,null,null,null,null,null,null,null,null,null,null,null,null,0,0]
[515,null,null,null,null,null,null,null,null,0,0,null,null,null,null,null,null,null,null,null,null,null,null,null,0,0]
[516,null,null,null,null,null,null,null,null,0,0,null,null,null,null,null,null,null,null,null,null,null,null,null,0,0]
[517,null,null,null,null,null,null,null,null,0,0,null,null,null,null,null,null,null,null,null,null,null,null,null,0,0]
[518,null,null,null,null,null,null,null,null,0,0,null,null,null,null,null,null,null,null,null,null,null,null,null,0,0]
[519,null,null,null,null,null,null,null,null,0,0,null,null,null,null,null,null,null,null,null,null,null,null,null,0,0]
[520,null,null,null,null,null,null,null,null,{"$f":"DATEDIF(C516,I516,\"y\")","v":0},{"$f":"F516-I516","v":0},null,null,null,null,null,null,null,null,null,null,null,null,null,{"$f":"IF(X516-F516>=0,X516-F516,\"\")","v":0},0]
[521,null,null,null,null,null,null,null,null,0,0,null,null,null,null,null,null,null,null,null,null,null,null,null,0,0]
[522,null,null,null,null,null,null,null,null,0,0,null,null,null,null,null,null,null,null,null,null,null,null,null,0,0]
[523,null,null,null,null,null,null,null,null,0,0,null,null,null,null,null,null,null,null,null,null,null,null,null,0,0]
[524,null,null,null,null,null,null,null,null,0,0,null,null,null,null,null,null,null,null,null,null,null,null,null,0,0]
[525,null,null,null,null,null,null,null,null,0,0,null,null,null,null,null,null,null,null,null,null,null,null,null,0,0]
[526,null,null,null,null,null,null,null,null,0,0,null,null,null,null,null,null,null,null,null,null,null,null,null,0,0]
[527,null,null,null,null,null,null,null,null,0,0,null,null,null,null,null,null,null,null,null,null,null,null,null,0,0]
[528,null,null,null,null,null,null,null,null,0,0,null,null,null,null,null,null,null,null,null,null,null,null,null,0,0]
[529,null,null,null,null,null,null,null,null,0,0,null,null,null,null,null,null,null,null,null,null,null,null,null,0,0]
[530,null,null,null,null,null,null,null,null,0,0,null,null,null,null,null,null,null,null,null,null,null,null,null,0,0]
[531,null,null,null,null,null,null,null,null,0,0,null,null,null,null,null,null,null,null,null,null,null,null,null,0,0]
[532,null,null,null,null,null,null,null,null,0,0,null,null,null,null,null,null,null,null,null,null,null,null,null,0,0]
[533,null,null,null,null,null,null,null,null,0,0,null,null,null,null,null,null,null,null,null,null,null,null,null,0,0]
[534,null,null,null,null,null,null,null,null,0,0,null,null,null,null,null,null,null,null,null,null,null,null,null,0,{"$f":"IF(AF530-I530>=0,AF530-I530,\"\")","v":0}]
[535,null,null,null,null,null,null,null,null,0,0,null,null,null,null,null,null,null,null,null,null,null,null,null,0,0]
[536,null,null,null,null,null,null,null,null,0,0,null,null,null,null,null,null,null,null,null,null,null,null,null,0,0]
[537,null,null,null,null,null,null,null,null,0,0,null,null,null,null,null,null,null,null,null,null,null,null,null,0,0]
[538,null,null,null,null,null,null,null,null,0,0,null,null,null,null,null,null,null,null,null,null,null,null,null,0,0]
[539,null,null,null,null,null,null,null,null,0,0,null,null,null,null,null,null,null,null,null,null,null,null,null,0,0]
[540,null,null,null,null,null,null,null,null,0,0,null,null,null,null,null,null,null,null,null,null,null,null,null,0,0]
[541,null,null,null,null,null,null,null,null,0,0,null,null,null,null,null,null,null,null,null,null,null,null,null,0,0]
[542,null,null,null,null,null,null,null,null,0,0,null,null,null,null,null,null,null,null,null,null,null,null,null,0,0]
[543,null,null,null,null,null,null,null,null,0,0,null,null,null,null,null,null,null,null,null,null,null,null,null,0,0]
[544,null,null,null,null,null,null,null,null,0,0,null,null,null,null,null,null,null,null,null,null,null,null,null,0,0]
[545,null,null,null,null,null,null,null,null,0,0,null,null,null,null,null,null,null,null,null,null,null,null,null,0,0]
[546,null,null,null,null,null,null,null,null,0,0,null,null,null,null,null,null,null,null,null,null,null,null,null,0,0]
[547,null,null,null,null,null,null,null,null,0,0,null,null,null,null,null,null,null,null,null,null,null,null,null,0,0]
[548,null,null,null,null,null,null,null,null,0,0,null,null,null,null,null,null,null,null,null,null,null,null,null,0,0]
[549,null,null,null,null,null,null,null,null,0,0,null,null,null,null,null,null,null,null,null,null,null,null,null,0,0]
[550,null,null,null,null,null,null,null,null,0,0,null,null,null,null,null,null,null,null,null,null,null,null,null,0,0]
[551,null,null,null,null,null,null,null,null,0,0,null,null,null,null,null,null,null,null,null,null,null,null,null,0,0]
[552,null,null,null,null,null,null,null,null,0,0,null,null,null,null,null,null,null,null,null,null,null,null,null,0,0]
[553,null,null,null,null,null,null,null,null,0,0,null,null,null,null,null,null,null,null,null,null,null,null,null,0,0]
[554,null,null,null,null,null,null,null,null,0,0,null,null,null,null,null,null,null,null,null,null,null,null,null,0,0]
[555,null,null,null,null,null,null,null,null,0,0,null,null,null,null,null,null,null,null,null,null,null,null,null,0,0]
[556,null,null,null,null,null,null,null,null,0,0,null,null,null,null,null,null,null,null,null,null,null,null,null,0,0]
[557,null,null,null,null,null,null,null,null,0,0,null,null,null,null,null,null,null,null,null,null,null,null,null,0,0]
[558,null,null,null,null,null,null,null,null,0,0,null,null,null,null,null,null,null,null,null,null,null,null,null,0,0]
[559,null,null,null,null,null,null,null,null,0,0,null,null,null,null,null,null,null,null,null,null,null,null,null,0,0]
[560,null,null,null,null,null,null,null,null,0,0,null,null,null,null,null,null,null,null,null,null,null,null,null,0,0]
[561,null,null,null,null,null,null,null,null,0,0,null,null,null,null,null,null,null,null,null,null,null,null,null,0,0]
[562,null,null,null,null,null,null,null,null,0,0,null,null,null,null,null,null,null,null,null,null,null,null,null,0,0]
[563,null,null,null,null,null,null,null,null,0,0,null,null,null,null,null,null,null,null,null,null,null,null,null,0,0]
[564,null,null,null,null,null,null,null,null,0,0,null,null,null,null,null,null,null,null,null,null,null,null,null,0,0]
[565,null,null,null,null,null,null,null,null,0,0,null,null,null,null,null,null,null,null,null,null,null,null,null,0,0]
[566,null,null,null,null,null,null,null,null,0,0,null,null,null,null,null,null,null,null,null,null,null,null,null,0,0]
[567,null,null,null,null,null,null,null,null,0,0,null,null,null,null,null,null,null,null,null,null,null,null,null,0,0]
[568,null,null,null,null,null,null,null,null,0,0,null,null,null,null,null,null,null,null,null,null,null,null,null,0,0]
[569,null,null,null,null,null,null,null,null,0,0,null,null,null,null,null,null,null,null,null,null,null,null,null,0,0]
[570,null,null,null,null,null,null,null,null,0,0,null,null,null,null,null,null,null,null,null,null,null,null,null,0,0]
[571,null,null,null,null,null,null,null,null,0,0,null,null,null,null,null,null,null,null,null,null,null,null,null,0,0]
[572,null,null,null,null,null,null,null,null,0,0,null,null,null,null,null,null,null,null,null,null,null,null,null,0,0]
[573,null,null,null,null,null,null,null,null,0,0,null,null,null,null,null,null,null,null,null,null,null,null,null,0,0]
[574,null,null,null,null,null,null,null,null,0,0,null,null,null,null,null,null,null,null,null,null,null,null,null,0,0]
[575,null,null,null,null,null,null,null,null,0,0,null,null,null,null,null,null,null,null,null,null,null,null,null,0,0]
[576,null,null,null,null,null,null,null,null,0,0,null,null,null,null,null,null,null,null,null,null,null,null,null,0,0]
[577,null,null,null,null,null,null,null,null,0,0,null,null,null,null,null,null,null,null,null,null,null,null,null,0,0]
[578,null,null,null,null,null,null,null,null,0,0,null,null,null,null,null,null,null,null,null,null,null,null,null,0,0]
[579,null,null,null,null,null,null,null,null,0,0,null,null,null,null,null,null,null,null,null,null,null,null,null,0,0]
[580,null,null,null,null,null,null,null,null,0,0,null,null,null,null,null,null,null,null,null,null,null,null,null,0,0]
[581,null,null,null,null,null,null,null,null,0,0,null,null,null,null,null,null,null,null,null,null,null,null,null,0,0]
[582,null,null,null,null,null,null,null,null,0,0,null,null,null,null,null,null,null,null,null,null,null,null,null,0,0]
[583,null,null,null,null,null,null,null,null,0,0,null,null,null,null,null,null,null,null,null,null,null,null,null,0,0]
[584,null,null,null,null,null,null,null,null,{"$f":"DATEDIF(C580,I580,\"y\")","v":0},{"$f":"F580-I580","v":0},null,null,null,null,null,null,null,null,null,null,null,null,null,{"$f":"IF(X580-F580>=0,X580-F580,\"\")","v":0},0]
[585,null,null,null,null,null,null,null,null,0,0,null,null,null,null,null,null,null,null,null,null,null,null,null,0,0]
[586,null,null,null,null,null,null,null,null,0,0,null,null,null,null,null,null,null,null,null,null,null,null,null,0,0]
[587,null,null,null,null,null,null,null,null,0,0,null,null,null,null,null,null,null,null,null,null,null,null,null,0,0]
[588,null,null,null,null,null,null,null,null,0,0,null,null,null,null,null,null,null,null,null,null,null,null,null,0,0]
[589,null,null,null,null,null,null,null,null,0,0,null,null,null,null,null,null,null,null,null,null,null,null,null,0,0]
[590,null,null,null,null,null,null,null,null,0,0,null,null,null,null,null,null,null,null,null,null,null,null,null,0,0]
[591,null,null,null,null,null,null,null,null,0,0,null,null,null,null,null,null,null,null,null,null,null,null,null,0,0]
[592,null,null,null,null,null,null,null,null,0,0,null,null,null,null,null,null,null,null,null,null,null,null,null,0,0]
[593,null,null,null,null,null,null,null,null,0,0,null,null,null,null,null,null,null,null,null,null,null,null,null,0,0]
[594,null,null,null,null,null,null,null,null,0,0,null,null,null,null,null,null,null,null,null,null,null,null,null,0,0]
[595,null,null,null,null,null,null,null,null,0,0,null,null,null,null,null,null,null,null,null,null,null,null,null,0,0]
[596,null,null,null,null,null,null,null,null,0,0,null,null,null,null,null,null,null,null,null,null,null,null,null,0,0]
[597,null,null,null,null,null,null,null,null,0,0,null,null,null,null,null,null,null,null,null,null,null,null,null,0,0]
[598,null,null,null,null,null,null,null,null,0,0,null,null,null,null,null,null,null,null,null,null,null,null,null,0,{"$f":"IF(AF594-I594>=0,AF594-I594,\"\")","v":0}]
[599,null,null,null,null,null,null,null,null,0,0,null,null,null,null,null,null,null,null,null,null,null,null,null,0,0]
[600,null,null,null,null,null,null,null,null,0,0,null,null,null,null,null,null,null,null,null,null,null,null,null,0,0]
[601,null,null,null,null,null,null,null,null,0,0,null,null,null,null,null,null,null,null,null,null,null,null,null,0,0]
[602,null,null,null,null,null,null,null,null,0,0,null,null,null,null,null,null,null,null,null,null,null,null,null,0,0]
[603,null,null,null,null,null,null,null,null,0,0,null,null,null,null,null,null,null,null,null,null,null,null,null,0,0]
[604,null,null,null,null,null,null,null,null,0,0,null,null,null,null,null,null,null,null,null,null,null,null,null,0,0]
[605,null,null,null,null,null,null,null,null,0,0,null,null,null,null,null,null,null,null,null,null,null,null,null,0,0]
[606,null,null,null,null,null,null,null,null,0,0,null,null,null,null,null,null,null,null,null,null,null,null,null,0,0]
[607,null,null,null,null,null,null,null,null,0,0,null,null,null,null,null,null,null,null,null,null,null,null,null,0,0]
[608,null,null,null,null,null,null,null,null,0,0,null,null,null,null,null,null,null,null,null,null,null,null,null,0,0]
[609,null,null,null,null,null,null,null,null,0,0,null,null,null,null,null,null,null,null,null,null,null,null,null,0,0]
[610,null,null,null,null,null,null,null,null,0,0,null,null,null,null,null,null,null,null,null,null,null,null,null,0,0]
[611,null,null,null,null,null,null,null,null,0,0,null,null,null,null,null,null,null,null,null,null,null,null,null,0,0]
[612,null,null,null,null,null,null,null,null,0,0,null,null,null,null,null,null,null,null,null,null,null,null,null,0,0]
[613,null,null,null,null,null,null,null,null,0,0,null,null,null,null,null,null,null,null,null,null,null,null,null,0,0]
[614,null,null,null,null,null,null,null,null,0,0,null,null,null,null,null,null,null,null,null,null,null,null,null,0,0]
[615,null,null,null,null,null,null,null,null,0,0,null,null,null,null,null,null,null,null,null,null,null,null,null,0,0]
[616,null,null,null,null,null,null,null,null,0,0,null,null,null,null,null,null,null,null,null,null,null,null,null,0,0]
[617,null,null,null,null,null,null,null,null,0,0,null,null,null,null,null,null,null,null,null,null,null,null,null,0,0]
[618,null,null,null,null,null,null,null,null,0,0,null,null,null,null,null,null,null,null,null,null,null,null,null,0,0]
[619,null,null,null,null,null,null,null,null,0,0,null,null,null,null,null,null,null,null,null,null,null,null,null,0,0]
[620,null,null,null,null,null,null,null,null,0,0,null,null,null,null,null,null,null,null,null,null,null,null,null,0,0]
[621,null,null,null,null,null,null,null,null,0,0,null,null,null,null,null,null,null,null,null,null,null,null,null,0,0]
[622,null,null,null,null,null,null,null,null,0,0,null,null,null,null,null,null,null,null,null,null,null,null,null,0,0]
[623,null,null,null,null,null,null,null,null,0,0,null,null,null,null,null,null,null,null,null,null,null,null,null,0,0]
[624,null,null,null,null,null,null,null,null,0,0,null,null,null,null,null,null,null,null,null,null,null,null,null,0,0]
[625,null,null,null,null,null,null,null,null,0,0,null,null,null,null,null,null,null,null,null,null,null,null,null,0,0]
[626,null,null,null,null,null,null,null,null,0,0,null,null,null,null,null,null,null,null,null,null,null,null,null,0,0]
[627,null,null,null,null,null,null,null,null,0,0,null,null,null,null,null,null,null,null,null,null,null,null,null,0,0]
[628,null,null,null,null,null,null,null,null,0,0,null,null,null,null,null,null,null,null,null,null,null,null,null,0,0]
[629,null,null,null,null,null,null,null,null,0,0,null,null,null,null,null,null,null,null,null,null,null,null,null,0,0]
[630,null,null,null,null,null,null,null,null,0,0,null,null,null,null,null,null,null,null,null,null,null,null,null,0,0]
[631,null,null,null,null,null,null,null,null,0,0,null,null,null,null,null,null,null,null,null,null,null,null,null,0,0]
[632,null,null,null,null,null,null,null,null,0,0,null,null,null,null,null,null,null,null,null,null,null,null,null,0,0]
[633,null,null,null,null,null,null,null,null,0,0,null,null,null,null,null,null,null,null,null,null,null,null,null,0,0]
[634,null,null,null,null,null,null,null,null,0,0,null,null,null,null,null,null,null,null,null,null,null,null,null,0,0]
[635,null,null,null,null,null,null,null,null,0,0,null,null,null,null,null,null,null,null,null,null,null,null,null,0,0]
[636,null,null,null,null,null,null,null,null,0,0,null,null,null,null,null,null,null,null,null,null,null,null,null,0,0]
[637,null,null,null,null,null,null,null,null,0,0,null,null,null,null,null,null,null,null,null,null,null,null,null,0,0]
[638,null,null,null,null,null,null,null,null,0,0,null,null,null,null,null,null,null,null,null,null,null,null,null,0,0]
[639,null,null,null,null,null,null,null,null,0,0,null,null,null,null,null,null,null,null,null,null,null,null,null,0,0]
[640,null,null,null,null,null,null,null,null,0,0,null,null,null,null,null,null,null,null,null,null,null,null,null,0,0]
[641,null,null,null,null,null,null,null,null,0,0,null,null,null,null,null,null,null,null,null,null,null,null,null,0,0]
[642,null,null,null,null,null,null,null,null,0,0,null,null,null,null,null,null,null,null,null,null,null,null,null,0,0]
[643,null,null,null,null,null,null,null,null,0,0,null,null,null,null,null,null,null,null,null,null,null,null,null,0,0]
[644,null,null,null,null,null,null,null,null,0,0,null,null,null,null,null,null,null,null,null,null,null,null,null,0,0]
[645,null,null,null,null,null,null,null,null,0,0,null,null,null,null,null,null,null,null,null,null,null,null,null,0,0]
[646,null,null,null,null,null,null,null,null,0,0,null,null,null,null,null,null,null,null,null,null,null,null,null,0,0]
[647,null,null,null,null,null,null,null,null,0,0,null,null,null,null,null,null,null,null,null,null,null,null,null,0,0]
[648,null,null,null,null,null,null,null,null,{"$f":"DATEDIF(C644,I644,\"y\")","v":0},{"$f":"F644-I644","v":0},null,null,null,null,null,null,null,null,null,null,null,null,null,{"$f":"IF(X644-F644>=0,X644-F644,\"\")","v":0},0]
[649,null,null,null,null,null,null,null,null,0,0,null,null,null,null,null,null,null,null,null,null,null,null,null,0,0]
[650,null,null,null,null,null,null,null,null,0,0,null,null,null,null,null,null,null,null,null,null,null,null,null,0,0]
[651,null,null,null,null,null,null,null,null,0,0,null,null,null,null,null,null,null,null,null,null,null,null,null,0,0]
[652,null,null,null,null,null,null,null,null,0,0,null,null,null,null,null,null,null,null,null,null,null,null,null,0,0]
[653,null,null,null,null,null,null,null,null,0,0,null,null,null,null,null,null,null,null,null,null,null,null,null,0,0]
[654,null,null,null,null,null,null,null,null,0,0,null,null,null,null,null,null,null,null,null,null,null,null,null,0,0]
[655,null,null,null,null,null,null,null,null,0,0,null,null,null,null,null,null,null,null,null,null,null,null,null,0,0]
[656,null,null,null,null,null,null,null,null,0,0,null,null,null,null,null,null,null,null,null,null,null,null,null,0,0]
[657,null,null,null,null,null,null,null,null,0,0,null,null,null,null,null,null,null,null,null,null,null,null,null,0,0]
[658,null,null,null,null,null,null,null,null,0,0,null,null,null,null,null,null,null,null,null,null,null,null,null,0,0]
[659,null,null,null,null,null,null,null,null,0,0,null,null,null,null,null,null,null,null,null,null,null,null,null,0,0]
[660,null,null,null,null,null,null,null,null,0,0,null,null,null,null,null,null,null,null,null,null,null,null,null,0,0]
[661,null,null,null,null,null,null,null,null,0,0,null,null,null,null,null,null,null,null,null,null,null,null,null,0,0]
[662,null,null,null,null,null,null,null,null,0,0,null,null,null,null,null,null,null,null,null,null,null,null,null,0,{"$f":"IF(AF658-I658>=0,AF658-I658,\"\")","v":0}]
[663,null,null,null,null,null,null,null,null,0,0,null,null,null,null,null,null,null,null,null,null,null,null,null,0,0]
[664,null,null,null,null,null,null,null,null,0,0,null,null,null,null,null,null,null,null,null,null,null,null,null,0,0]
[665,null,null,null,null,null,null,null,null,0,0,null,null,null,null,null,null,null,null,null,null,null,null,null,0,0]
[666,null,null,null,null,null,null,null,null,0,0,null,null,null,null,null,null,null,null,null,null,null,null,null,0,0]
[667,null,null,null,null,null,null,null,null,0,0,null,null,null,null,null,null,null,null,null,null,null,null,null,0,0]
[668,null,null,null,null,null,null,null,null,0,0,null,null,null,null,null,null,null,null,null,null,null,null,null,0,0]
[669,null,null,null,null,null,null,null,null,0,0,null,null,null,null,null,null,null,null,null,null,null,null,null,0,0]
[670,null,null,null,null,null,null,null,null,0,0,null,null,null,null,null,null,null,null,null,null,null,null,null,0,0]
[671,null,null,null,null,null,null,null,null,0,0,null,null,null,null,null,null,null,null,null,null,null,null,null,0,0]
[672,null,null,null,null,null,null,null,null,0,0,null,null,null,null,null,null,null,null,null,null,null,null,null,0,0]
[673,null,null,null,null,null,null,null,null,0,0,null,null,null,null,null,null,null,null,null,null,null,null,null,0,0]
[674,null,null,null,null,null,null,null,null,0,0,null,null,null,null,null,null,null,null,null,null,null,null,null,0,0]
[675,null,null,null,null,null,null,null,null,0,0,null,null,null,null,null,null,null,null,null,null,null,null,null,0,0]
[676,null,null,null,null,null,null,null,null,0,0,null,null,null,null,null,null,null,null,null,null,null,null,null,0,0]
[677,null,null,null,null,null,null,null,null,0,0,null,null,null,null,null,null,null,null,null,null,null,null,null,0,0]
[678,null,null,null,null,null,null,null,null,0,0,null,null,null,null,null,null,null,null,null,null,null,null,null,0,0]
[679,null,null,null,null,null,null,null,null,0,0,null,null,null,null,null,null,null,null,null,null,null,null,null,0,0]
[680,null,null,null,null,null,null,null,null,0,0,null,null,null,null,null,null,null,null,null,null,null,null,null,0,0]
[681,null,null,null,null,null,null,null,null,0,0,null,null,null,null,null,null,null,null,null,null,null,null,null,0,0]
[682,null,null,null,null,null,null,null,null,0,0,null,null,null,null,null,null,null,null,null,null,null,null,null,0,0]
[683,null,null,null,null,null,null,null,null,0,0,null,null,null,null,null,null,null,null,null,null,null,null,null,0,0]
[684,null,null,null,null,null,null,null,null,0,0,null,null,null,null,null,null,null,null,null,null,null,null,null,0,0]
[685,null,null,null,null,null,null,null,null,0,0,null,null,null,null,null,null,null,null,null,null,null,null,null,0,0]
[686,null,null,null,null,null,null,null,null,0,0,null,null,null,null,null,null,null,null,null,null,null,null,null,0,0]
[687,null,null,null,null,null,null,null,null,0,0,null,null,null,null,null,null,null,null,null,null,null,null,null,0,0]
[688,null,null,null,null,null,null,null,null,0,0,null,null,null,null,null,null,null,null,null,null,null,null,null,0,0]
[689,null,null,null,null,null,null,null,null,0,0,null,null,null,null,null,null,null,null,null,null,null,null,null,0,0]
[690,null,null,null,null,null,null,null,null,0,0,null,null,null,null,null,null,null,null,null,null,null,null,null,0,0]
[691,null,null,null,null,null,null,null,null,0,0,null,null,null,null,null,null,null,null,null,null,null,null,null,0,0]
[692,null,null,null,null,null,null,null,null,0,0,null,null,null,null,null,null,null,null,null,null,null,null,null,0,0]
[693,null,null,null,null,null,null,null,null,0,0,null,null,null,null,null,null,null,null,null,null,null,null,null,0,0]
[694,null,null,null,null,null,null,null,null,0,0,null,null,null,null,null,null,null,null,null,null,null,null,null,0,0]
[695,null,null,null,null,null,null,null,null,0,0,null,null,null,null,null,null,null,null,null,null,null,null,null,0,0]
[696,null,null,null,null,null,null,null,null,0,0,null,null,null,null,null,null,null,null,null,null,null,null,null,0,0]
[697,null,null,null,null,null,null,null,null,0,0,null,null,null,null,null,null,null,null,null,null,null,null,null,0,0]
[698,null,null,null,null,null,null,null,null,0,0,null,null,null,null,null,null,null,null,null,null,null,null,null,0,0]
[699,null,null,null,null,null,null,null,null,0,0,null,null,null,null,null,null,null,null,null,null,null,null,null,0,0]
[700,null,null,null,null,null,null,null,null,0,0,null,null,null,null,null,null,null,null,null,null,null,null,null,0,0]
[701,null,null,null,null,null,null,null,null,0,0,null,null,null,null,null,null,null,null,null,null,null,null,null,0,0]
[702,null,null,null,null,null,null,null,null,0,0,null,null,null,null,null,null,null,null,null,null,null,null,null,0,0]
[703,null,null,null,null,null,null,null,null,0,0,null,null,null,null,null,null,null,null,null,null,null,null,null,0,0]
[704,null,null,null,null,null,null,null,null,0,0,null,null,null,null,null,null,null,null,null,null,null,null,null,0,0]
[705,null,null,null,null,null,null,null,null,0,0,null,null,null,null,null,null,null,null,null,null,null,null,null,0,0]
[706,null,null,null,null,null,null,null,null,0,0,null,null,null,null,null,null,null,null,null,null,null,null,null,0,0]
[707,null,null,null,null,null,null,null,null,0,0,null,null,null,null,null,null,null,null,null,null,null,null,null,0,0]
[708,null,null,null,null,null,null,null,null,0,0,null,null,null,null,null,null,null,null,null,null,null,null,null,0,0]
[709,null,null,null,null,null,null,null,null,0,0,null,null,null,null,null,null,null,null,null,null,null,null,null,0,0]
[710,null,null,null,null,null,null,null,null,0,0,null,null,null,null,null,null,null,null,null,null,null,null,null,0,0]
[711,null,null,null,null,null,null,null,null,0,0,null,null,null,null,null,null,null,null,null,null,null,null,null,0,0]
[712,null,null,null,null,null,null,null,null,{"$f":"DATEDIF(C708,I708,\"y\")","v":0},{"$f":"F708-I708","v":0},null,null,null,null,null,null,null,null,null,null,null,null,null,{"$f":"IF(X708-F708>=0,X708-F708,\"\")","v":0},0]
[713,null,null,null,null,null,null,null,null,0,0,null,null,null,null,null,null,null,null,null,null,null,null,null,0,0]
[714,null,null,null,null,null,null,null,null,0,0,null,null,null,null,null,null,null,null,null,null,null,null,null,0,0]
[715,null,null,null,null,null,null,null,null,0,0,null,null,null,null,null,null,null,null,null,null,null,null,null,0,0]
[716,null,null,null,null,null,null,null,null,0,0,null,null,null,null,null,null,null,null,null,null,null,null,null,0,0]
[717,null,null,null,null,null,null,null,null,0,0,null,null,null,null,null,null,null,null,null,null,null,null,null,0,0]
[718,null,null,null,null,null,null,null,null,0,0,null,null,null,null,null,null,null,null,null,null,null,null,null,0,0]
[719,null,null,null,null,null,null,null,null,0,0,null,null,null,null,null,null,null,null,null,null,null,null,null,0,0]
[720,null,null,null,null,null,null,null,null,0,0,null,null,null,null,null,null,null,null,null,null,null,null,null,0,0]
[721,null,null,null,null,null,null,null,null,0,0,null,null,null,null,null,null,null,null,null,null,null,null,null,0,0]
[722,null,null,null,null,null,null,null,null,0,0,null,null,null,null,null,null,null,null,null,null,null,null,null,0,0]
[723,null,null,null,null,null,null,null,null,0,0,null,null,null,null,null,null,null,null,null,null,null,null,null,0,0]
[724,null,null,null,null,null,null,null,null,0,0,null,null,null,null,null,null,null,null,null,null,null,null,null,0,0]
[725,null,null,null,null,null,null,null,null,0,0,null,null,null,null,null,null,null,null,null,null,null,null,null,0,0]
[726,null,null,null,null,null,null,null,null,0,0,null,null,null,null,null,null,null,null,null,null,null,null,null,0,{"$f":"IF(AF722-I722>=0,AF722-I722,\"\")","v":0}]
[727,null,null,null,null,null,null,null,null,0,0,null,null,null,null,null,null,null,null,null,null,null,null,null,0,0]
[728,null,null,null,null,null,null,null,null,0,0,null,null,null,null,null,null,null,null,null,null,null,null,null,0,0]
[729,null,null,null,null,null,null,null,null,0,0,null,null,null,null,null,null,null,null,null,null,null,null,null,0,0]
[730,null,null,null,null,null,null,null,null,0,0,null,null,null,null,null,null,null,null,null,null,null,null,null,0,0]
[731,null,null,null,null,null,null,null,null,0,0,null,null,null,null,null,null,null,null,null,null,null,null,null,0,0]
[732,null,null,null,null,null,null,null,null,0,0,null,null,null,null,null,null,null,null,null,null,null,null,null,0,0]
[733,null,null,null,null,null,null,null,null,0,0,null,null,null,null,null,null,null,null,null,null,null,null,null,0,0]
[734,null,null,null,null,null,null,null,null,0,0,null,null,null,null,null,null,null,null,null,null,null,null,null,0,0]
[735,null,null,null,null,null,null,null,null,0,0,null,null,null,null,null,null,null,null,null,null,null,null,null,0,0]
[736,null,null,null,null,null,null,null,null,0,0,null,null,null,null,null,null,null,null,null,null,null,null,null,0,0]
[737,null,null,null,null,null,null,null,null,0,0,null,null,null,null,null,null,null,null,null,null,null,null,null,0,0]
[738,null,null,null,null,null,null,null,null,0,0,null,null,null,null,null,null,null,null,null,null,null,null,null,0,0]
[739,null,null,null,null,null,null,null,null,0,0,null,null,null,null,null,null,null,null,null,null,null,null,null,0,0]
[740,null,null,null,null,null,null,null,null,0,0,null,null,null,null,null,null,null,null,null,null,null,null,null,0,0]
[741,null,null,null,null,null,null,null,null,0,0,null,null,null,null,null,null,null,null,null,null,null,null,null,0,0]
[742,null,null,null,null,null,null,null,null,0,0,null,null,null,null,null,null,null,null,null,null,null,null,null,0,0]
[743,null,null,null,null,null,null,null,null,0,0,null,null,null,null,null,null,null,null,null,null,null,null,null,0,0]
[744,null,null,null,null,null,null,null,null,0,0,null,null,null,null,null,null,null,null,null,null,null,null,null,0,0]
[745,null,null,null,null,null,null,null,null,0,0,null,null,null,null,null,null,null,null,null,null,null,null,null,0,0]
[746,null,null,null,null,null,null,null,null,0,0,null,null,null,null,null,null,null,null,null,null,null,null,null,0,0]
[747,null,null,null,null,null,null,null,null,0,0,null,null,null,null,null,null,null,null,null,null,null,null,null,0,0]
[748,null,null,null,null,null,null,null,null,0,0,null,null,null,null,null,null,null,null,null,null,null,null,null,0,0]
[749,null,null,null,null,null,null,null,null,0,0,null,null,null,null,null,null,null,null,null,null,null,null,null,0,0]
[750,null,null,null,null,null,null,null,null,0,0,null,null,null,null,null,null,null,null,null,null,null,null,null,0,0]
[751,null,null,null,null,null,null,null,null,0,0,null,null,null,null,null,null,null,null,null,null,null,null,null,0,0]
[752,null,null,null,null,null,null,null,null,0,0,null,null,null,null,null,null,null,null,null,null,null,null,null,0,0]
[753,null,null,null,null,null,null,null,null,0,0,null,null,null,null,null,null,null,null,null,null,null,null,null,0,0]
[754,null,null,null,null,null,null,null,null,0,0,null,null,null,null,null,null,null,null,null,null,null,null,null,0,0]
[755,null,null,null,null,null,null,null,null,0,0,null,null,null,null,null,null,null,null,null,null,null,null,null,0,0]
[756,null,null,null,null,null,null,null,null,0,0,null,null,null,null,null,null,null,null,null,null,null,null,null,0,0]
[757,null,null,null,null,null,null,null,null,0,0,null,null,null,null,null,null,null,null,null,null,null,null,null,0,0]
[758,null,null,null,null,null,null,null,null,0,0,null,null,null,null,null,null,null,null,null,null,null,null,null,0,0]
[759,null,null,null,null,null,null,null,null,0,0,null,null,null,null,null,null,null,null,null,null,null,null,null,0,0]
[760,null,null,null,null,null,null,null,null,0,0,null,null,null,null,null,null,null,null,null,null,null,null,null,0,0]
[761,null,null,null,null,null,null,null,null,0,0,null,null,null,null,null,null,null,null,null,null,null,null,null,0,0]
[762,null,null,null,null,null,null,null,null,0,0,null,null,null,null,null,null,null,null,null,null,null,null,null,0,0]
[763,null,null,null,null,null,null,null,null,0,0,null,null,null,null,null,null,null,null,null,null,null,null,null,0,0]
[764,null,null,null,null,null,null,null,null,0,0,null,null,null,null,null,null,null,null,null,null,null,null,null,0,0]
[765,null,null,null,null,null,null,null,null,0,0,null,null,null,null,null,null,null,null,null,null,null,null,null,0,0]
[766,null,null,null,null,null,null,null,null,0,0,null,null,null,null,null,null,null,null,null,null,null,null,null,0,0]
[767,null,null,null,null,null,null,null,null,0,0,null,null,null,null,null,null,null,null,null,null,null,null,null,0,0]
[768,null,null,null,null,null,null,null,null,0,0,null,null,null,null,null,null,null,null,null,null,null,null,null,0,0]
[769,null,null,null,null,null,null,null,null,0,0,null,null,null,null,null,null,null,null,null,null,null,null,null,0,0]
[770,null,null,null,null,null,null,null,null,0,0,null,null,null,null,null,null,null,null,null,null,null,null,null,0,0]
[771,null,null,null,null,null,null,null,null,0,0,null,null,null,null,null,null,null,null,null,null,null,null,null,0,0]
[772,null,null,null,null,null,null,null,null,0,0,null,null,null,null,null,null,null,null,null,null,null,null,null,0,0]
[773,null,null,null,null,null,null,null,null,0,0,null,null,null,null,null,null,null,null,null,null,null,null,null,0,0]
[774,null,null,null,null,null,null,null,null,0,0,null,null,null,null,null,null,null,null,null,null,null,null,null,0,0]
[775,null,null,null,null,null,null,null,null,0,0,null,null,null,null,null,null,null,null,null,null,null,null,null,0,0]
[776,null,null,null,null,null,null,null,null,{"$f":"DATEDIF(C772,I772,\"y\")","v":0},{"$f":"F772-I772","v":0},null,null,null,null,null,null,null,null,null,null,null,null,null,{"$f":"IF(X772-F772>=0,X772-F772,\"\")","v":0},0]
[777,null,null,null,null,null,null,null,null,0,0,null,null,null,null,null,null,null,null,null,null,null,null,null,0,0]
[778,null,null,null,null,null,null,null,null,0,0,null,null,null,null,null,null,null,null,null,null,null,null,null,0,0]
[779,null,null,null,null,null,null,null,null,0,0,null,null,null,null,null,null,null,null,null,null,null,null,null,0,0]
[780,null,null,null,null,null,null,null,null,0,0,null,null,null,null,null,null,null,null,null,null,null,null,null,0,0]
[781,null,null,null,null,null,null,null,null,0,0,null,null,null,null,null,null,null,null,null,null,null,null,null,0,0]
[782,null,null,null,null,null,null,null,null,0,0,null,null,null,null,null,null,null,null,null,null,null,null,null,0,0]
[783,null,null,null,null,null,null,null,null,0,0,null,null,null,null,null,null,null,null,null,null,null,null,null,0,0]
[784,null,null,null,null,null,null,null,null,0,0,null,null,null,null,null,null,null,null,null,null,null,null,null,0,0]
[785,null,null,null,null,null,null,null,null,0,0,null,null,null,null,null,null,null,null,null,null,null,null,null,0,0]
[786,null,null,null,null,null,null,null,null,0,0,null,null,null,null,null,null,null,null,null,null,null,null,null,0,0]
[787,null,null,null,null,null,null,null,null,0,0,null,null,null,null,null,null,null,null,null,null,null,null,null,0,0]
[788,null,null,null,null,null,null,null,null,0,0,null,null,null,null,null,null,null,null,null,null,null,null,null,0,0]
[789,null,null,null,null,null,null,null,null,0,0,null,null,null,null,null,null,null,null,null,null,null,null,null,0,0]
[790,null,null,null,null,null,null,null,null,0,0,null,null,null,null,null,null,null,null,null,null,null,null,null,0,{"$f":"IF(AF786-I786>=0,AF786-I786,\"\")","v":0}]
[791,null,null,null,null,null,null,null,null,0,0,null,null,null,null,null,null,null,null,null,null,null,null,null,0,0]
[792,null,null,null,null,null,null,null,null,0,0,null,null,null,null,null,null,null,null,null,null,null,null,null,0,0]
[793,null,null,null,null,null,null,null,null,0,0,null,null,null,null,null,null,null,null,null,null,null,null,null,0,0]
[794,null,null,null,null,null,null,null,null,0,0,null,null,null,null,null,null,null,null,null,null,null,null,null,0,0]
[795,null,null,null,null,null,null,null,null,0,0,null,null,null,null,null,null,null,null,null,null,null,null,null,0,0]
[796,null,null,null,null,null,null,null,null,0,0,null,null,null,null,null,null,null,null,null,null,null,null,null,0,0]
[797,null,null,null,null,null,null,null,null,0,0,null,null,null,null,null,null,null,null,null,null,null,null,null,0,0]
[798,null,null,null,null,null,null,null,null,0,0,null,null,null,null,null,null,null,null,null,null,null,null,null,0,0]
[799,null,null,null,null,null,null,null,null,0,0,null,null,null,null,null,null,null,null,null,null,null,null,null,0,0]
[800,null,null,null,null,null,null,null,null,0,0,null,null,null,null,null,null,null,null,null,null,null,null,null,0,0]
[801,null,null,null,null,null,null,null,null,0,0,null,null,null,null,null,null,null,null,null,null,null,null,null,0,0]
[802,null,null,null,null,null,null,null,null,0,0,null,null,null,null,null,null,null,null,null,null,null,null,null,0,0]
[803,null,null,null,null,null,null,null,null,0,0,null,null,null,null,null,null,null,null,null,null,null,null,null,0,0]
[804,null,null,null,null,null,null,null,null,0,0,null,null,null,null,null,null,null,null,null,null,null,null,null,0,0]
[805,null,null,null,null,null,null,null,null,0,0,null,null,null,null,null,null,null,null,null,null,null,null,null,0,0]
[806,null,null,null,null,null,null,null,null,0,0,null,null,null,null,null,null,null,null,null,null,null,null,null,0,0]
[807,null,null,null,null,null,null,null,null,0,0,null,null,null,null,null,null,null,null,null,null,null,null,null,0,0]
[808,null,null,null,null,null,null,null,null,0,0,null,null,null,null,null,null,null,null,null,null,null,null,null,0,0]
[809,null,null,null,null,null,null,null,null,0,0,null,null,null,null,null,null,null,null,null,null,null,null,null,0,0]
[810,null,null,null,null,null,null,null,null,0,0,null,null,null,null,null,null,null,null,null,null,null,null,null,0,0]
[811,null,null,null,null,null,null,null,null,0,0,null,null,null,null,null,null,null,null,null,null,null,null,null,0,0]
[812,null,null,null,null,null,null,null,null,0,0,null,null,null,null,null,null,null,null,null,null,null,null,null,0,0]
[813,null,null,null,null,null,null,null,null,0,0,null,null,null,null,null,null,null,null,null,null,null,null,null,0,0]
[814,null,null,null,null,null,null,null,null,0,0,null,null,null,null,null,null,null,null,null,null,null,null,null,0,0]
[815,null,null,null,null,null,null,null,null,0,0,null,null,null,null,null,null,null,null,null,null,null,null,null,0,0]
[816,null,null,null,null,null,null,null,null,0,0,null,null,null,null,null,null,null,null,null,null,null,null,null,0,0]
[817,null,null,null,null,null,null,null,null,0,0,null,null,null,null,null,null,null,null,null,null,null,null,null,0,0]
[818,null,null,null,null,null,null,null,null,0,0,null,null,null,null,null,null,null,null,null,null,null,null,null,0,0]
[819,null,null,null,null,null,null,null,null,0,0,null,null,null,null,null,null,null,null,null,null,null,null,null,0,0]
[820,null,null,null,null,null,null,null,null,0,0,null,null,null,null,null,null,null,null,null,null,null,null,null,0,0]
[821,null,null,null,null,null,null,null,null,0,0,null,null,null,null,null,null,null,null,null,null,null,null,null,0,0]
[822,null,null,null,null,null,null,null,null,0,0,null,null,null,null,null,null,null,null,null,null,null,null,null,0,0]
[823,null,null,null,null,null,null,null,null,0,0,null,null,null,null,null,null,null,null,null,null,null,null,null,0,0]
[824,null,null,null,null,null,null,null,null,0,0,null,null,null,null,null,null,null,null,null,null,null,null,null,0,0]
[825,null,null,null,null,null,null,null,null,0,0,null,null,null,null,null,null,null,null,null,null,null,null,null,0,0]
[826,null,null,null,null,null,null,null,null,0,0,null,null,null,null,null,null,null,null,null,null,null,null,null,0,0]
[827,null,null,null,null,null,null,null,null,0,0,null,null,null,null,null,null,null,null,null,null,null,null,null,0,0]
[828,null,null,null,null,null,null,null,null,0,0,null,null,null,null,null,null,null,null,null,null,null,null,null,0,0]
[829,null,null,null,null,null,null,null,null,0,0,null,null,null,null,null,null,null,null,null,null,null,null,null,0,0]
[830,null,null,null,null,null,null,null,null,0,0,null,null,null,null,null,null,null,null,null,null,null,null,null,0,0]
[831,null,null,null,null,null,null,null,null,0,0,null,null,null,null,null,null,null,null,null,null,null,null,null,0,0]
[832,null,null,null,null,null,null,null,null,0,0,null,null,null,null,null,null,null,null,null,null,null,null,null,0,0]
[833,null,null,null,null,null,null,null,null,0,0,null,null,null,null,null,null,null,null,null,null,null,null,null,0,0]
[834,null,null,null,null,null,null,null,null,0,0,null,null,null,null,null,null,null,null,null,null,null,null,null,0,0]
[835,null,null,null,null,null,null,null,null,0,0,null,null,null,null,null,null,null,null,null,null,null,null,null,0,0]
[836,null,null,null,null,null,null,null,null,0,0,null,null,null,null,null,null,null,null,null,null,null,null,null,0,0]
[837,null,null,null,null,null,null,null,null,0,0,null,null,null,null,null,null,null,null,null,null,null,null,null,0,0]
[838,null,null,null,null,null,null,null,null,0,0,null,null,null,null,null,null,null,null,null,null,null,null,null,0,0]
[839,null,null,null,null,null,null,null,null,0,0,null,null,null,null,null,null,null,null,null,null,null,null,null,0,0]
[840,null,null,null,null,null,null,null,null,{"$f":"DATEDIF(C836,I836,\"y\")","v":0},{"$f":"F836-I836","v":0},null,null,null,null,null,null,null,null,null,null,null,null,null,{"$f":"IF(X836-F836>=0,X836-F836,\"\")","v":0},0]
[841,null,null,null,null,null,null,null,null,0,0,null,null,null,null,null,null,null,null,null,null,null,null,null,0,0]
[842,null,null,null,null,null,null,null,null,0,0,null,null,null,null,null,null,null,null,null,null,null,null,null,0,0]
[843,null,null,null,null,null,null,null,null,0,0,null,null,null,null,null,null,null,null,null,null,null,null,null,0,0]
[844,null,null,null,null,null,null,null,null,0,0,null,null,null,null,null,null,null,null,null,null,null,null,null,0,0]
[845,null,null,null,null,null,null,null,null,0,0,null,null,null,null,null,null,null,null,null,null,null,null,null,0,0]
[846,null,null,null,null,null,null,null,null,0,0,null,null,null,null,null,null,null,null,null,null,null,null,null,0,0]
[847,null,null,null,null,null,null,null,null,0,0,null,null,null,null,null,null,null,null,null,null,null,null,null,0,0]
[848,null,null,null,null,null,null,null,null,0,0,null,null,null,null,null,null,null,null,null,null,null,null,null,0,0]
[849,null,null,null,null,null,null,null,null,0,0,null,null,null,null,null,null,null,null,null,null,null,null,null,0,0]
[850,null,null,null,null,null,null,null,null,0,0,null,null,null,null,null,null,null,null,null,null,null,null,null,0,0]
[851,null,null,null,null,null,null,null,null,0,0,null,null,null,null,null,null,null,null,null,null,null,null,null,0,0]
[852,null,null,null,null,null,null,null,null,0,0,null,null,null,null,null,null,null,null,null,null,null,null,null,0,0]
[853,null,null,null,null,null,null,null,null,0,0,null,null,null,null,null,null,null,null,null,null,null,null,null,0,0]
[854,null,null,null,null,null,null,null,null,0,0,null,null,null,null,null,null,null,null,null,null,null,null,null,0,{"$f":"IF(AF850-I850>=0,AF850-I850,\"\")","v":0}]
[855,null,null,null,null,null,null,null,null,0,0,null,null,null,null,null,null,null,null,null,null,null,null,null,0,0]
[856,null,null,null,null,null,null,null,null,0,0,null,null,null,null,null,null,null,null,null,null,null,null,null,0,0]
[857,null,null,null,null,null,null,null,null,0,0,null,null,null,null,null,null,null,null,null,null,null,null,null,0,0]
[858,null,null,null,null,null,null,null,null,0,0,null,null,null,null,null,null,null,null,null,null,null,null,null,0,0]
[859,null,null,null,null,null,null,null,null,0,0,null,null,null,null,null,null,null,null,null,null,null,null,null,0,0]
[860,null,null,null,null,null,null,null,null,0,0,null,null,null,null,null,null,null,null,null,null,null,null,null,0,0]
[861,null,null,null,null,null,null,null,null,0,0,null,null,null,null,null,null,null,null,null,null,null,null,null,0,0]
[862,null,null,null,null,null,null,null,null,0,0,null,null,null,null,null,null,null,null,null,null,null,null,null,0,0]
[863,null,null,null,null,null,null,null,null,0,0,null,null,null,null,null,null,null,null,null,null,null,null,null,0,0]
[864,null,null,null,null,null,null,null,null,0,0,null,null,null,null,null,null,null,null,null,null,null,null,null,0,0]
[865,null,null,null,null,null,null,null,null,0,0,null,null,null,null,null,null,null,null,null,null,null,null,null,0,0]
[866,null,null,null,null,null,null,null,null,0,0,null,null,null,null,null,null,null,null,null,null,null,null,null,0,0]
[867,null,null,null,null,null,null,null,null,0,0,null,null,null,null,null,null,null,null,null,null,null,null,null,0,0]
[868,null,null,null,null,null,null,null,null,0,0,null,null,null,null,null,null,null,null,null,null,null,null,null,0,0]
[869,null,null,null,null,null,null,null,null,0,0,null,null,null,null,null,null,null,null,null,null,null,null,null,0,0]
[870,null,null,null,null,null,null,null,null,0,0,null,null,null,null,null,null,null,null,null,null,null,null,null,0,0]
[871,null,null,null,null,null,null,null,null,0,0,null,null,null,null,null,null,null,null,null,null,null,null,null,0,0]
[872,null,null,null,null,null,null,null,null,0,0,null,null,null,null,null,null,null,null,null,null,null,null,null,0,0]
[873,null,null,null,null,null,null,null,null,0,0,null,null,null,null,null,null,null,null,null,null,null,null,null,0,0]
[874,null,null,null,null,null,null,null,null,0,0,null,null,null,null,null,null,null,null,null,null,null,null,null,0,0]
[875,null,null,null,null,null,null,null,null,0,0,null,null,null,null,null,null,null,null,null,null,null,null,null,0,0]
[876,null,null,null,null,null,null,null,null,0,0,null,null,null,null,null,null,null,null,null,null,null,null,null,0,0]
[877,null,null,null,null,null,null,null,null,0,0,null,null,null,null,null,null,null,null,null,null,null,null,null,0,0]
[878,null,null,null,null,null,null,null,null,0,0,null,null,null,null,null,null,null,null,null,null,null,null,null,0,0]
[879,null,null,null,null,null,null,null,null,0,0,null,null,null,null,null,null,null,null,null,null,null,null,null,0,0]
[880,null,null,null,null,null,null,null,null,0,0,null,null,null,null,null,null,null,null,null,null,null,null,null,0,0]
[881,null,null,null,null,null,null,null,null,0,0,null,null,null,null,null,null,null,null,null,null,null,null,null,0,0]
[882,null,null,null,null,null,null,null,null,0,0,null,null,null,null,null,null,null,null,null,null,null,null,null,0,0]
[883,null,null,null,null,null,null,null,null,0,0,null,null,null,null,null,null,null,null,null,null,null,null,null,0,0]
[884,null,null,null,null,null,null,null,null,0,0,null,null,null,null,null,null,null,null,null,null,null,null,null,0,0]
[885,null,null,null,null,null,null,null,null,0,0,null,null,null,null,null,null,null,null,null,null,null,null,null,0,0]
[886,null,null,null,null,null,null,null,null,0,0,null,null,null,null,null,null,null,null,null,null,null,null,null,0,0]
[887,null,null,null,null,null,null,null,null,0,0,null,null,null,null,null,null,null,null,null,null,null,null,null,0,0]
[888,null,null,null,null,null,null,null,null,0,0,null,null,null,null,null,null,null,null,null,null,null,null,null,0,0]
[889,null,null,null,null,null,null,null,null,0,0,null,null,null,null,null,null,null,null,null,null,null,null,null,0,0]
[890,null,null,null,null,null,null,null,null,0,0,null,null,null,null,null,null,null,null,null,null,null,null,null,0,0]
[891,null,null,null,null,null,null,null,null,0,0,null,null,null,null,null,null,null,null,null,null,null,null,null,0,0]
[892,null,null,null,null,null,null,null,null,0,0,null,null,null,null,null,null,null,null,null,null,null,null,null,0,0]
[893,null,null,null,null,null,null,null,null,0,0,null,null,null,null,null,null,null,null,null,null,null,null,null,0,0]
[894,null,null,null,null,null,null,null,null,0,0,null,null,null,null,null,null,null,null,null,null,null,null,null,0,0]
[895,null,null,null,null,null,null,null,null,0,0,null,null,null,null,null,null,null,null,null,null,null,null,null,0,0]
[896,null,null,null,null,null,null,null,null,0,0,null,null,null,null,null,null,null,null,null,null,null,null,null,0,0]
[897,null,null,null,null,null,null,null,null,0,0,null,null,null,null,null,null,null,null,null,null,null,null,null,0,0]
[898,null,null,null,null,null,null,null,null,0,0,null,null,null,null,null,null,null,null,null,null,null,null,null,0,0]
[899,null,null,null,null,null,null,null,null,0,0,null,null,null,null,null,null,null,null,null,null,null,null,null,0,0]
[900,null,null,null,null,null,null,null,null,0,0,null,null,null,null,null,null,null,null,null,null,null,null,null,0,0]
[901,null,null,null,null,null,null,null,null,0,0,null,null,null,null,null,null,null,null,null,null,null,null,null,0,0]
[902,null,null,null,null,null,null,null,null,0,0,null,null,null,null,null,null,null,null,null,null,null,null,null,0,0]
[903,null,null,null,null,null,null,null,null,0,0,null,null,null,null,null,null,null,null,null,null,null,null,null,0,0]
[904,null,null,null,null,null,null,null,null,{"$f":"DATEDIF(C900,I900,\"y\")","v":0},{"$f":"F900-I900","v":0},null,null,null,null,null,null,null,null,null,null,null,null,null,{"$f":"IF(X900-F900>=0,X900-F900,\"\")","v":0},0]
[905,null,null,null,null,null,null,null,null,0,0,null,null,null,null,null,null,null,null,null,null,null,null,null,0,0]
[906,null,null,null,null,null,null,null,null,0,0,null,null,null,null,null,null,null,null,null,null,null,null,null,0,0]
[907,null,null,null,null,null,null,null,null,0,0,null,null,null,null,null,null,null,null,null,null,null,null,null,0,0]
[908,null,null,null,null,null,null,null,null,0,0,null,null,null,null,null,null,null,null,null,null,null,null,null,0,0]
[909,null,null,null,null,null,null,null,null,0,0,null,null,null,null,null,null,null,null,null,null,null,null,null,0,0]
[910,null,null,null,null,null,null,null,null,0,0,null,null,null,null,null,null,null,null,null,null,null,null,null,0,0]
[911,null,null,null,null,null,null,null,null,0,0,null,null,null,null,null,null,null,null,null,null,null,null,null,0,0]
[912,null,null,null,null,null,null,null,null,0,0,null,null,null,null,null,null,null,null,null,null,null,null,null,0,0]
[913,null,null,null,null,null,null,null,null,0,0,null,null,null,null,null,null,null,null,null,null,null,null,null,0,0]
[914,null,null,null,null,null,null,null,null,0,0,null,null,null,null,null,null,null,null,null,null,null,null,null,0,0]
[915,null,null,null,null,null,null,null,null,0,0,null,null,null,null,null,null,null,null,null,null,null,null,null,0,0]
[916,null,null,null,null,null,null,null,null,0,0,null,null,null,null,null,null,null,null,null,null,null,null,null,0,0]
[917,null,null,null,null,null,null,null,null,0,0,null,null,null,null,null,null,null,null,null,null,null,null,null,0,0]
[918,null,null,null,null,null,null,null,null,0,0,null,null,null,null,null,null,null,null,null,null,null,null,null,0,{"$f":"IF(AF914-I914>=0,AF914-I914,\"\")","v":0}]
[919,null,null,null,null,null,null,null,null,0,0,null,null,null,null,null,null,null,null,null,null,null,null,null,0,0]
[920,null,null,null,null,null,null,null,null,0,0,null,null,null,null,null,null,null,null,null,null,null,null,null,0,0]
[921,null,null,null,null,null,null,null,null,0,0,null,null,null,null,null,null,null,null,null,null,null,null,null,0,0]
[922,null,null,null,null,null,null,null,null,0,0,null,null,null,null,null,null,null,null,null,null,null,null,null,0,0]
[923,null,null,null,null,null,null,null,null,0,0,null,null,null,null,null,null,null,null,null,null,null,null,null,0,0]
[924,null,null,null,null,null,null,null,null,0,0,null,null,null,null,null,null,null,null,null,null,null,null,null,0,0]
[925,null,null,null,null,null,null,null,null,0,0,null,null,null,null,null,null,null,null,null,null,null,null,null,0,0]
[926,null,null,null,null,null,null,null,null,0,0,null,null,null,null,null,null,null,null,null,null,null,null,null,0,0]
[927,null,null,null,null,null,null,null,null,0,0,null,null,null,null,null,null,null,null,null,null,null,null,null,0,0]
[928,null,null,null,null,null,null,null,null,0,0,null,null,null,null,null,null,null,null,null,null,null,null,null,0,0]
[929,null,null,null,null,null,null,null,null,0,0,null,null,null,null,null,null,null,null,null,null,null,null,null,0,0]
[930,null,null,null,null,null,null,null,null,0,0,null,null,null,null,null,null,null,null,null,null,null,null,null,0,0]
[931,null,null,null,null,null,null,null,null,0,0,null,null,null,null,null,null,null,null,null,null,null,null,null,0,0]
[932,null,null,null,null,null,null,null,null,0,0,null,null,null,null,null,null,null,null,null,null,null,null,null,0,0]
[933,null,null,null,null,null,null,null,null,0,0,null,null,null,null,null,null,null,null,null,null,null,null,null,0,0]
[934,null,null,null,null,null,null,null,null,0,0,null,null,null,null,null,null,null,null,null,null,null,null,null,0,0]
[935,null,null,null,null,null,null,null,null,0,0,null,null,null,null,null,null,null,null,null,null,null,null,null,0,0]
[936,null,null,null,null,null,null,null,null,0,0,null,null,null,null,null,null,null,null,null,null,null,null,null,0,0]
[937,null,null,null,null,null,null,null,null,0,0,null,null,null,null,null,null,null,null,null,null,null,null,null,0,0]
[938,null,null,null,null,null,null,null,null,0,0,null,null,null,null,null,null,null,null,null,null,null,null,null,0,0]
[939,null,null,null,null,null,null,null,null,0,0,null,null,null,null,null,null,null,null,null,null,null,null,null,0,0]
[940,null,null,null,null,null,null,null,null,0,0,null,null,null,null,null,null,null,null,null,null,null,null,null,0,0]
[941,null,null,null,null,null,null,null,null,0,0,null,null,null,null,null,null,null,null,null,null,null,null,null,0,0]
[942,null,null,null,null,null,null,null,null,0,0,null,null,null,null,null,null,null,null,null,null,null,null,null,0,0]
[943,null,null,null,null,null,null,null,null,0,0,null,null,null,null,null,null,null,null,null,null,null,null,null,0,0]
[944,null,null,null,null,null,null,null,null,0,0,null,null,null,null,null,null,null,null,null,null,null,null,null,0,0]
[945,null,null,null,null,null,null,null,null,0,0,null,null,null,null,null,null,null,null,null,null,null,null,null,0,0]
[946,null,null,null,null,null,null,null,null,0,0,null,null,null,null,null,null,null,null,null,null,null,null,null,0,0]
[947,null,null,null,null,null,null,null,null,0,0,null,null,null,null,null,null,null,null,null,null,null,null,null,0,0]
[948,null,null,null,null,null,null,null,null,0,0,null,null,null,null,null,null,null,null,null,null,null,null,null,0,0]
[949,null,null,null,null,null,null,null,null,0,0,null,null,null,null,null,null,null,null,null,null,null,null,null,0,0]
[950,null,null,null,null,null,null,null,null,0,0,null,null,null,null,null,null,null,null,null,null,null,null,null,0,0]
[951,null,null,null,null,null,null,null,null,0,0,null,null,null,null,null,null,null,null,null,null,null,null,null,0,0]
[952,null,null,null,null,null,null,null,null,0,0,null,null,null,null,null,null,null,null,null,null,null,null,null,0,0]
[953,null,null,null,null,null,null,null,null,0,0,null,null,null,null,null,null,null,null,null,null,null,null,null,0,0]
[954,null,null,null,null,null,null,null,null,0,0,null,null,null,null,null,null,null,null,null,null,null,null,null,0,0]
[955,null,null,null,null,null,null,null,null,0,0,null,null,null,null,null,null,null,null,null,null,null,null,null,0,0]
[956,null,null,null,null,null,null,null,null,0,0,null,null,null,null,null,null,null,null,null,null,null,null,null,0,0]
[957,null,null,null,null,null,null,null,null,0,0,null,null,null,null,null,null,null,null,null,null,null,null,null,0,0]
[958,null,null,null,null,null,null,null,null,0,0,null,null,null,null,null,null,null,null,null,null,null,null,null,0,0]
[959,null,null,null,null,null,null,null,null,0,0,null,null,null,null,null,null,null,null,null,null,null,null,null,0,0]
[960,null,null,null,null,null,null,null,null,0,0,null,null,null,null,null,null,null,null,null,null,null,null,null,0,0]
[961,null,null,null,null,null,null,null,null,0,0,null,null,null,null,null,null,null,null,null,null,null,null,null,0,0]
[962,null,null,null,null,null,null,null,null,0,0,null,null,null,null,null,null,null,null,null,null,null,null,null,0,0]
[963,null,null,null,null,null,null,null,null,0,0,null,null,null,null,null,null,null,null,null,null,null,null,null,0,0]
[964,null,null,null,null,null,null,null,null,0,0,null,null,null,null,null,null,null,null,null,null,null,null,null,0,0]
[965,null,null,null,null,null,null,null,null,0,0,null,null,null,null,null,null,null,null,null,null,null,null,null,0,0]
[966,null,null,null,null,null,null,null,null,0,0,null,null,null,null,null,null,null,null,null,null,null,null,null,0,0]
[967,null,null,null,null,null,null,null,null,0,0,null,null,null,null,null,null,null,null,null,null,null,null,null,0,0]
[968,null,null,null,null,null,null,null,null,{"$f":"DATEDIF(C964,I964,\"y\")","v":0},{"$f":"F964-I964","v":0},null,null,null,null,null,null,null,null,null,null,null,null,null,{"$f":"IF(X964-F964>=0,X964-F964,\"\")","v":0},0]
[969,null,null,null,null,null,null,null,null,0,0,null,null,null,null,null,null,null,null,null,null,null,null,null,0,0]
[970,null,null,null,null,null,null,null,null,0,0,null,null,null,null,null,null,null,null,null,null,null,null,null,0,0]
[971,null,null,null,null,null,null,null,null,0,0,null,null,null,null,null,null,null,null,null,null,null,null,null,0,0]
[972,null,null,null,null,null,null,null,null,0,0,null,null,null,null,null,null,null,null,null,null,null,null,null,0,0]
[973,null,null,null,null,null,null,null,null,0,0,null,null,null,null,null,null,null,null,null,null,null,null,null,0,0]
[974,null,null,null,null,null,null,null,null,0,0,null,null,null,null,null,null,null,null,null,null,null,null,null,0,0]
[975,null,null,null,null,null,null,null,null,0,0,null,null,null,null,null,null,null,null,null,null,null,null,null,0,0]
[976,null,null,null,null,null,null,null,null,0,0,null,null,null,null,null,null,null,null,null,null,null,null,null,0,0]
[977,null,null,null,null,null,null,null,null,0,0,null,null,null,null,null,null,null,null,null,null,null,null,null,0,0]
[978,null,null,null,null,null,null,null,null,0,0,null,null,null,null,null,null,null,null,null,null,null,null,null,0,0]
[979,null,null,null,null,null,null,null,null,0,0,null,null,null,null,null,null,null,null,null,null,null,null,null,0,0]
[980,null,null,null,null,null,null,null,null,0,0,null,null,null,null,null,null,null,null,null,null,null,null,null,0,0]
[981,null,null,null,null,null,null,null,null,0,0,null,null,null,null,null,null,null,null,null,null,null,null,null,0,0]
[982,null,null,null,null,null,null,null,null,0,0,null,null,null,null,null,null,null,null,null,null,null,null,null,0,{"$f":"IF(AF978-I978>=0,AF978-I978,\"\")","v":0}]
[983,null,null,null,null,null,null,null,null,0,0,null,null,null,null,null,null,null,null,null,null,null,null,null,0,0]
[984,null,null,null,null,null,null,null,null,0,0,null,null,null,null,null,null,null,null,null,null,null,null,null,0,0]
[985,null,null,null,null,null,null,null,null,0,0,null,null,null,null,null,null,null,null,null,null,null,null,null,0,0]
[986,null,null,null,null,null,null,null,null,0,0,null,null,null,null,null,null,null,null,null,null,null,null,null,0,0]
[987,null,null,null,null,null,null,null,null,0,0,null,null,null,null,null,null,null,null,null,null,null,null,null,0,0]
[988,null,null,null,null,null,null,null,null,0,0,null,null,null,null,null,null,null,null,null,null,null,null,null,0,0]
[989,null,null,null,null,null,null,null,null,0,0,null,null,null,null,null,null,null,null,null,null,null,null,null,0,0]
[990,null,null,null,null,null,null,null,null,0,0,null,null,null,null,null,null,null,null,null,null,null,null,null,0,0]
[991,null,null,null,null,null,null,null,null,0,0,null,null,null,null,null,null,null,null,null,null,null,null,null,0,0]
[992,null,null,null,null,null,null,null,null,0,0,null,null,null,null,null,null,null,null,null,null,null,null,null,0,0]
[993,null,null,null,null,null,null,null,null,0,0,null,null,null,null,null,null,null,null,null,null,null,null,null,0,0]
[994,null,null,null,null,null,null,null,null,0,0,null,null,null,null,null,null,null,null,null,null,null,null,null,0,0]
[995,null,null,null,null,null,null,null,null,0,0,null,null,null,null,null,null,null,null,null,null,null,null,null,0,0]
[996,null,null,null,null,null,null,null,null,0,0,null,null,null,null,null,null,null,null,null,null,null,null,null,0,0]
[997,null,null,null,null,null,null,null,null,0,0,null,null,null,null,null,null,null,null,null,null,null,null,null,0,0]
[998,null,null,null,null,null,null,null,null,0,0,null,null,null,null,null,null,null,null,null,null,null,null,null,0,0]
[999,null,null,null,null,null,null,null,null,0,0,null,null,null,null,null,null,null,null,null,null,null,null,null,0,0]

{"sheet":" Directions-English","index":4,"n_rows":42,"n_cols":2,"rows_kept":42,"cut":false,"hidden":false,"merged":[]}
[]
["To get rid of Demo data:","Just go to DEMO tab delete, right click and hit delete "]
[]
["To hide columns or rows you do not want to see","Just click to highlight the entire row or column, right click and select \"Hide\""]
[]
["Changing headers:","If the header is purple or orange, do not change the header title as that risks affecting the formulas. It is better to simply insert a column with the header you prefer and hide the columns you don't want to see"]
[]
["Explanation of color coded cells in headings:","Any of these columns, if you do not wish to seeall in your spreadsheet, can be hidden by simply clicking on the header cell (ensure  you click on the letter above the header so as to activate the whole column), right click and then choose \"Hide\" in the drop down menu-a spacer will indicate that there is a hidden column in that space. To unhide a column that was previously hidden, go to the letter above the header to find the spacer and click \"Unhide\".  "]
[null,"These columns contain important data so as to measure OC's key performance indicators (KPIs)"]
[null,"These columns contain dates so should remain"]
[null,"These columns contain formulas so should remain"]
[null,"These columns contain optional data that you may find helpful"]
[]
["To add or change drop down selections:","Go to the tab \"Menu dropdown options\", highlight (shade) the column you wish to change, make addition/revision, remember to change your ROI to include newly added option"]
[]
["To apply formulas and formatting beyond 1000 records:","Click so that the bottom row (999) is active (from A1000 to AO1000)"]
[null,"Take the mouse to the last cell of the row (AO1000) and move it until you see the skinny black cross (bottom right corner of cell) while still holding the mouse pull down so that you have desired number of rows highlighted-perhaps another 1000"]
[null,"You will know that it works as the formatting (alternating blue rows and formulas are now within the appropriate cells)."]
[]
["To analyze the data for a specific time segment:","Make a copy of your spreadsheet to perform analysis, file \"save as\" using a new name "]
[null,"If not already, sort your records by date seen in FLS (click anywhere in the column by which to sort (probably the date in F is what you want to sort on), then go to Home tab (editing group) and click on \"sort and filter\" icon, choose ascending"]
[null,"Eliminate the dates  you do not want included by highlighting the sections before and after and selecting delete (using delete key)"]
[]
["Once you have 2000 records, the database formulas need updating","Go to formulas tab, click on name manager in the defined name group and extend any ranges beyond 2000"]
[]
["For KPI calculations, please check your numerators and denominators to be sure the correct criteria is being applied for your query."]
[]
["Password for protected formulas (not currently in use)","fls"]
[]
[]
["Demographics and supplementary KPIs","All calculations for Supplementary KPIs are located within the Summary-all FLSs tab"]
[null,"Gender calculations: number of eligible males and females in data set"]
[null,"Number of patients with fragility fractures after age 40 (hip, spine, wrist, shoulder, pelvis)"]
[null,"Number of falls in the last year (including the one that led to the incident fracture)-ie \"1\" or \"2 or more\""]
[]
[null,"Treatment status at time of fracture (e.g. already on osteoprosis treatment at time of fracture)"]
[null,"Treatment failure (e.g. pt has already received a full year or more of appropriate Tx prior to FF)"]
[null,"Subset of patents not already on treatment at the time of incident fracture"]
[null,"Adherence to Tx (number of patients adherent/number of patients initiated"]
[null,"Persistance to Tx (number of patients still on Tx/number of patients initiated"]
[null,"Falls prevention (number of patients referred to falls prevention/number of patients deemed to be high risk)"]
[null,"Repeat/subsequent fractures (number of enrolled FLS patients who additional FF within 1 yr/number of patients followed up in one yr)"]

{"sheet":" Directions-Francais","index":5,"n_rows":42,"n_cols":2,"rows_kept":42,"cut":false,"hidden":false,"merged":[]}
[]
["Pour se débarrasser des données de test :","Il suffit de mettre en évidence les colums B à I, de la ligne 2 et appuyez sur supprimer, en utilisant la clé de suppression"]
[]
["Pour masquer des colonnes ou des lignes que vous ne voulez pas voir:","Il suffit de cliquer pour mettre en évidence toute la ligne ou la colonne, cliquez à droite et sélectionnez \"Masquer\" (Hide)"]
[]
["Changement d'en-tête :","Si l'en-tête est violet ou orange, ne modifiez pas le titre de l'en-tête car cela risque d'affecter les formules. Il est préférable d'insérer simplement une colonne avec l'en-tête que vous préférez et de cacher les colonnes que vous ne voulez pas voir"]
[]
["Explication des cellules codées par couleur dans les titres :","L'une de ces colonnes, si vous ne souhaitez pas tout voir dans votre feuille de calcul, peut être cachée en cliquant simplement sur la cellule d'en-tête (assurez-vous de cliquer sur la lettre au-dessus de l'en-tête afin d'activer toute la colonne), cliquez à droite et ensuite choisir \"Hide\" dans le menu déroulant-un espace r indiquera qu'il y a une colonne cachée dans cet espace. Pour démasquer une colonne qui était auparavant cachée, allez à la lettre au-dessus de l'en-tête pour trouver l'espaceur et cliquez sur \"Unhide\".  "]
[null,"Ces colonnes contiennent des données importantes afin de mesurer les principaux indicateurs de performance (KPI) d'OC"]
[null,"Ces colonnes contiennent des dates et doivent donc rester"]
[null,"Ces colonnes contiennent des formules"]
[null,"Ces colonnes contiennent des données facultatives que vous pouvez trouver utiles"]
[]
["Pour ajouter ou modifier les sélections DEMO :","Allez simplement dans l'onglet DEMO supprimer, faites un clic droit et appuyez sur supprimer"]
[]
["Appliquer des formules et des formatage au-delà de 1000 enregistrements :","Appliquer des formules et des formatage au-delà de 1000 enregistrements :"]
[null,"Prenez la souris à la dernière cellule de la ligne (AO1000) et déplacez-la jusqu'à ce que vous voyez la croix noire maigre (coin inférieur droit de la cellule) tout en tenant la souris tirer vers le bas de sorte que vous avez désiré le nombre de lignes mis en évidence-peut-être un autre 1000"]
[null," Vous saurez que cela fonctionne comme le formatage (en alternance des lignes bleues et des formules sont maintenant dans les cellules appropriées)."]
[]
[" Pour analyser les données d'un segment de temps spécifique :","Faire une copie de votre feuille de calcul pour effectuer l'analyse, fichier \"enregistrer comme\" (SAVE) en utilisant un nouveau nom"]
[null,"Faire une copie de votre feuille de calcul pour effectuer l'analyse, fichier \"enregistrer comme\" en utilisant un nouveau nom \nSi ce n'est pas déjà, trier vos enregistrements par date vu dans FLS (cliquez n'importe où dans la colonne par laquelle trier (probablement la date en F est ce que vous voulez trier), puis aller à l'onglet Accueil (groupe d'édition) et cliquez sur \"trier et filtrer\" icône , choisir l'ascension"]
[null,"Éliminez les dates que vous ne souhaitez pas inclure en mettant en évidence les sections avant et après et en sélectionnant la suppression (en utilisant la clé de suppression)"]
[]
["Une fois que vous avez 2000 enregistrements, les formules de base de données doivent être mises à jour","Passez à l'onglet formules, cliquez sur le gestionnaire de nom dans le groupe de noms définis et étendez toutes les plages au-delà de 2000"]
[]
["Pour les calculs des KPIs, veuillez vérifier vos numérateurs et dénominateurs pour vous assurer que les critères corrects sont appliqués pour votre requête."]
[]
[" Mot de passe pour les formules protégées (non actuellement utilisées)","fls"]
[]
[]
["PI supplémentaires"," Tous les calculs pour les indicateurs de kPI supplémentaires sont situés dans l'onglet Résumé-tous les FLSs"]
[null,"Calculs de genre : nombre d'hommes et de femmes admissibles dans l'ensemble de données"]
[null,"Nombre de patients présentant des fractures de fragilité après l'âge de 40 ans (hanche, colonne vertébrale, poignet, épaule, bassin)"]
[null,"Nombre de chutes au cours de la dernière année (y compris celle qui a mené à la fracture de l'incident) - c'est-à-dire « 1 » ou « 2 ou plus »"]
[]
[null,"État du traitement au moment de la fracture (p. ex. déjà sous traitement d'ostéoprose au moment de la fracture)"]
[null,"Échec du traitement (p. ex. pt a déjà reçu une année complète ou plus de Tx approprié avant FF)"]
[null,"Sous-ensemble de brevets qui ne sont pas déjà en traitement au moment de la rupture de l'incident"]
[null,"Adhésion à Tx (nombre de patients adhérents/nombre de patients initiés"]
[null,"Persistance à Tx (nombre de patients encore sur Tx/nombre de patients initiés"]
[null,"Prévention des chutes (nombre de patients aiguillés vers la prévention des chutes/nombre de patients jugés à risque élevé)"]
[null,"Fractures répétées/subséquentes (nombre de patients inscrits du SLJ qui ont un FF supplémentaire dans un délai d'un an/nombre de patients suivis en un an)"]

{"sheet":"Hip-only-EN (12 wks enr IP)","index":6,"n_rows":32,"n_cols":2,"rows_kept":32,"cut":false,"hidden":false,"merged":[]}
["CIHI data (Denominator B) Admitted hip # from database/CIHI (hospital data) ",43]
[]
["B-Demominator (CIHI data x 1.7).",{"$f":"B1*1.7","v":73.099999999999994}]
[]
[]
["How many trauma?",{"$f":"COUNTIF(Primary!N2:N4780, \"Trauma\")","v":0}]
["How many palliative care?",{"$f":"COUNTIF(Primary!N2:N4780, \"Palliative care\")","v":0}]
["How many patient declined?",{"$f":"COUNTIF(Primary!N2:N4780, \"Patient declined\")","v":0}]
["How many No family doc (for initial fracture)?",{"$f":"COUNTIF(Primary!N2:N4780, \"No family doc\")","v":0}]
["How many referred to OP Specialist (for initial fracture)?",{"$f":"COUNTIF(Primary!N2:N4780, \"OP Specialist\")","v":0}]
["How many subtrochanteric fractures?",{"$f":"COUNTIF(Primary!N2:N4780, \"Subtrochanteric fracture\")","v":0}]
[]
[]
[]
["Number of Hip Fractures"]
[]
["A-Total Hip Fractures Eligible (enrolled 12wks post fracture)",{"$f":"'Criteria Calculations'!B30","v":1}]
[]
[]
["C-Patients with fracture risk assessment of Total Hip Fractures Eligible (enrolled 12wks post fracture)",{"$f":"'Criteria Calculations'!B61","v":1}]
[]
[]
["D-Patients with fracture risk assessment of Total Hip Fracture Eligible (enrolled 12 wks post fracture plus HIGH risk)",{"$f":"'Criteria Calculations'!B77","v":1}]
[]
["E-High Risk hip (and determined by FRD by 12 wks plus initiated by 26 wks)",{"$f":"'Criteria Calculations'!B99","v":1}]
[]
[]
["First i(A/B*100)-HIP (outpatient only and combined inpatient/outpatient FLS) (within 12 wks of incident fracture)",{"$f":"B17/B1","v":2.3255813953488372E-2}]
[]
["Second i HIP (C/A*100) (outpatient only and combined inpatient/outpatient FLS) (within 12 wks of incident fracture)",{"$f":"B20/B17","v":1}]
[]
["Third i (E/D*100)  (in patient-only FLS) (within 12 wks of incident fracture)",{"$f":"B25/B23","v":1}]

{"sheet":"Non-hip, non-spine-EN(6wks enr)","index":7,"n_rows":41,"n_cols":2,"rows_kept":41,"cut":false,"hidden":false,"merged":[]}
["CIHI data (Denominator B) Admitted hip # from database/CIHI (hospital data) ",43]
[]
["B-Demominator (CIHI data x 1.7)",{"$f":"B1*1.7","v":73.099999999999994}]
[]
[]
["How many trauma?",{"$f":"COUNTIF(Primary!N2:N4780, \"Trauma\")","v":0}]
["How many palliative care?",{"$f":"COUNTIF(Primary!N2:N4780, \"Palliative care\")","v":0}]
["How many patient declined?",{"$f":"COUNTIF(Primary!N2:N4780, \"Patient declined\")","v":0}]
["How many No family doc (for initial fracture)?",{"$f":"COUNTIF(Primary!N2:N4780, \"No family doc\")","v":0}]
["How many referred to OP Specialist (for initial fracture)?",{"$f":"COUNTIF(Primary!N2:N4780, \"OP Specialist\")","v":0}]
["How many subtrochanteric fractures?",{"$f":"COUNTIF(Primary!N2:N4780, \"Subtrochanteric fracture\")","v":0}]
[]
[]
["Number of non-hip fractures"]
[]
["Total Wrist Fractures"]
["Total Wrist Fractures Eligible (enrolled 6wks post fracture)\n",{"$f":"'Criteria Calculations'!B42","v":1}]
["Total Shoulder Fractures"]
["Total Shoulder Fractures Eligible (enrolled 6wks post fracture)\n",{"$f":"'Criteria Calculations'!B45","v":1}]
["Total Pelvis Fractures"]
["Total Pelvis Fractures Eligible (enrolled 6wks post fracture)",{"$f":"'Criteria Calculations'!B49","v":0}]
["Total Spine Fractures"]
["Total Spine Fractures Eligible (enrolled 6wks post fracture)",{"$f":"'Criteria Calculations'!B53","v":0}]
[]
["A-Pts with non-hip, non-spine enrolled with 6 weeks(<43d)",{"$f":"'Criteria Calculations'!B36","v":2}]
[]
[]
["C-Patientswith fracture risk assessment of Pts with non-hip, non-spine enrolled with 6 weeks(<43d)",{"$f":"'Criteria Calculations'!B68","v":2}]
[]
[]
["D-High Risk non-hip and non-spine (and determined by FRD by 26wks)",{"$f":"'Criteria Calculations'!B86","v":2}]
[]
["E-High Risk non-hip and non-spine (and determined by FRD by 26wks)",{"$f":"'Criteria Calculations'!B107","v":2}]
[]
[]
[]
["First i (A/B*100)-Non HIP, Non, Spine",{"$f":"B25/B3","v":2.7359781121751029E-2}]
[]
["Second  i(C/A*100)--Non HIP, Non, Spine ",{"$f":"B28/B25","v":1}]
[]
["Third i (E/D*100 ) Pts with non-hip, non-spine enrolled with 6 weeks(<43d)",{"$f":"B33/B31","v":1}]

{"sheet":"Criteria Calculations","index":8,"n_rows":255,"n_cols":21,"rows_kept":255,"cut":false,"hidden":false,"merged":[]}
[null,null,null,"All",null,null,null,null,null,"3-6 Months",null,null,null,"6-9 Months",null,null,null,"1 Year"]
["Criteria & Numbers:",null,null,"Patient Eligible/ admissible","Fracture risk/ risque de fracture","OP treatment\n3-6 month/ Traitement OP de 3-6 mois","OP treatment\n6-9 month/ Traitement OP de 6-9 mois","OP treatment>=52 wks/ Traitement OP d'un an",null,"Patient Eligible/ admissible","Fracture risk/ risque de fracture","OP treatment\n3-6 month/ Traitement OP de 3-6 mois",null,"Patient Eligible/ admissible","Fracture risk/ risque de fracture","OP treatment\n6-9 month/ Traitement OP de 6-9 mois",null,"Patient Eligible/ admissible","Fracture risk/ risque de fracture","OP treatment>=52 wks/ Traitement OP d'un an"]
["if yes patient is on meds at either 3, 6 or 12 mos",{"$f":"DCOUNTA(DB,\"Number/ Nombre\",D2:H20)","v":3},null,"YES/OUI","HIGH/ÉLEVÉ","Oral bisphos",null,null,null,"YES/OUI","HIGH/ÉLEVÉ","Oral bisphos",null,"YES/OUI","HIGH/ÉLEVÉ","Oral bisphos",null,"YES/OUI","HIGH/ÉLEVÉ","Oral bisphos"]
["3-6 months",{"$f":"DCOUNTA(DB,\"Number/ Nombre\",J2:L8)","v":2},null,"YES/OUI","HIGH/ÉLEVÉ",null,"Oral bisphos",null,null,"YES/OUI","HIGH/ÉLEVÉ","Zoledronic",null,"YES/OUI","HIGH/ÉLEVÉ","Zoledronic",null,"YES/OUI","HIGH/ÉLEVÉ","Zoledronic"]
["6-9 months",{"$f":"DCOUNTA(DB,\"Number/ Nombre\",N2:P8)","v":2},null,"YES/OUI","HIGH/ÉLEVÉ",null,null,"Oral bisphos",null,"YES/OUI","HIGH/ÉLEVÉ","Prolia",null,"YES/OUI","HIGH/ÉLEVÉ","Prolia",null,"YES/OUI","HIGH/ÉLEVÉ","Prolia"]
["1 Year",{"$f":"DCOUNTA(DB,\"Number/ Nombre\",R2:T8)","v":3},null,"YES/OUI","HIGH/ÉLEVÉ","Zoledronic",null,null,null,"YES/OUI","HIGH/ÉLEVÉ","Forteo",null,"YES/OUI","HIGH/ÉLEVÉ","Forteo",null,"YES/OUI","HIGH/ÉLEVÉ","Forteo"]
[null,null,null,"YES/OUI","HIGH/ÉLEVÉ",null,"Zoledronic",null,null,"YES/OUI","HIGH/ÉLEVÉ","Estrogen",null,"YES/OUI","HIGH/ÉLEVÉ","Estrogen",null,"YES/OUI","HIGH/ÉLEVÉ","Estrogen"]
[null,null,null,"YES/OUI","HIGH/ÉLEVÉ",null,null,"Zoledronic",null,"YES/OUI","HIGH/ÉLEVÉ","Raloxifene",null,"YES/OUI","HIGH/ÉLEVÉ","Raloxifene",null,"YES/OUI","HIGH/ÉLEVÉ","Raloxifene"]
[null,null,null,"YES/OUI","HIGH/ÉLEVÉ","Prolia"]
[null,null,null,"YES/OUI","HIGH/ÉLEVÉ",null,"Prolia"]
[null,null,null,"YES/OUI","HIGH/ÉLEVÉ",null,null,"Prolia"]
[null,null,null,"YES/OUI","HIGH/ÉLEVÉ","Forteo"]
[null,null,null,"YES/OUI","HIGH/ÉLEVÉ",null,"Forteo"]
[null,null,null,"YES/OUI","HIGH/ÉLEVÉ",null,null,"Forteo"]
[null,null,null,"YES/OUI","HIGH/ÉLEVÉ","Estrogen"]
[null,null,null,"YES/OUI","HIGH/ÉLEVÉ",null,"Estrogen"]
[null,null,null,"YES/OUI","HIGH/ÉLEVÉ",null,null,"Estrogen"]
[null,null,null,"YES/OUI","HIGH/ÉLEVÉ","Raloxifene"]
[null,null,null,"YES/OUI","HIGH/ÉLEVÉ",null,"Raloxifene"]
[null,null,null,"YES/OUI","HIGH/ÉLEVÉ",null,null,"Raloxifene"]
[]
[]
[]
[]
[]
[null,null,null,"Age at Time of Fracture/Âge au moment de la fracture","Fracture Type/ type de fracture","Days from fracture to first FLS visit/ jours de la fracture à la première visite","Patient Eligible/ admissible",null,null,null,null,null,"Age at Time of Fracture/Âge au moment de la fracture","Fracture Type/ type de fracture","Patient Eligible/ admissible"]
["A-Total Hip Fracture Eligible (enrolled 6 wks post fracture)",{"$f":"DCOUNTA(DB,\"Number/ Nombre\",D26:G27)","v":0},null,">=50","Hip/Hanche","<=42","YES/OUI",null,null,"Annual-Total Hip Fracture Eligible ",{"$f":"DCOUNTA(DB,\"Number/ Nombre\",M26:O27)","v":1},null,">=50","Hip/Hanche","YES/OUI"]
[]
[null,null,null,"Age at Time of Fracture/Âge au moment de la fracture","Fracture Type/ type de fracture","Days from fracture to first FLS visit/ jours de la fracture à la première visite","Patient Eligible/ admissible"]
["A-Total Hip Fractures Eligible (enrolled 12wks post fracture)",{"$f":"DCOUNTA(DB,\"Number/ Nombre\",D29:G30)","v":1},null,">=50","Hip/Hanche","<=84","YES/OUI"]
[]
[null,null,null,"Age at Time of Fracture/Âge au moment de la fracture","Fracture Type/ type de fracture","Days from fracture to first FLS visit/ jours de la fracture à la première visite","Patient Eligible/ admissible"]
["A-Total Hip Fractures Eligible (enrolled 26wks post fracture-no Coord)",{"$f":"DCOUNTA(DB,\"Number/ Nombre\",D32:G33)","v":1},null,">=50","Hip/Hanche","<=182","YES/OUI"]
[]
[]
["A-Pts with non-hip, non-spine enrolled with 12 weeks(<=84d)",{"$f":"DCOUNTA(DB,\"Number/ Nombre\",D36:G39)","v":2},null,"Age at Time of Fracture/Âge au moment de la fracture","Fracture Type/ type de fracture","Days from fracture to first FLS visit/ jours de la fracture à la première visite","Patient Eligible/ admissible"]
[null,null,null,">=50","Wrist/Poignet","<=84","YES/OUI"]
[null,null,null,">=50","Shoulder/Épaule","<=84","YES/OUI"]
[null,null,null,">=50","Pelvis/Bassin","<=84","YES/OUI"]
[]
[null,null,null,"Age at Time of Fracture/Âge au moment de la fracture","Fracture Type/ type de fracture","Days from fracture to first FLS visit/ jours de la fracture à la première visite","Patient Eligible/ admissible",null,null,null,null,null,"Age at Time of Fracture/Âge au moment de la fracture","Fracture Type/ type de fracture","Patient Eligible/ admissible"]
["Total Wrist Fractures Eligible (enrolled 12wks post fracture)\n",{"$f":"DCOUNTA(DB,\"Number/ Nombre\",D41:G42)","v":1},null,">=50","Wrist/Poignet","<=84","YES/OUI",null,null,"Annual Total Wrist Fractures Eligible \n",{"$f":"DCOUNTA(DB,\"Number/ Nombre\",M41:O42)","v":1},null,">=50","Wrist/Poignet","YES/OUI"]
[]
[null,null,null,"Age at Time of Fracture/Âge au moment de la fracture","Fracture Type/ type de fracture","Days from fracture to first FLS visit/ jours de la fracture à la première visite","Patient Eligible/ admissible",null,null,null,null,null,"Age at Time of Fracture/Âge au moment de la fracture","Fracture Type/ type de fracture",null,"Patient Eligible/ admissible"]
["Total Shoulder Fractures Eligible (enrolled 12wks post fracture)\n",{"$f":"DCOUNTA(DB,\"Number/ Nombre\",D44:G45)","v":1},null,">=50","Shoulder/Épaule","<=84","YES/OUI",null,null,"Annual Total Shoulder Fractures Eligible",{"$f":"DCOUNTA(DB,\"Number/ Nombre\",M44:P45)","v":1},null,">=50","Shoulder/Épaule",null,"YES/OUI"]
[]
[]
[null,null,null,"Age at Time of Fracture/Âge au moment de la fracture","Fracture Type/ type de fracture","Days from fracture to first FLS visit/ jours de la fracture à la première visite","Patient Eligible/ admissible",null,null,null,null,null,"Age at Time of Fracture/Âge au moment de la fracture","Fracture Type/ type de fracture",null,"Patient Eligible/ admissible"]
["Total Pelvis Fractures Eligible (enrolled 12wks post fracture)",{"$f":"DCOUNTA(DB,\"Number/ Nombre\",D48:G49)","v":0},null,">=50","Pelvis/Bassin","<=84","YES/OUI",null,null,"Annual Total Pelvis Fractures Eligible ",{"$f":"DCOUNTA(DB,\"Number/ Nombre\",M48:P49)","v":0},null,">=50","Pelvis/Bassin",null,"YES/OUI"]
[]
[]
[null,null,null,"Age at Time of Fracture/Âge au moment de la fracture","Fracture Type/ type de fracture","Days from fracture to first FLS visit/ jours de la fracture à la première visite","Patient Eligible/ admissible"]
["Total Spine Eligible (enrolled 12wks post fracture)",{"$f":"DCOUNTA(DB,\"Number/ Nombre\",D52:G53)","v":0},null,">=50","Spine/Colonne vertébrale","<=84","YES/OUI"]
[]
[]
[null,null,null,"Age at Time of Fracture/Âge au moment de la fracture","Fracture Type/ type de fracture","Days from fracture to first FLS visit/ jours de la fracture à la première visite","Patient Eligible/ admissible","Time to fracture risk assessment/temps pour évaluer le risque de fractur"]
["C-Patients with fracture risk assessment (by 26 wks) of Total Hip Fracture Eligible (enrolled 6 wks post fracture)",{"$f":"DCOUNT(DB,\"Number/ Nombre\",D56:H57)","v":0},null,">=50","Hip/Hanche","<=42","YES/OUI","<=182"]
[]
[]
[null,null,null,"Age at Time of Fracture/Âge au moment de la fracture","Fracture Type/ type de fracture","Days from fracture to first FLS visit/ jours de la fracture à la première visite","Patient Eligible/ admissible","Time to fracture risk assessment/temps pour évaluer le risque de fractur"]
["C-Patients with fracture risk assessment (by 26 wks)of Total Hip Fracture Eligible (enrolled 12 wks post fracture)",{"$f":"DCOUNTA(DB,\"Number/ Nombre\",D60:H61)","v":1},null,">=50","Hip/Hanche","<=84","YES/OUI","<=182"]
[]
[]
[null,null,null,"Age at Time of Fracture/Âge au moment de la fracture","Fracture Type/ type de fracture","Days from fracture to first FLS visit/ jours de la fracture à la première visite","Patient Eligible/ admissible","Time to fracture risk assessment/temps pour évaluer le risque de fractur"]
["C-Patients with fracture risk assessment (by 26 wks)of Total Hip Fracture Eligible (enrolled 26 wks post fracture)",{"$f":"DCOUNTA(DB,\"Number/ Nombre\",D64:H65)","v":1},null,">=50","Hip/Hanche","<=182","YES/OUI","<=182"]
[]
[null,null,null,"Age at Time of Fracture/Âge au moment de la fracture","Fracture Type/ type de fracture","Days from fracture to first FLS visit/ jours de la fracture à la première visite","Patient Eligible/ admissible","Time to fracture risk assessment/temps pour évaluer le risque de fractur"]
["C-Patients with fracture risk assessment(by 26 wks) of Pts with non-hip, non-spine enrolled by 12 weeks(<=84d)",{"$f":"DCOUNTA(DB,\"Number/ Nombre\",D67:H70)","v":2},null,">=50","Wrist/Poignet","<=84","YES/OUI","<=182"]
[null,null,null,">=50","Shoulder/Épaule","<=84","YES/OUI","<=182"]
[null,null,null,">=50","Pelvis/Bassin","<=84","YES/OUI","<=182"]
[]
[null,null,null,"Age at Time of Fracture/Âge au moment de la fracture","Fracture Type/ type de fracture","Days from fracture to first FLS visit/ jours de la fracture à la première visite","Patient Eligible/ admissible","Time to fracture risk assessment/temps pour évaluer le risque de fractur","Fracture risk/ risque de fracture"]
["D-Patients with fracture risk assessment (by 26 wks)of Total Hip Fracture Eligible (enrolled 6 wks post fracture) plus HIGH risk",{"$f":"DCOUNTA(DB,\"Number/ Nombre\",D72:I73)","v":0},null,">=50","Hip/Hanche","<=42","YES/OUI","<=182","HIGH/ÉLEVÉ"]
[]
[]
[null,null,null,"Age at Time of Fracture/Âge au moment de la fracture","Fracture Type/ type de fracture","Days from fracture to first FLS visit/ jours de la fracture à la première visite","Patient Eligible/ admissible","Time to fracture risk assessment/temps pour évaluer le risque de fractur","Fracture risk/ risque de fracture"]
["D-Patients with fracture risk assessment (by 26 wks)of Total Hip Fracture Eligible (enrolled 12 wks post fracture) plus HIGH risk",{"$f":"DCOUNTA(DB,\"Number/ Nombre\",D76:I77)","v":1},null,">=50","Hip/Hanche","<=84","YES/OUI","<=182","HIGH/ÉLEVÉ"]
[]
[]
[null,null,null,"Age at Time of Fracture/Âge au moment de la fracture","Fracture Type/ type de fracture","Days from fracture to first FLS visit/ jours de la fracture à la première visite","Patient Eligible/ admissible","Time to fracture risk assessment/temps pour évaluer le risque de fractur","Fracture risk/ risque de fracture"]
["D-Patients with fracture risk assessment (by 26 wks)of Total Hip Fracture Eligible (enrolled 26 wks post fracture) plus HIGH risk",{"$f":"DCOUNTA(DB,\"Number/ Nombre\",D80:I81)","v":1},null,">=50","Hip/Hanche","<=182","YES/OUI","<=182","HIGH/ÉLEVÉ"]
[]
[]
[]
[null,null,null,"Age at Time of Fracture/Âge au moment de la fracture","Fracture Type/ type de fracture","Days from fracture to first FLS visit/ jours de la fracture à la première visite","Patient Eligible/ admissible","Time to fracture risk assessment/temps pour évaluer le risque de fractur","Fracture risk/ risque de fracture"]
["D-Patients with fracture risk assessment(by 26 wks) of Pts with non-hip, non-spine enrolled by 12 weeks(<=84d)plus HIGH risk",{"$f":"DCOUNTA(DB,\"Number/ Nombre\",D85:I88)","v":2},null,">=50","Wrist/Poignet","<=84","YES/OUI","<=182","HIGH/ÉLEVÉ"]
[null,null,null,">=50","Shoulder/Épaule","<=84","YES/OUI","<=182","HIGH/ÉLEVÉ"]
[null,null,null,">=50","Pelvis/Bassin","<=84","YES/OUI","<=182","HIGH/ÉLEVÉ"]
[]
[null,null,null,"Fracture risk/ risque de fracture","Time to fracture risk assessment/temps pour évaluer le risque de fractur"]
["D-High Risk (and determined by FRD by 26wks)",{"$f":"DCOUNTA(DB,\"Number/ Nombre\",D90:E91)","v":3},null,"HIGH/ÉLEVÉ","<=182"]
[]
[]
[null,null,null,"Age at Time of Fracture/Âge au moment de la fracture","Fracture Type/ type de fracture","Days from fracture to first FLS visit/ jours de la fracture à la première visite","Patient Eligible/ admissible","Time to fracture risk assessment/temps pour évaluer le risque de fractur","Fracture risk/ risque de fracture","Time to initial treatment/ temps jusqu'au traitement initial"]
["E-High Risk hip (and determined by FRD by 6 wks) plus initiated within 26 weeks of incident fracture",{"$f":"DCOUNTA(DB,\"Number/ Nombre\",D94:J95)","v":0},null,">=50","Hip/Hanche","<=42","YES/OUI","<=182","HIGH/ÉLEVÉ","<=182"]
[]
[]
[null,null,null,"Age at Time of Fracture/Âge au moment de la fracture","Fracture Type/ type de fracture","Days from fracture to first FLS visit/ jours de la fracture à la première visite","Patient Eligible/ admissible","Time to fracture risk assessment/temps pour évaluer le risque de fractur","Fracture risk/ risque de fracture","Time to initial treatment/ temps jusqu'au traitement initial"]
["E-High Risk hip (and determined by FRD by 12 wks) plus initiated within 26 weeks of incident fracture",{"$f":"DCOUNTA(DB,\"Number/ Nombre\",D98:J99)","v":1},null,">=50","Hip/Hanche","<=84","YES/OUI","<=182","HIGH/ÉLEVÉ","<=182"]
[]
[]
[null,null,null,"Age at Time of Fracture/Âge au moment de la fracture","Fracture Type/ type de fracture","Days from fracture to first FLS visit/ jours de la fracture à la première visite","Patient Eligible/ admissible","Time to fracture risk assessment/temps pour évaluer le risque de fractur","Fracture risk/ risque de fracture","Time to initial treatment/ temps jusqu'au traitement initial"]
["E-High Risk hip (and determined by FRD by 26 wks) plus initiated within 26 weeks of incident fracture",{"$f":"DCOUNTA(DB,\"Number/ Nombre\",D102:J103)","v":1},null,">=50","Hip/Hanche","<=182","YES/OUI","<=182","HIGH/ÉLEVÉ","<=182"]
[]
[]
[null,null,null,"Age at Time of Fracture/Âge au moment de la fracture","Fracture Type/ type de fracture","Days from fracture to first FLS visit/ jours de la fracture à la première visite","Patient Eligible/ admissible","Time to fracture risk assessment/temps pour évaluer le risque de fractur","Fracture risk/ risque de fracture","Time to initial treatment/ temps jusqu'au traitement initial",null,null,null,null,"Age at Time of Fracture/Âge au moment de la fracture","Fracture Type/ type de fracture","Days from fracture to first FLS visit/ jours de la fracture à la première visite","Patient Eligible/ admissible","Time to fracture risk assessment/temps pour évaluer le risque de fractur","Fracture risk/ risque de fracture","Time to initial treatment/ temps jusqu'au traitement initial"]
["E-High Risk non-hip and non-spine (and determined by FRD by 26 wks) plus initiated within 26 weeks of incident fracture",{"$f":"DCOUNTA(DB,\"Number/ Nombre\",D106:J109)","v":2},null,">=50","Wrist/Poignet","<=84","YES/OUI","<=182","HIGH/ÉLEVÉ","<=182",null,"E-High Risk ALL  (and determined by FRD by 26 wks) plus initiated within 26 weeks of incident fracture",{"$f":"DCOUNTA(DB,\"Number/ Nombre\",O106:U110)","v":1},null,">=50","Wrist/Poignet","<=42","YES/OUI","<=182","HIGH/ÉLEVÉ","<=182"]
[null,null,null,">=50","Shoulder/Épaule","<=84","YES/OUI","<=182","HIGH/ÉLEVÉ","<=182",null,null,null,null,">=50","Shoulder/Épaule","<=42","YES/OUI","<=182","HIGH/ÉLEVÉ","<=182"]
[null,null,null,">=50","Pelvis/Bassin","<=84","YES/OUI","<=182","HIGH/ÉLEVÉ","<=182",null,null,null,null,">=50","Pelvis/Bassin","<=42","YES/OUI","<=182","HIGH/ÉLEVÉ","<=182"]
[null,null,null,null,null,null,null,null,null,null,null,null,null,null,">=50","Hip/Hanche","<=182","YES/OUI","<=182","HIGH/ÉLEVÉ","<=182"]
[]
[]
["Fracture Risk HIGH (hip)",{"$f":"DCOUNTA(DB,\"Number/ Nombre\",D113:I114)","v":1},null,"Age at Time of Fracture/Âge au moment de la fracture","Days from fracture to first FLS visit/ jours de la fracture à la première visite","Fracture risk/ risque de fracture","Fracture Type/ type de fracture","Patient Eligible/ admissible","Time to fracture risk assessment/temps pour évaluer le risque de fractur"]
[null,null,null,">=50","<=84","HIGH/ÉLEVÉ","Hip/Hanche","YES/OUI","<=182"]
[]
["Fracture Risk HIGH (non-hip)",{"$f":"DCOUNTA(DB,\"Number/ Nombre\",F116:I119)","v":0},null,"Age at Time of Fracture/Âge au moment de la fracture","Days from fracture to first FLS visit/ jours de la fracture à la première visite","Age at Time of Fracture/Âge au moment de la fracture","Fracture Type/ type de fracture","Patient Eligible/ admissible","Time to fracture risk assessment/temps pour évaluer le risque de fractur"]
[null,null,null,">=50","<=84","HIGH/ÉLEVÉ","Wrist/Poignet","YES/OUI","<=182"]
[null,null,null,">=50","<=84","HIGH/ÉLEVÉ","Shoulder/Épaule","YES/OUI","<=182"]
[null,null,null,">=50","<=84","HIGH/ÉLEVÉ","Pelvis/Bassin","YES/OUI","<=182"]
[]
["Fracture Risk HIGH (hip & non-hip)",{"$f":"B116+B113","v":1}]
[]
["Fracture Risk MODERATE (non-hip)",{"$f":"DCOUNTA(DB,\"Number/ Nombre\",D123:I126)","v":0},null,"Age at Time of Fracture/Âge au moment de la fracture","Days from fracture to first FLS visit/ jours de la fracture à la première visite","Fracture risk/ risque de fracture","Fracture Type/ type de fracture","Patient Eligible/ admissible","Time to fracture risk assessment/temps pour évaluer le risque de fractur"]
[null,null,null,">=50","<=84","MODERATE/MODÉRÉ","Wrist/Poignet","YES/OUI","<=182"]
[null,null,null,">=50","<=84","MODERATE/MODÉRÉ","Shoulder/Épaule","YES/OUI","<=182"]
[null,null,null,">=50","<=84","MODERATE/MODÉRÉ","Pelvis/Bassin","YES/OUI","<=182"]
[]
["How many total enrolled patients (eligble)?",{"$f":"DCOUNTA(DB,\"Number/ Nombre\",D128:D129)","v":3},null,"Patient Eligible/ admissible",null,"Patient Eligible/ admissible"]
["How many total enrolled patients (ineligible)?",{"$f":"DCOUNTA(DB,\"Number/ Nombre\",F128:F129)","v":0},null,"YES/OUI",null,"NO/NON"]
["How many total enrolled patients (eligible and inelgible)",{"$f":"B129+B128","v":3}]
[]
["Fracture Risk LOW (non-hip)",{"$f":"DCOUNTA(DB,\"Number/ Nombre\",D132:G135)","v":0},null,"Fracture risk/ risque de fracture","Fracture Type/ type de fracture","Patient Eligible/ admissible","Time to fracture risk assessment/temps pour évaluer le risque de fractur"]
[null,null,null,"LOW/FAIBLE","Wrist/Poignet","YES/OUI","<=182"]
[null,null,null,"LOW/FAIBLE","Shoulder/Épaule"]
[null,null,null,"LOW/FAIBLE","Pelvis/Bassin"]
[]
[null,null,null,"Age at Time of Fracture/Âge au moment de la fracture","Fracture Type/ type de fracture","Patient Eligible/ admissible"]
["Total Wrist Fractures Eligible\n",{"$f":"DCOUNTA(DB,\"Number/ Nombre\",D137:F138)","v":1},null,">=50","Wrist/Poignet","YES/OUI"]
[]
[null,null,null,"Age at Time of Fracture/Âge au moment de la fracture","Fracture Type/ type de fracture","Patient Eligible/ admissible"]
["Total Shoulder Fractures Eligible\n",{"$f":"DCOUNTA(DB,\"Number/ Nombre\",D140:F141)","v":1},null,">=50","Shoulder/Épaule","YES/OUI"]
[]
[]
[null,null,null,"Age at Time of Fracture/Âge au moment de la fracture","Fracture Type/ type de fracture","Patient Eligible/ admissible"]
["Total Pelvis Fractures Eligible",{"$f":"DCOUNTA(DB,\"Number/ Nombre\",D144:F145)","v":0},null,">=50","Pelvis/Bassin","YES/OUI"]
[]
[]
[null,null,null,"Age at Time of Fracture/Âge au moment de la fracture","Fracture Type/ type de fracture","Patient Eligible/ admissible"]
["Total Spine Eligible",{"$f":"DCOUNTA(DB,\"Number/ Nombre\",D148:F149)","v":0},null,">=50","Spine/Colonne vertébrale","YES/OUI"]
[]
[]
[]
[]
[]
[]
[]
[]
[]
[]
[]
[]
[]
[]
[]
[]
[null,null,null,"3-6 month follow-up/  Suivi de 3-6 mois","OP treatment\n3-6 month/ Traitement OP de 3-6 mois","6-9 month follow-up/ Suivi de 6-9 mois","OP treatment\n6-9 month/ Traitement OP de 6-9 mois","One year follow-up/ Suivi d'un an","OP treatment>=52 wks/ Traitement OP d'un an","Fracture risk/ risque de fracture","Patient Eligible/ admissible"]
["How many contacted at least once but not initiated?",{"$f":"DCOUNTA(DB,\"Number/ Nombre\",D166:J169)","v":1},null,"Contacted/ Contacté","None/Aucun",null,null,null,null,"HIGH/ÉLEVÉ","YES/OUI"]
[null,null,null,null,null,"Contacted/ Contacté","None/Aucun",null,null,"HIGH/ÉLEVÉ","YES/OUI"]
[null,null,null,null,null,null,null,"Contacted/ Contacté","None/Aucun","HIGH/ÉLEVÉ","YES/OUI"]
[]
[]
[null,null,null,"3-6 month follow-up/  Suivi de 3-6 mois","6-9 month follow-up/ Suivi de 6-9 mois","One year follow-up/ Suivi d'un an","Fracture risk/ risque de fracture"]
["How many not sure (ie lost to followup)",{"$f":"DCOUNTA(DB,\"Number/ Nombre\",D172:G194)","v":0},null,"Unable to contact/ Impossible à rejoindre",null,null,"HIGH/ÉLEVÉ"]
[null,null,null,null,"Unable to contact/ Impossible à rejoindre",null,"HIGH/ÉLEVÉ"]
[null,null,null,null,null,"Unable to contact/ Impossible à rejoindre","HIGH/ÉLEVÉ"]
[null,null,null,"Referrred/référé",null,null,"HIGH/ÉLEVÉ"]
[null,null,null,null,"Referrred/référé",null,"HIGH/ÉLEVÉ"]
[null,null,null,null,null,"Referrred/référé","HIGH/ÉLEVÉ"]
[null,null,null,"Pt refuses F/U",null,null,"HIGH/ÉLEVÉ"]
[null,null,null,null,"Pt refuses F/U",null,"HIGH/ÉLEVÉ"]
[null,null,null,null,null,"Pt refuses F/U","HIGH/ÉLEVÉ"]
[null,null,null,{"$f":"\"=\"","v":"="},"=","=","HIGH/ÉLEVÉ"]
[null,null,null,"=","Pt refuses F/U",null,"HIGH/ÉLEVÉ"]
[null,null,null,"=","=","Pt refuses F/U","HIGH/ÉLEVÉ"]
[null,null,null,"=","Unable to contact",null,"HIGH/ÉLEVÉ"]
[null,null,null,"=","=","Unable to contact/ Impossible à rejoindre","HIGH/ÉLEVÉ"]
[null,null,null,"=","Referrred/référé",null,"HIGH/ÉLEVÉ"]
[null,null,null,{"$f":"\"=\"","v":"="},"=","Referrred/référé","HIGH/ÉLEVÉ"]
[null,null,null,"Deceased",null,null,"HIGH/ÉLEVÉ"]
[null,null,null,"Palliative",null,null,"HIGH/ÉLEVÉ"]
[null,null,null,{"$f":"\"=\"","v":"="},"Deceased",null,"HIGH/ÉLEVÉ"]
[null,null,null,"=","Palliative",null,"HIGH/ÉLEVÉ"]
[null,null,null,{"$f":"\"=\"","v":"="},{"$f":"\"=\"","v":"="},"Deceased","HIGH/ÉLEVÉ"]
[null,null,null,{"$f":"\"=\"","v":"="},{"$f":"\"=\"","v":"="},"Palliative","HIGH/ÉLEVÉ"]
[]
[]
[]
["SUPPLEMENTARY KPIs"]
[]
[null,null,null,"Sex(e)","Patient Eligible/ admissible",null,"Sex(e)","Patient Eligible/ admissible"]
["Number of eligible females",{"$f":"DCOUNTA(DB,\"Number/ Nombre\",D200:E201)","v":2},null,"Female/Femme","YES/OUI",null,"Female/Femme","NO/NON"]
["Number of non-eligible females",{"$f":"DCOUNTA(DB,\"Number/ Nombre\",G200:H201)","v":0}]
[null,null,null,"Sex(e)","Patient Eligible/ admissible",null,"Sex(e)","Patient Eligible/ admissible"]
["Number of eligible males",{"$f":"DCOUNTA(DB,\"Number/ Nombre\",D203:E204)","v":1},null,"Male/Homme","YES/OUI",null,"Male/Homme","NO/NON"]
["Number of non-eligible males",{"$f":"DCOUNTA(DB,\"Number/ Nombre\",G203:H204)","v":0}]
[]
[null,null,null,"Prior fragility fracture after age 40/Fracture de fragilité préalable après 40 ans","Patient Eligible/ admissible"]
["Prior fragility fractures after age 40",{"$f":"DCOUNTA(DB,\"Number/ Nombre\",D207:E208)","v":0},null,"YES/OUI","YES/OUI"]
[]
[null,null,null,"Number of falls/ nombre de chutes","Patient Eligible/ admissible"]
["Number of falls in the past year (2 or more)",{"$f":"DCOUNTA(DB,\"Number/ Nombre\",D210:E211)","v":3},null,"2 +","YES/OUI"]
[]
["Treatment status at time of fracture (e.g. already on osteoprosis treatment at time of fracture)",null,null,"Current OP Tx/ traitement actue OP","Patient Eligible/ admissible"]
[null,{"$f":"DCOUNTA(DB,\"Number/ Nombre\",D213:E214)","v":0},null,"YES/OUI","YES/OUI"]
[]
["Treatment failure (e.g. pt has already received a full year or more of appropriate Tx prior to FF)",null,null,"Current OP Tx/ traitement actue OP","Patient Adherence         6-9 month/ Adhérence du patient de 6-9 mois","Patient Eligible/ admissible"]
[null,{"$f":"DCOUNTA(DB,\"Number/ Nombre\",D216:F217)","v":0},null,"YES/OUI","YES/OUI","YES/OUI"]
[]
["Subset of patients not already on treatment at the time of incident fracture",null,null,"Current OP Tx/ traitement actue OP","Patient Eligible/ admissible"]
[null,{"$f":"DCOUNTA(DB,\"Number/ Nombre\",D219:E220)","v":3},null,"NO/NON","YES/OUI"]
[]
[null,null,"Num","Den"]
["Adherence to Tx (number of patients adherent(3-6 mos, 6-9mos or 1yr)/number of patients initiated(3-6 mos, 6-9mos or 1yr)",{"$f":"C223/D223","v":1},{"$f":"B237","v":3},{"$f":"B3","v":3}]
[]
[]
["Persistance to Tx (number of patients still on Tx at 12 months/number of patients initiated(3-6 mos, 6-9mos or 1yr)",{"$f":"C226/D226","v":0},{"$f":"E227","v":0},{"$f":"B3","v":3},null,"Patient Adherence (pt taking Tx for over 1 yr)/ Adhérence du patient (prise de la Tx pendant plus d'un an)","Patient Eligible/ admissible"]
[null,null,null,null,{"$f":"DCOUNTA(DB,\"Number/ Nombre\",F226:H227)","v":0},"YES/OUI","YES/OUI"]
[]
["Falls prevention (number of patients referred to falls prevention/number of patients deemed to be high risk)",{"$f":"C229/D229","v":1},{"$f":"E230","v":3},{"$f":"I230","v":3},null,"Referral to Falls prev services/ Référence à des services antichute","Patient Eligible/ admissible",null,null,"Is patient at a high risk for falls?/ Le patient présente-t-il un risque élevé de chute?","Patient Eligible/ admissible"]
[null,null,null,null,{"$f":"DCOUNTA(DB,\"Number/ Nombre\",F229:H230)","v":3},"YES/OUI","YES/OUI",null,{"$f":"DCOUNTA(DB,\"Number/ Nombre\",J229:L230)","v":3},"YES/OUI","YES/OUI"]
[]
["Repeat/subsequent fractures (number of enrolled FLS patients who additional FF (major) within 1 yr/number of patients followed up in one yr)",{"$f":"C232/D232","v":0},{"$f":"E233","v":0},{"$f":"I233","v":3},null,"New fracture? patient perspective/nouvelle fracture? (perspective du patient)","Patient Eligible/ admissible",null,null,"One year follow-up/ Suivi d'un an","Patient Eligible/ admissible"]
[null,null,null,null,{"$f":"DCOUNTA(DB,\"Number/ Nombre\",F232:H233)","v":0},"Major/Majeur","YES/OUI",null,{"$f":"DCOUNTA(DB,\"Number/ Nombre\",J232:L233)","v":3},"Contacted/ Contacté","YES/OUI"]
[]
[]
[null,null,"All"]
["Number of patients on meds (3-6 mos, 6-9mos or 1yr) and adherent (3-6 mos, 6-9mos or 1yr)",{"$f":"DCOUNTA(DB,\"Number/ Nombre\",C237:J255)","v":3},"Patient Eligible/ admissible","Fracture risk/ risque de fracture","OP treatment\n3-6 month/ Traitement OP de 3-6 mois","OP treatment\n6-9 month/ Traitement OP de 6-9 mois","OP treatment>=52 wks/ Traitement OP d'un an","Patient Adherence         3-6 month/ Adhérence du patient de 3-6 mois","Patient Adherence         6-9 month/ Adhérence du patient de 6-9 mois","Patient Adherence         1 yr/ Adhérence du patient d'in an"]
[null,null,"YES/OUI","HIGH/ÉLEVÉ","Oral bisphos",null,null,"YES/OUI"]
[null,null,"YES/OUI","HIGH/ÉLEVÉ",null,"Oral bisphos",null,null,"YES/OUI"]
[null,null,"YES/OUI","HIGH/ÉLEVÉ",null,null,"Oral bisphos",null,null,"YES/OUI"]
[null,null,"YES/OUI","HIGH/ÉLEVÉ","Zoledronic",null,null,"YES/OUI"]
[null,null,"YES/OUI","HIGH/ÉLEVÉ",null,"Zoledronic",null,null,"YES/OUI"]
[null,null,"YES/OUI","HIGH/ÉLEVÉ",null,null,"Zoledronic",null,null,"YES/OUI"]
[null,null,"YES/OUI","HIGH/ÉLEVÉ","Prolia",null,null,"YES/OUI"]
[null,null,"YES/OUI","HIGH/ÉLEVÉ",null,"Prolia",null,null,"YES/OUI"]
[null,null,"YES/OUI","HIGH/ÉLEVÉ",null,null,"Prolia",null,null,"YES/OUI"]
[null,null,"YES/OUI","HIGH/ÉLEVÉ","Forteo",null,null,"YES/OUI"]
[null,null,"YES/OUI","HIGH/ÉLEVÉ",null,"Forteo",null,null,"YES/OUI"]
[null,null,"YES/OUI","HIGH/ÉLEVÉ",null,null,"Forteo",null,null,"YES/OUI"]
[null,null,"YES/OUI","HIGH/ÉLEVÉ","Estrogen",null,null,"YES/OUI"]
[null,null,"YES/OUI","HIGH/ÉLEVÉ",null,"Estrogen",null,null,"YES/OUI"]
[null,null,"YES/OUI","HIGH/ÉLEVÉ",null,null,"Estrogen",null,null,"YES/OUI"]
[null,null,"YES/OUI","HIGH/ÉLEVÉ","Raloxifene",null,null,"YES/OUI"]
[null,null,"YES/OUI","HIGH/ÉLEVÉ",null,"Raloxifene",null,null,"YES/OUI"]
[null,null,"YES/OUI","HIGH/ÉLEVÉ",null,null,"Raloxifene",null,null,"YES/OUI"]

{"sheet":"Menu dropdown options","index":9,"n_rows":46,"n_cols":18,"rows_kept":46,"cut":false,"hidden":false,"merged":[]}
["Female/Femme"]
["Male/Homme"]
[null,null,null,null,null,"Hip/Hanche",null,"Patient declined/Refus du patient",null,null,"Clinical",null,null,null,null,null,null,"January"]
[null,null,null,null,null,"Spine/Colonne vertébrale",null,"Non-osteoporotic fracture/ Fracture non-ostéoporotique",null,null,"FRAX without BMD",null,null,null,null,null,null,"February"]
[null,null,"Community/Communauté",null,null,"Wrist/Poignet",null,"Palliative/ Soins palliatif  ",null,null,"FRAX BMD + spine",null,null,"Contacted/ Contacté",null,null,null,"March"]
[null,null,"LTC/CHSLD ou Soins prolongés",null,null,"Shoulder/Épaule",null,"Trauma/traumatique",null,null,"FRAX BMD no spine",null,null,"Unable to contact/ Impossible à rejoindre",null,null,null,"April"]
[null,null,"Assisted living/Aide à domicile",null,null,"Pelvis/Bassin",null,"OP specialist/ Spécialiste en ostéoporose",null,null,null,null,null,"Referrred/référé",null,null,null,"May"]
[null,null,null,null,null,null,null,"No family doc/Pas de médecin de famille",null,null,null,null,null,"Deceased",null,null,null,"June"]
[null,null,null,null,null,null,null,"Deceased/ Dédédé(e )",null,null,null,"Oral bisphos",null,"Palliative",null,"Oral bisphos",null,"July"]
[null,null,"YES/OUI",null,null,null,null,"Wrong bone/Mauvais os",null,null,null,"Zoledronic",null,"Pt refuses F/U",null,"Zoledronic",null,"August"]
[null,null,"NO/NON",null,null,"No fracture/Pas de fracture",null,"Renal dialysis/ Dyalise",null,"LOW/FAIBLE",null,"Prolia",null,null,null,"Prolia",null,"September"]
[null,null,null,null,null,"Fragility/Fragilité",null,"Atraumatic",null,"MODERATE/MODÉRÉ",null,"Forteo",null,null,null,"Forteo",null,"October"]
[null,null,null,null,null,"Trauma/Traumatique",null,"Sub-trochanteric",null,"HIGH/ÉLEVÉ",null,"Estrogen",null,null,null,"Estrogen",null,"November"]
[null,null,null,null,null,null,null,"Age < 50",null,null,null,"Raloxifene",null,null,null,"Raloxifene",null,"December"]
[null,null,null,"Could not be contacted",null,null,null,null,null,null,null,"Romosozumab",null,null,null,"Romosozumab"]
[null,null,null,null,null,null,null,null,null,null,null,"None/Aucun",null,null,null,"None/Aucun"]
[]
[null,null,null,null,null,null,null,"Major/Majeur",null,"Concordant",null,null,null,null,1]
[null,null,null,null,null,null,null,"Minor/Mineur",null,"Overreport",null,null,null,null,"2 +"]
[null,null,null,null,null,null,null,"No",null,"Underreport"]
[null,null,null,null,null,null,null,"No/Non"]
[]
[]
[]
[]
[]
[]
[]
[]
[]
[]
[]
[]
[]
[]
[]
[]
[]
[]
[]
[null,null,null,"Could not be contacted/ Impossible à rejoindre"]
[]
[]
[null,null,null,null,null,null,null,null,null,"Concordant"]
[null,null,null,null,null,null,null,null,null,"Overreport/sur le rapport"]
[null,null,null,null,null,null,null,null,null,"Underreport/\nsous rapport"]